{"text_format":"1","workbook":"xlsx","n_sheets":8,"sheets":["Código CIIU","Departamentos_y_municipios_de_C","Hoja2","MatrizSegmentación","PorJurisdicción","PorActividadEconómica","MatrizMonitoreo","S.AlertaCuantitativas"],"not_rendered":{"charts":2,"images":0,"macros":1,"external_links":1,"defined_names":41,"comments":0,"pivot_tables":13},"unopened":[],"bounds":{"document_bytes":16777216,"sheet_cells":100000,"rows_first":2000,"rows_last":500,"rows_between":2000,"halvings":0,"cell_chars":16384,"cell_head_chars":4096},"cells_cut":0,"cells_raw":0,"read":"whole","date_system":"1900"}

{"sheet":"Código CIIU","index":0,"n_rows":499,"n_cols":8,"rows_kept":499,"cut":false,"hidden":true,"merged":[]}
[null,null,null,null,"Si","Fortaleza",0,"Agropecuario"]
[111,"Cultivo de cereales (excepto arroz), legumbres y semillas oleaginosas",1,"agricultura, ganadería, caza, silvicultura y pesca","No","Debilidad",1,"Industrial"]
[112,"Cultivo de arroz",1,"agricultura, ganadería, caza, silvicultura y pesca",null,null,2,"Comercio"]
[113,"Cultivo de hortalizas, raíces y tubérculos",1,"agricultura, ganadería, caza, silvicultura y pesca",null,null,3,"Servicios"]
[114,"Cultivo de tabaco",1,"agricultura, ganadería, caza, silvicultura y pesca"]
[115,"Cultivo de plantas textiles",1,"agricultura, ganadería, caza, silvicultura y pesca"]
[119,"Otros cultivos transitorios n.c.p.",1,"agricultura, ganadería, caza, silvicultura y pesca"]
[121,"Cultivo de frutas tropicales y subtropicales",1,"agricultura, ganadería, caza, silvicultura y pesca"]
[122,"Cultivo de plátano y banano",1,"agricultura, ganadería, caza, silvicultura y pesca"]
[123,"Cultivo de café",1,"agricultura, ganadería, caza, silvicultura y pesca"]
[124,"Cultivo de caña de azúcar",1,"agricultura, ganadería, caza, silvicultura y pesca"]
[125,"Cultivo de flor de corte",1,"agricultura, ganadería, caza, silvicultura y pesca"]
[126,"Cultivo de palma para aceite (palma africana) y otros frutos oleaginosos",1,"agricultura, ganadería, caza, silvicultura y pesca"]
[127,"Cultivo de plantas con las que se preparan bebidas",1,"agricultura, ganadería, caza, silvicultura y pesca"]
[128,"Cultivo de especias y de plantas aromáticas y medicinales",1,"agricultura, ganadería, caza, silvicultura y pesca"]
[129,"Otros cultivos permanentes n.c.p.",1,"agricultura, ganadería, caza, silvicultura y pesca"]
[130,"Propagación de plantas (actividades de los viveros, excepto viveros forestales)",1,"agricultura, ganadería, caza, silvicultura y pesca"]
[141,"Cría de ganado bovino y bufalino",1,"agricultura, ganadería, caza, silvicultura y pesca"]
[142,"Cría de caballos y otros equinos",1,"agricultura, ganadería, caza, silvicultura y pesca"]
[143,"Cría de ovejas y cabras",1,"agricultura, ganadería, caza, silvicultura y pesca"]
[144,"Cría de ganado porcino",1,"agricultura, ganadería, caza, silvicultura y pesca"]
[145,"Cría de aves de corral",1,"agricultura, ganadería, caza, silvicultura y pesca"]
[149,"Cría de otros animales n.c.p.",1,"agricultura, ganadería, caza, silvicultura y pesca"]
[150,"Explotación mixta (agrícola y pecuaria)",1,"agricultura, ganadería, caza, silvicultura y pesca"]
[161,"Actividades de apoyo a la agricultura",1,"agricultura, ganadería, caza, silvicultura y pesca"]
[162,"Actividades de apoyo a la ganadería",1,"agricultura, ganadería, caza, silvicultura y pesca"]
[163,"Actividades posteriores a la cosecha",1,"agricultura, ganadería, caza, silvicultura y pesca"]
[164,"Tratamiento de semillas para propagación",1,"agricultura, ganadería, caza, silvicultura y pesca"]
[170,"Caza ordinaria y mediante trampas y actividades de servicios conexas",1,"agricultura, ganadería, caza, silvicultura y pesca"]
[210,"Silvicultura y otras actividades forestales",1,"agricultura, ganadería, caza, silvicultura y pesca"]
[220,"Extracción de madera",1,"agricultura, ganadería, caza, silvicultura y pesca"]
[230,"Recolección de productos forestales diferentes a la madera",1,"agricultura, ganadería, caza, silvicultura y pesca"]
[240,"Servicios de apoyo a la silvicultura",1,"agricultura, ganadería, caza, silvicultura y pesca"]
[311,"Pesca marítima",1,"agricultura, ganadería, caza, silvicultura y pesca"]
[312,"Pesca de agua dulce",1,"agricultura, ganadería, caza, silvicultura y pesca"]
[321,"Acuicultura marítima",1,"agricultura, ganadería, caza, silvicultura y pesca"]
[322,"Acuicultura de agua dulce",1,"agricultura, ganadería, caza, silvicultura y pesca"]
[510,"Extracción de hulla (carbón de piedra)",2,"explotación de minas y canteras"]
[520,"Extracción de carbón lignito",2,"explotación de minas y canteras"]
[610,"Extracción de petróleo crudo",2,"explotación de minas y canteras"]
[620,"Extracción de gas natural",2,"explotación de minas y canteras"]
[710,"Extracción de minerales de hierro",2,"explotación de minas y canteras"]
[721,"Extracción de minerales de uranio y de torio",2,"explotación de minas y canteras"]
[722,"Extracción de oro y otros metales preciosos",2,"explotación de minas y canteras"]
[723,"Extracción de minerales de níquel",2,"explotación de minas y canteras"]
[729,"Extracción de otros minerales metalíferos no ferrosos n.c.p.",2,"explotación de minas y canteras"]
[811,"Extracción de piedra, arena, arcillas comunes, yeso y anhidrita",2,"explotación de minas y canteras"]
[812,"Extracción de arcillas de uso industrial, caliza, caolín y bentonitas",2,"explotación de minas y canteras"]
[820,"Extracción de esmeraldas, piedras preciosas y semipreciosas",2,"explotación de minas y canteras"]
[891,"Extracción de minerales para la fabricación de abonos y productos químicos",2,"explotación de minas y canteras"]
[892,"Extracción de halita (sal)",2,"explotación de minas y canteras"]
[899,"Extracción de otros minerales no metálicos n.c.p.",2,"explotación de minas y canteras"]
[910,"Actividades de apoyo para la extracción de petróleo y de gas natural",2,"explotación de minas y canteras"]
[990,"Actividades de apoyo para otras actividades de explotación de minas y canteras",2,"explotación de minas y canteras"]
[1011,"Procesamiento y conservación de carne y productos cárnicos",3,"industrias manufactureras"]
[1012,"Procesamiento y conservación de pescados, crustáceos y moluscos",3,"industrias manufactureras"]
[1020,"Procesamiento y conservación de frutas, legumbres, hortalizas y tubérculos",3,"industrias manufactureras"]
[1030,"Elaboración de aceites y grasas de origen vegetal y animal",3,"industrias manufactureras"]
[1040,"Elaboración de productos lácteos",3,"industrias manufactureras"]
[1051,"Elaboración de productos de molinería",3,"industrias manufactureras"]
[1052,"Elaboración de almidones y productos derivados del almidón",3,"industrias manufactureras"]
[1061,"Trilla de café",3,"industrias manufactureras"]
[1062,"Descafeinado, tostión y molienda del café",3,"industrias manufactureras"]
[1063,"Otros derivados del café",3,"industrias manufactureras"]
[1071,"Elaboración y refinación de azúcar",3,"industrias manufactureras"]
[1072,"Elaboración de panela",3,"industrias manufactureras"]
[1081,"Elaboración de productos de panadería",3,"industrias manufactureras"]
[1082,"Elaboración de cacao, chocolate y productos de confitería",3,"industrias manufactureras"]
[1083,"Elaboración de macarrones, fideos, alcuzcuz y productos farináceos similares",3,"industrias manufactureras"]
[1084,"Elaboración de comidas y platos preparados",3,"industrias manufactureras"]
[1089,"Elaboración de otros productos alimenticios n.c.p.",3,"industrias manufactureras"]
[1090,"Elaboración de alimentos preparados para animales",3,"industrias manufactureras"]
[1101,"Destilación, rectificación y mezcla de bebidas alcohólicas",3,"industrias manufactureras"]
[1102,"Elaboración de bebidas fermentadas no destiladas",3,"industrias manufactureras"]
[1103,"Producción de malta, elaboración de cervezas y otras bebidas malteadas",3,"industrias manufactureras"]
[1104,"Elaboración de bebidas no alcohólicas, producción de aguas minerales y de otras aguas embotelladas",3,"industrias manufactureras"]
[1200,"Elaboración de productos de tabaco",3,"industrias manufactureras"]
[1311,"Preparación e hilatura de fibras textiles",3,"industrias manufactureras"]
[1312,"Tejeduría de productos textiles",3,"industrias manufactureras"]
[1313,"Acabado de productos textiles",3,"industrias manufactureras"]
[1391,"Fabricación de tejidos de punto y ganchillo",3,"industrias manufactureras"]
[1392,"Confección de artículos con materiales textiles, excepto prendas de vestir",3,"industrias manufactureras"]
[1393,"Fabricación de tapetes y alfombras para pisos",3,"industrias manufactureras"]
[1394,"Fabricación de cuerdas, cordeles, cables, bramantes y redes",3,"industrias manufactureras"]
[1399,"Fabricación de otros artículos textiles n.c.p.",3,"industrias manufactureras"]
[1410,"Confección de prendas de vestir, excepto prendas de piel",3,"industrias manufactureras"]
[1420,"Fabricación de artículos de piel",3,"industrias manufactureras"]
[1430,"Fabricación de artículos de punto y ganchillo",3,"industrias manufactureras"]
[1511,"Curtido y recurtido de cueros; recurtido y teñido de pieles",3,"industrias manufactureras"]
[1512,"Fabricación de artículos de viaje, bolsos de mano y artículos similares elaborados en cuero, y fabricación de artículos de talabartería y guarnicionería",3,"industrias manufactureras"]
[1513,"Fabricación de artículos de viaje, bolsos de mano y artículos similares; artículos de talabartería y guarnicionería elaborados en otros materiales",3,"industrias manufactureras"]
[1521,"Fabricación de calzado de cuero y piel, con cualquier tipo de suela",3,"industrias manufactureras"]
[1522,"Fabricación de otros tipos de calzado, excepto calzado de cuero y piel",3,"industrias manufactureras"]
[1523,"Fabricación de partes del calzado",3,"industrias manufactureras"]
[1610,"Aserrado, acepillado e impregnación de la madera",3,"industrias manufactureras"]
[1620,"Fabricación de hojas de madera para enchapado; fabricación de tableros contrachapados, tableros laminados, tableros de partículas y otros tableros y paneles",3,"industrias manufactureras"]
[1630,"Fabricación de partes y piezas de madera, de carpintería y ebanistería para la construcción",3,"industrias manufactureras"]
[1640,"Fabricación de recipientes de madera",3,"industrias manufactureras"]
[1690,"Fabricación de otros productos de madera; fabricación de artículos de corcho, cestería y espartería",3,"industrias manufactureras"]
[1701,"Fabricación de pulpas (pastas) celulósicas; papel y cartón",3,"industrias manufactureras"]
[1702,"Fabricación de papel y cartón ondulado (corrugado); fabricación de envases, empaques y de embalajes de papel y cartón.",3,"industrias manufactureras"]
[1709,"Fabricación de otros artículos de papel y cartón",3,"industrias manufactureras"]
[1811,"Actividades de impresión",3,"industrias manufactureras"]
[1812,"Actividades de servicios relacionados con la impresión",3,"industrias manufactureras"]
[1820,"Producción de copias a partir de grabaciones originales",3,"industrias manufactureras"]
[1910,"Fabricación de productos de hornos de coque",3,"industrias manufactureras"]
[1921,"Fabricación de productos de la refinación del petróleo",3,"industrias manufactureras"]
[1922,"Actividad de mezcla de combustibles",3,"industrias manufactureras"]
[2011,"Fabricación de sustancias y productos químicos básicos",3,"industrias manufactureras"]
[2012,"Fabricación de abonos y compuestos inorgánicos nitrogenados",3,"industrias manufactureras"]
[2013,"Fabricación de plásticos en formas primarias",3,"industrias manufactureras"]
[2014,"Fabricación de caucho sintético en formas primarias",3,"industrias manufactureras"]
[2021,"Fabricación de plaguicidas y otros productos químicos de uso agropecuario",3,"industrias manufactureras"]
[2022,"Fabricación de pinturas, barnices y revestimientos similares, tintas para impresión y masillas",3,"industrias manufactureras"]
[2023,"Fabricación de jabones y detergentes, preparados para limpiar y pulir; perfumes y preparados de tocador",3,"industrias manufactureras"]
[2029,"Fabricación de otros productos químicos n.c.p.",3,"industrias manufactureras"]
[2030,"Fabricación de fibras sintéticas y artificiales",3,"industrias manufactureras"]
[2100,"Fabricación de productos farmacéuticos, sustancias químicas medicinales y productos botánicos de uso farmacéutico",3,"industrias manufactureras"]
[2211,"Fabricación de llantas y neumáticos de caucho",3,"industrias manufactureras"]
[2212,"Reencauche de llantas usadas",3,"industrias manufactureras"]
[2219,"Fabricación de formas básicas de caucho y otros productos de caucho n.c.p.",3,"industrias manufactureras"]
[2221,"Fabricación de formas básicas de plástico",3,"industrias manufactureras"]
[2229,"Fabricación de artículos de plástico n.c.p.",3,"industrias manufactureras"]
[2310,"Fabricación de vidrio y productos de vidrio",3,"industrias manufactureras"]
[2391,"Fabricación de productos refractarios",3,"industrias manufactureras"]
[2392,"Fabricación de materiales de arcilla para la construcción",3,"industrias manufactureras"]
[2393,"Fabricación de otros productos de cerámica y porcelana",3,"industrias manufactureras"]
[2394,"Fabricación de cemento, cal y yeso",3,"industrias manufactureras"]
[2395,"Fabricación de artículos de hormigón, cemento y yeso",3,"industrias manufactureras"]
[2396,"Corte, tallado y acabado de la piedra",3,"industrias manufactureras"]
[2399,"Fabricación de otros productos minerales no metálicos n.c.p.",3,"industrias manufactureras"]
[2410,"Industrias básicas de hierro y de acero",3,"industrias manufactureras"]
[2421,"Industrias básicas de metales preciosos",3,"industrias manufactureras"]
[2429,"Industrias básicas de otros metales no ferrosos",3,"industrias manufactureras"]
[2431,"Fundición de hierro y de acero",3,"industrias manufactureras"]
[2432,"Fundición de metales no ferrosos",3,"industrias manufactureras"]
[2511,"Fabricación de productos metálicos para uso estructural",3,"industrias manufactureras"]
[2512,"Fabricación de tanques, depósitos y recipientes de metal, excepto los utilizados para el envase o transporte de mercancías",3,"industrias manufactureras"]
[2513,"Fabricación de generadores de vapor, excepto calderas de agua caliente para calefacción central",3,"industrias manufactureras"]
[2520,"Fabricación de armas y municiones",3,"industrias manufactureras"]
[2591,"Forja, prensado, estampado y laminado de metal; pulvimetalurgia",3,"industrias manufactureras"]
[2592,"Tratamiento y revestimiento de metales; mecanizado",3,"industrias manufactureras"]
[2593,"Fabricación de artículos de cuchillería, herramientas de mano y artículos de ferretería",3,"industrias manufactureras"]
[2599,"Fabricación de otros productos elaborados de metal n.c.p.",3,"industrias manufactureras"]
[2610,"Fabricación de componentes y tableros electrónicos",3,"industrias manufactureras"]
[2620,"Fabricación de computadoras y de equipo periférico",3,"industrias manufactureras"]
[2630,"Fabricación de equipos de comunicación",3,"industrias manufactureras"]
[2640,"Fabricación de aparatos electrónicos de consumo",3,"industrias manufactureras"]
[2651,"Fabricación de equipo de medición, prueba, navegación y control",3,"industrias manufactureras"]
[2652,"Fabricación de relojes",3,"industrias manufactureras"]
[2660,"Fabricación de equipo de irradiación y equipo electrónico de uso médico y terapéutico",3,"industrias manufactureras"]
[2670,"Fabricación de instrumentos ópticos y equipo fotográfico",3,"industrias manufactureras"]
[2680,"Fabricación de medios magnéticos y ópticos para almacenamiento de datos",3,"industrias manufactureras"]
[2711,"Fabricación de motores, generadores y transformadores eléctricos",3,"industrias manufactureras"]
[2712,"Fabricación de aparatos de distribución y control de la energía eléctrica",3,"industrias manufactureras"]
[2720,"Fabricación de pilas, baterías y acumuladores eléctricos",3,"industrias manufactureras"]
[2731,"Fabricación de hilos y cables eléctricos y de fibra óptica",3,"industrias manufactureras"]
[2732,"Fabricación de dispositivos de cableado",3,"industrias manufactureras"]
[2740,"Fabricación de equipos eléctricos de iluminación",3,"industrias manufactureras"]
[2750,"Fabricación de aparatos de uso doméstico",3,"industrias manufactureras"]
[2790,"Fabricación de otros tipos de equipo eléctrico n.c.p.",3,"industrias manufactureras"]
[2811,"Fabricación de motores, turbinas, y partes para motores de combustión interna",3,"industrias manufactureras"]
[2812,"Fabricación de equipos de potencia hidráulica y neumática",3,"industrias manufactureras"]
[2813,"Fabricación de otras bombas, compresores, grifos y válvulas",3,"industrias manufactureras"]
[2814,"Fabricación de cojinetes, engranajes, trenes de engranajes y piezas de transmisión",3,"industrias manufactureras"]
[2815,"Fabricación de hornos, hogares y quemadores industriales",3,"industrias manufactureras"]
[2816,"Fabricación de equipo de elevación y manipulación",3,"industrias manufactureras"]
[2817,"Fabricación de maquinaria y equipo de oficina (excepto computadoras y equipo periférico)",3,"industrias manufactureras"]
[2818,"Fabricación de herramientas manuales con motor",3,"industrias manufactureras"]
[2819,"Fabricación de otros tipos de maquinaria y equipo de uso general n.c.p.",3,"industrias manufactureras"]
[2821,"Fabricación de maquinaria agropecuaria y forestal",3,"industrias manufactureras"]
[2822,"Fabricación de máquinas formadoras de metal y de máquinas herramienta",3,"industrias manufactureras"]
[2823,"Fabricación de maquinaria para la metalurgia",3,"industrias manufactureras"]
[2824,"Fabricación de maquinaria para explotación de minas y canteras y para obras de construcción",3,"industrias manufactureras"]
[2825,"Fabricación de maquinaria para la elaboración de alimentos, bebidas y tabaco",3,"industrias manufactureras"]
[2826,"Fabricación de maquinaria para la elaboración de productos textiles, prendas de vestir y cueros",3,"industrias manufactureras"]
[2829,"Fabricación de otros tipos de maquinaria y equipo de uso especial n.c.p.",3,"industrias manufactureras"]
[2910,"Fabricación de vehículos automotores y sus motores",3,"industrias manufactureras"]
[2920,"Fabricación de carrocerías para vehículos automotores; fabricación de remolques y semirremolques",3,"industrias manufactureras"]
[2930,"Fabricación de partes, piezas (autopartes) y accesorios (lujos) para vehículos automotores",3,"industrias manufactureras"]
[3011,"Construcción de barcos y de estructuras flotantes",3,"industrias manufactureras"]
[3012,"Construcción de embarcaciones de recreo y deporte",3,"industrias manufactureras"]
[3020,"Fabricación de locomotoras y de material rodante para ferrocarriles",3,"industrias manufactureras"]
[3030,"Fabricación de aeronaves, naves espaciales y de maquinaria conexa",3,"industrias manufactureras"]
[3040,"Fabricación de vehículos militares de combate",3,"industrias manufactureras"]
[3091,"Fabricación de motocicletas",3,"industrias manufactureras"]
[3092,"Fabricación de bicicletas y de sillas de ruedas para personas con discapacidad",3,"industrias manufactureras"]
[3099,"Fabricación de otros tipos de equipo de transporte n.c.p.",3,"industrias manufactureras"]
[3110,"Fabricación de muebles",3,"industrias manufactureras"]
[3120,"Fabricación de colchones y somieres",3,"industrias manufactureras"]
[3210,"Fabricación de joyas, bisutería y artículos conexos",3,"industrias manufactureras"]
[3220,"Fabricación de instrumentos musicales",3,"industrias manufactureras"]
[3230,"Fabricación de artículos y equipo para la práctica del deporte",3,"industrias manufactureras"]
[3240,"Fabricación de juegos, juguetes y rompecabezas",3,"industrias manufactureras"]
[3250,"Fabricación de instrumentos, aparatos y materiales médicos y odontológicos (incluido mobiliario)",3,"industrias manufactureras"]
[3290,"Otras industrias manufactureras n.c.p.",3,"industrias manufactureras"]
[3311,"Mantenimiento y reparación especializado de productos elaborados en metal",3,"industrias manufactureras"]
[3312,"Mantenimiento y reparación especializado de maquinaria y equipo",3,"industrias manufactureras"]
[3313,"Mantenimiento y reparación especializado de equipo electrónico y óptico",3,"industrias manufactureras"]
[3314,"Mantenimiento y reparación especializado de equipo eléctrico",3,"industrias manufactureras"]
[3315,"Mantenimiento y reparación especializado de equipo de transporte, excepto los vehículos automotores, motocicletas y bicicletas",3,"industrias manufactureras"]
[3319,"Mantenimiento y reparación de otros tipos de equipos y sus componentes n.c.p.",3,"industrias manufactureras"]
[3320,"Instalación especializada de maquinaria y equipo industrial",3,"industrias manufactureras"]
[3511,"Generación de energía eléctrica",4,"suministro de electricidad, gas, vapor y aire acondicionado (división 35)"]
[3512,"Transmisión de energía eléctrica",4,"suministro de electricidad, gas, vapor y aire acondicionado (división 35)"]
[3513,"Distribución de energía eléctrica",4,"suministro de electricidad, gas, vapor y aire acondicionado (división 35)"]
[3514,"Comercialización de energía eléctrica",4,"suministro de electricidad, gas, vapor y aire acondicionado (división 35)"]
[3520,"Producción de gas; distribución de combustibles gaseosos por tuberías",4,"suministro de electricidad, gas, vapor y aire acondicionado (división 35)"]
[3530,"Suministro de vapor y aire acondicionado",4,"suministro de electricidad, gas, vapor y aire acondicionado (división 35)"]
[3600,"Captación, tratamiento y distribución de agua",4,"distribución de agua; evacuación y tratamiento de aguas residuales, gestión de desechos y actividades de saneamiento ambiental (divisiones 36 a 39)"]
[3700,"Evacuación y tratamiento de aguas residuales",4,"distribución de agua; evacuación y tratamiento de aguas residuales, gestión de desechos y actividades de saneamiento ambiental (divisiones 36 a 39)"]
[3811,"Recolección de desechos no peligrosos",4,"distribución de agua; evacuación y tratamiento de aguas residuales, gestión de desechos y actividades de saneamiento ambiental (divisiones 36 a 39)"]
[3812,"Recolección de desechos peligrosos",4,"distribución de agua; evacuación y tratamiento de aguas residuales, gestión de desechos y actividades de saneamiento ambiental (divisiones 36 a 39)"]
[3821,"Tratamiento y disposición de desechos no peligrosos",4,"distribución de agua; evacuación y tratamiento de aguas residuales, gestión de desechos y actividades de saneamiento ambiental (divisiones 36 a 39)"]
[3822,"Tratamiento y disposición de desechos peligrosos",4,"distribución de agua; evacuación y tratamiento de aguas residuales, gestión de desechos y actividades de saneamiento ambiental (divisiones 36 a 39)"]
[3830,"Recuperación de materiales",4,"distribución de agua; evacuación y tratamiento de aguas residuales, gestión de desechos y actividades de saneamiento ambiental (divisiones 36 a 39)"]
[3900,"Actividades de saneamiento ambiental y otros servicios de gestión de desechos",4,"distribución de agua; evacuación y tratamiento de aguas residuales, gestión de desechos y actividades de saneamiento ambiental (divisiones 36 a 39)"]
[4111,"Construcción de edificios residenciales",5,"construcción"]
[4112,"Construcción de edificios no residenciales",5,"construcción"]
[4210,"Construcción de carreteras y vías de ferrocarril",5,"construcción"]
[4220,"Construcción de proyectos de servicio público",5,"construcción"]
[4290,"Construcción de otras obras de ingeniería civil",5,"construcción"]
[4311,"Demolición",5,"construcción"]
[4312,"Preparación del terreno",5,"construcción"]
[4321,"Instalaciones eléctricas",5,"construcción"]
[4322,"Instalaciones de fontanería, calefacción y aire acondicionado",5,"construcción"]
[4329,"Otras instalaciones especializadas",5,"construcción"]
[4330,"Terminación y acabado de edificios y obras de ingeniería civil",5,"construcción"]
[4390,"Otras actividades especializadas para la construcción de edificios y obras de ingeniería civil",5,"construcción"]
[4511,"Comercio de vehículos automotores nuevos",6,"comercio al por mayor y al por menor; reparación de vehículos automotores y motocicletas"]
[4512,"Comercio de vehículos automotores usados",6,"comercio al por mayor y al por menor; reparación de vehículos automotores y motocicletas"]
[4520,"Mantenimiento y reparación de vehículos automotores",6,"comercio al por mayor y al por menor; reparación de vehículos automotores y motocicletas"]
[4530,"Comercio de partes, piezas (autopartes) y accesorios (lujos) para vehículos automotores",6,"comercio al por mayor y al por menor; reparación de vehículos automotores y motocicletas"]
[4541,"Comercio de motocicletas y de sus partes, piezas y accesorios",6,"comercio al por mayor y al por menor; reparación de vehículos automotores y motocicletas"]
[4542,"Mantenimiento y reparación de motocicletas y de sus partes y piezas",6,"comercio al por mayor y al por menor; reparación de vehículos automotores y motocicletas"]
[4610,"Comercio al por mayor a cambio de una retribución o por contrata",6,"comercio al por mayor y al por menor; reparación de vehículos automotores y motocicletas"]
[4620,"Comercio al por mayor de materias primas agropecuarias; animales vivos",6,"comercio al por mayor y al por menor; reparación de vehículos automotores y motocicletas"]
[4631,"Comercio al por mayor de productos alimenticios",6,"comercio al por mayor y al por menor; reparación de vehículos automotores y motocicletas"]
[4632,"Comercio al por mayor de bebidas y tabaco",6,"comercio al por mayor y al por menor; reparación de vehículos automotores y motocicletas"]
[4641,"Comercio al por mayor de productos textiles, productos confeccionados para uso doméstico",6,"comercio al por mayor y al por menor; reparación de vehículos automotores y motocicletas"]
[4642,"Comercio al por mayor de prendas de vestir",6,"comercio al por mayor y al por menor; reparación de vehículos automotores y motocicletas"]
[4643,"Comercio al por mayor de calzado",6,"comercio al por mayor y al por menor; reparación de vehículos automotores y motocicletas"]
[4644,"Comercio al por mayor de aparatos y equipo de uso doméstico",6,"comercio al por mayor y al por menor; reparación de vehículos automotores y motocicletas"]
[4645,"Comercio al por mayor de productos farmacéuticos, medicinales, cosméticos y de tocador",6,"comercio al por mayor y al por menor; reparación de vehículos automotores y motocicletas"]
[4649,"Comercio al por mayor de otros utensilios domésticos n.c.p.",6,"comercio al por mayor y al por menor; reparación de vehículos automotores y motocicletas"]
[4651,"Comercio al por mayor de computadores, equipo periférico y programas de informática",6,"comercio al por mayor y al por menor; reparación de vehículos automotores y motocicletas"]
[4652,"Comercio al por mayor de equipo, partes y piezas electrónicos y de telecomunicaciones",6,"comercio al por mayor y al por menor; reparación de vehículos automotores y motocicletas"]
[4653,"Comercio al por mayor de maquinaria y equipo agropecuarios",6,"comercio al por mayor y al por menor; reparación de vehículos automotores y motocicletas"]
[4659,"Comercio al por mayor de otros tipos de maquinaria y equipo n.c.p.",6,"comercio al por mayor y al por menor; reparación de vehículos automotores y motocicletas"]
[4661,"Comercio al por mayor de combustibles sólidos, líquidos, gaseosos y productos conexos",6,"comercio al por mayor y al por menor; reparación de vehículos automotores y motocicletas"]
[4662,"Comercio al por mayor de metales y productos metalíferos",6,"comercio al por mayor y al por menor; reparación de vehículos automotores y motocicletas"]
[4663,"Comercio al por mayor de materiales de construcción, artículos de ferretería, pinturas, productos de vidrio, equipo y materiales de fontanería y calefacción",6,"comercio al por mayor y al por menor; reparación de vehículos automotores y motocicletas"]
[4664,"Comercio al por mayor de productos químicos básicos, cauchos y plásticos en formas primarias y productos químicos de uso agropecuario",6,"comercio al por mayor y al por menor; reparación de vehículos automotores y motocicletas"]
[4665,"Comercio al por mayor de desperdicios, desechos y chatarra",6,"comercio al por mayor y al por menor; reparación de vehículos automotores y motocicletas"]
[4669,"Comercio al por mayor de otros productos n.c.p.",6,"comercio al por mayor y al por menor; reparación de vehículos automotores y motocicletas"]
[4690,"Comercio al por mayor no especializado",6,"comercio al por mayor y al por menor; reparación de vehículos automotores y motocicletas"]
[4711,"Comercio al por menor en establecimientos no especializados con surtido compuesto principalmente por alimentos, bebidas o tabaco",6,"comercio al por mayor y al por menor; reparación de vehículos automotores y motocicletas"]
[4719,"Comercio al por menor en establecimientos no especializados, con surtido compuesto principalmente por productos diferentes de alimentos (víveres en general), bebidas y tabaco",6,"comercio al por mayor y al por menor; reparación de vehículos automotores y motocicletas"]
[4721,"Comercio al por menor de productos agrícolas para el consumo en establecimientos especializados",6,"comercio al por mayor y al por menor; reparación de vehículos automotores y motocicletas"]
[4722,"Comercio al por menor de leche, productos lácteos y huevos, en establecimientos especializados",6,"comercio al por mayor y al por menor; reparación de vehículos automotores y motocicletas"]
[4723,"Comercio al por menor de carnes (incluye aves de corral), productos cárnicos, pescados y productos de mar, en establecimientos especializados",6,"comercio al por mayor y al por menor; reparación de vehículos automotores y motocicletas"]
[4724,"Comercio al por menor de bebidas y productos del tabaco, en establecimientos especializados",6,"comercio al por mayor y al por menor; reparación de vehículos automotores y motocicletas"]
[4729,"Comercio al por menor de otros productos alimenticios n.c.p., en establecimientos especializados",6,"comercio al por mayor y al por menor; reparación de vehículos automotores y motocicletas"]
[4731,"Comercio al por menor de combustible para automotores",6,"comercio al por mayor y al por menor; reparación de vehículos automotores y motocicletas"]
[4732,"Comercio al por menor de lubricantes (aceites, grasas), aditivos y productos de limpieza para vehículos automotores",6,"comercio al por mayor y al por menor; reparación de vehículos automotores y motocicletas"]
[4741,"Comercio al por menor de computadores, equipos periféricos, programas de informática y equipos de telecomunicaciones en establecimientos especializados",6,"comercio al por mayor y al por menor; reparación de vehículos automotores y motocicletas"]
[4742,"Comercio al por menor de equipos y aparatos de sonido y de video, en establecimientos especializados",6,"comercio al por mayor y al por menor; reparación de vehículos automotores y motocicletas"]
[4751,"Comercio al por menor de productos textiles en establecimientos especializados",6,"comercio al por mayor y al por menor; reparación de vehículos automotores y motocicletas"]
[4752,"Comercio al por menor de artículos de ferretería, pinturas y productos de vidrio en establecimientos especializados",6,"comercio al por mayor y al por menor; reparación de vehículos automotores y motocicletas"]
[4753,"Comercio al por menor de tapices, alfombras y cubrimientos para paredes y pisos en establecimientos especializados",6,"comercio al por mayor y al por menor; reparación de vehículos automotores y motocicletas"]
[4754,"Comercio al por menor de electrodomésticos y gasodomésticos de uso doméstico, muebles y equipos de iluminación",6,"comercio al por mayor y al por menor; reparación de vehículos automotores y motocicletas"]
[4755,"Comercio al por menor de artículos y utensilios de uso doméstico",6,"comercio al por mayor y al por menor; reparación de vehículos automotores y motocicletas"]
[4759,"Comercio al por menor de otros artículos domésticos en establecimientos especializados",6,"comercio al por mayor y al por menor; reparación de vehículos automotores y motocicletas"]
[4761,"Comercio al por menor de libros, periódicos, materiales y artículos de papelería y escritorio, en establecimientos especializados",6,"comercio al por mayor y al por menor; reparación de vehículos automotores y motocicletas"]
[4762,"Comercio al por menor de artículos deportivos, en establecimientos especializados",6,"comercio al por mayor y al por menor; reparación de vehículos automotores y motocicletas"]
[4769,"Comercio al por menor de otros artículos culturales y de entretenimiento n.c.p. en establecimientos especializados",6,"comercio al por mayor y al por menor; reparación de vehículos automotores y motocicletas"]
[4771,"Comercio al por menor de prendas de vestir y sus accesorios (incluye artículos de piel) en establecimientos especializados",6,"comercio al por mayor y al por menor; reparación de vehículos automotores y motocicletas"]
[4772,"Comercio al por menor de todo tipo de calzado y artículos de cuero y sucedáneos del cuero en establecimientos especializados.",6,"comercio al por mayor y al por menor; reparación de vehículos automotores y motocicletas"]
[4773,"Comercio al por menor de productos farmacéuticos y medicinales, cosméticos y artículos de tocador en establecimientos especializados",6,"comercio al por mayor y al por menor; reparación de vehículos automotores y motocicletas"]
[4774,"Comercio al por menor de otros productos nuevos en establecimientos especializados",6,"comercio al por mayor y al por menor; reparación de vehículos automotores y motocicletas"]
[4775,"Comercio al por menor de artículos de segunda mano",6,"comercio al por mayor y al por menor; reparación de vehículos automotores y motocicletas"]
[4781,"Comercio al por menor de alimentos, bebidas y tabaco, en puestos de venta móviles",6,"comercio al por mayor y al por menor; reparación de vehículos automotores y motocicletas"]
[4782,"Comercio al por menor de productos textiles, prendas de vestir y calzado, en puestos de venta móviles",6,"comercio al por mayor y al por menor; reparación de vehículos automotores y motocicletas"]
[4789,"Comercio al por menor de otros productos en puestos de venta móviles",6,"comercio al por mayor y al por menor; reparación de vehículos automotores y motocicletas"]
[4791,"Comercio al por menor realizado a través de Internet",6,"comercio al por mayor y al por menor; reparación de vehículos automotores y motocicletas"]
[4792,"Comercio al por menor realizado a través de casas de venta o por correo",6,"comercio al por mayor y al por menor; reparación de vehículos automotores y motocicletas"]
[4799,"Otros tipos de comercio al por menor no realizado en establecimientos, puestos de venta o mercados.",6,"comercio al por mayor y al por menor; reparación de vehículos automotores y motocicletas"]
[4911,"Transporte férreo de pasajeros",7,"transporte y almacenamiento"]
[4912,"Transporte férreo de carga",7,"transporte y almacenamiento"]
[4921,"Transporte de pasajeros",7,"transporte y almacenamiento"]
[4922,"Transporte mixto",7,"transporte y almacenamiento"]
[4923,"Transporte de carga por carretera",7,"transporte y almacenamiento"]
[4930,"Transporte por tuberías",7,"transporte y almacenamiento"]
[5011,"Transporte de pasajeros marítimo y de cabotaje",7,"transporte y almacenamiento"]
[5012,"Transporte de carga marítimo y de cabotaje",7,"transporte y almacenamiento"]
[5021,"Transporte fluvial de pasajeros",7,"transporte y almacenamiento"]
[5022,"Transporte fluvial de carga",7,"transporte y almacenamiento"]
[5111,"Transporte aéreo nacional de pasajeros",7,"transporte y almacenamiento"]
[5112,"Transporte aéreo internacional de pasajeros",7,"transporte y almacenamiento"]
[5121,"Transporte aéreo nacional de carga",7,"transporte y almacenamiento"]
[5122,"Transporte aéreo internacional de carga",7,"transporte y almacenamiento"]
[5210,"Almacenamiento y depósito",7,"transporte y almacenamiento"]
[5221,"Actividades de estaciones, vías y servicios complementarios para el transporte terrestre",7,"transporte y almacenamiento"]
[5222,"Actividades de puertos y servicios complementarios para el transporte acuático",7,"transporte y almacenamiento"]
[5223,"Actividades de aeropuertos, servicios de navegación aérea y demás actividades conexas al transporte aéreo",7,"transporte y almacenamiento"]
[5224,"Manipulación de carga",7,"transporte y almacenamiento"]
[5229,"Otras actividades complementarias al transporte",7,"transporte y almacenamiento"]
[5310,"Actividades postales nacionales",7,"transporte y almacenamiento"]
[5320,"Actividades de mensajería",7,"transporte y almacenamiento"]
[5511,"Alojamiento en hoteles",8,"alojamiento y servicios de comida"]
[5512,"Alojamiento en apartahoteles",8,"alojamiento y servicios de comida"]
[5513,"Alojamiento en centros vacacionales",8,"alojamiento y servicios de comida"]
[5514,"Alojamiento rural",8,"alojamiento y servicios de comida"]
[5519,"Otros tipos de alojamientos para visitantes",8,"alojamiento y servicios de comida"]
[5520,"Actividades de zonas de camping y parques para vehículos recreacionales",8,"alojamiento y servicios de comida"]
[5530,"Servicio por horas",8,"alojamiento y servicios de comida"]
[5590,"Otros tipos de alojamiento n.c.p.",8,"alojamiento y servicios de comida"]
[5611,"Expendio a la mesa de comidas preparadas",8,"alojamiento y servicios de comida"]
[5612,"Expendio por autoservicio de comidas preparadas",8,"alojamiento y servicios de comida"]
[5613,"Expendio de comidas preparadas en cafeterías",8,"alojamiento y servicios de comida"]
[5619,"Otros tipos de expendio de comidas preparadas n.c.p.",8,"alojamiento y servicios de comida"]
[5621,"Catering para eventos",8,"alojamiento y servicios de comida"]
[5629,"Actividades de otros servicios de comidas",8,"alojamiento y servicios de comida"]
[5630,"Expendio de bebidas alcohólicas para el consumo dentro del establecimiento",8,"alojamiento y servicios de comida"]
[5811,"Edición de libros",9,"información y comunicaciones"]
[5812,"Edición de directorios y listas de correo",9,"información y comunicaciones"]
[5813,"Edición de periódicos, revistas y otras publicaciones periódicas",9,"información y comunicaciones"]
[5819,"Otros trabajos de edición",9,"información y comunicaciones"]
[5820,"Edición de programas de informática (software)",9,"información y comunicaciones"]
[5911,"Actividades de producción de películas cinematográficas, videos, programas, anuncios y comerciales de televisión",9,"información y comunicaciones"]
[5912,"Actividades de posproducción de películas cinematográficas, videos, programas, anuncios y comerciales de televisión",9,"información y comunicaciones"]
[5913,"Actividades de distribución de películas cinematográficas, videos, programas, anuncios y comerciales de televisión",9,"información y comunicaciones"]
[5914,"Actividades de exhibición de películas cinematográficas y videos",9,"información y comunicaciones"]
[5920,"Actividades de grabación de sonido y edición de música",9,"información y comunicaciones"]
[6010,"Actividades de programación y transmisión en el servicio de radiodifusión sonora",9,"información y comunicaciones"]
[6020,"Actividades de programación y transmisión de televisión",9,"información y comunicaciones"]
[6110,"Actividades de telecomunicaciones alámbricas",9,"información y comunicaciones"]
[6120,"Actividades de telecomunicaciones inalámbricas",9,"información y comunicaciones"]
[6130,"Actividades de telecomunicación satelital",9,"información y comunicaciones"]
[6190,"Otras actividades de telecomunicaciones",9,"información y comunicaciones"]
[6201,"Actividades de desarrollo de sistemas informáticos (planificación, análisis, diseño, programación, pruebas)",9,"información y comunicaciones"]
[6202,"Actividades de consultoría informática y actividades de administración de instalaciones informáticas",9,"información y comunicaciones"]
[6209,"Otras actividades de tecnologías de información y actividades de servicios informáticos",9,"información y comunicaciones"]
[6311,"Procesamiento de datos, alojamiento (hosting) y actividades relacionadas",9,"información y comunicaciones"]
[6312,"Portales web",9,"información y comunicaciones"]
[6391,"Actividades de agencias de noticias",9,"información y comunicaciones"]
[6399,"Otras actividades de servicio de información n.c.p.",9,"información y comunicaciones"]
[6411,"Banco Central",10,"actividades financieras y de seguros"]
[6412,"Bancos comerciales",10,"actividades financieras y de seguros"]
[6421,"Actividades de las corporaciones financieras",10,"actividades financieras y de seguros"]
[6422,"Actividades de las compañías de financiamiento",10,"actividades financieras y de seguros"]
[6423,"Banca de segundo piso",10,"actividades financieras y de seguros"]
[6424,"Actividades de las cooperativas financieras",10,"actividades financieras y de seguros"]
[6431,"Fideicomisos, fondos y entidades financieras similares",10,"actividades financieras y de seguros"]
[6432,"Fondos de cesantías",10,"actividades financieras y de seguros"]
[6491,"Leasing financiero (arrendamiento financiero)",10,"actividades financieras y de seguros"]
[6492,"Actividades financieras de fondos de empleados y otras formas asociativas del sector solidario",10,"actividades financieras y de seguros"]
[6493,"Actividades de compra de cartera o factoring",10,"actividades financieras y de seguros"]
[6494,"Otras actividades de distribución de fondos",10,"actividades financieras y de seguros"]
[6495,"Instituciones especiales oficiales",10,"actividades financieras y de seguros"]
[6499,"Otras actividades de servicio financiero, excepto las de seguros y pensiones n.c.p.",10,"actividades financieras y de seguros"]
[6511,"Seguros generales",10,"actividades financieras y de seguros"]
[6512,"Seguros de vida",10,"actividades financieras y de seguros"]
[6513,"Reaseguros",10,"actividades financieras y de seguros"]
[6514,"Capitalización",10,"actividades financieras y de seguros"]
[6521,"Servicios de seguros sociales de salud",10,"actividades financieras y de seguros"]
[6522,"Servicios de seguros sociales de riesgos profesionales",10,"actividades financieras y de seguros"]
[6531,"Régimen de prima media con prestación definida (RPM)",10,"actividades financieras y de seguros"]
[6532,"Régimen de ahorro individual (RAI)",10,"actividades financieras y de seguros"]
[6611,"Administración de mercados financieros",10,"actividades financieras y de seguros"]
[6612,"Corretaje de valores y de contratos de productos básicos",10,"actividades financieras y de seguros"]
[6613,"Otras actividades relacionadas con el mercado de valores",10,"actividades financieras y de seguros"]
[6614,"Actividades de las casas de cambio",10,"actividades financieras y de seguros"]
[6615,"Actividades de los profesionales de compra y venta de divisas",10,"actividades financieras y de seguros"]
[6619,"Otras actividades auxiliares de las actividades de servicios financieros n.c.p.",10,"actividades financieras y de seguros"]
[6621,"Actividades de agentes y corredores de seguros",10,"actividades financieras y de seguros"]
[6629,"Evaluación de riesgos y daños, y otras actividades de servicios auxiliares",10,"actividades financieras y de seguros"]
[6630,"Actividades de administración de fondos",10,"actividades financieras y de seguros"]
[6810,"Actividades inmobiliarias realizadas con bienes propios o arrendados",11,"actividades inmobiliarias"]
[6820,"Actividades inmobiliarias realizadas a cambio de una retribución o por contrata",11,"actividades inmobiliarias"]
[6910,"Actividades jurídicas",11,"actividades inmobiliarias"]
[6920,"Actividades de contabilidad, teneduría de libros, auditoría financiera y asesoría tributaria",12,"actividades profesionales, científicas y técnicas"]
[7010,"Actividades de administración empresarial",12,"actividades profesionales, científicas y técnicas"]
[7020,"Actividades de consultaría de gestión",12,"actividades profesionales, científicas y técnicas"]
[7110,"Actividades de arquitectura e ingeniería y otras actividades conexas de consultoría técnica",12,"actividades profesionales, científicas y técnicas"]
[7120,"Ensayos y análisis técnicos",12,"actividades profesionales, científicas y técnicas"]
[7210,"Investigaciones y desarrollo experimental en el campo de las ciencias naturales y la ingeniería",12,"actividades profesionales, científicas y técnicas"]
[7220,"Investigaciones y desarrollo experimental en el campo de las ciencias sociales y las humanidades",12,"actividades profesionales, científicas y técnicas"]
[7310,"Publicidad",12,"actividades profesionales, científicas y técnicas"]
[7320,"Estudios de mercado y realización de encuestas de opinión pública",12,"actividades profesionales, científicas y técnicas"]
[7410,"Actividades especializadas de diseño",12,"actividades profesionales, científicas y técnicas"]
[7420,"Actividades de fotografía",12,"actividades profesionales, científicas y técnicas"]
[7490,"Otras actividades profesionales, científicas y técnicas n.c.p.",12,"actividades profesionales, científicas y técnicas"]
[7500,"Actividades veterinarias",12,"actividades profesionales, científicas y técnicas"]
[7710,"Alquiler y arrendamiento de vehículos automotores",13,"actividades de servicios administrativos y de apoyo"]
[7721,"Alquiler y arrendamiento de equipo recreativo y deportivo",13,"actividades de servicios administrativos y de apoyo"]
[7722,"Alquiler de videos y discos",13,"actividades de servicios administrativos y de apoyo"]
[7729,"Alquiler y arrendamiento de otros efectos personales y enseres domésticos n.c.p.",13,"actividades de servicios administrativos y de apoyo"]
[7730,"Alquiler y arrendamiento de otros tipos de maquinaria, equipo y bienes tangibles n.c.p.",13,"actividades de servicios administrativos y de apoyo"]
[7740,"Arrendamiento de propiedad intelectual y productos similares, excepto obras protegidas por derechos de autor",13,"actividades de servicios administrativos y de apoyo"]
[7810,"Actividades de agencias de empleo",13,"actividades de servicios administrativos y de apoyo"]
[7820,"Actividades de agencias de empleo temporal",13,"actividades de servicios administrativos y de apoyo"]
[7830,"Otras actividades de suministro de recurso humano",13,"actividades de servicios administrativos y de apoyo"]
[7911,"Actividades de las agencias de viaje",13,"actividades de servicios administrativos y de apoyo"]
[7912,"Actividades de operadores turísticos",13,"actividades de servicios administrativos y de apoyo"]
[7990,"Otros servicios de reserva y actividades relacionadas",13,"actividades de servicios administrativos y de apoyo"]
[8010,"Actividades de seguridad privada",13,"actividades de servicios administrativos y de apoyo"]
[8020,"Actividades de servicios de sistemas de seguridad",13,"actividades de servicios administrativos y de apoyo"]
[8030,"Actividades de detectives e investigadores privados",13,"actividades de servicios administrativos y de apoyo"]
[8110,"Actividades combinadas de apoyo a instalaciones",13,"actividades de servicios administrativos y de apoyo"]
[8121,"Limpieza general interior de edificios",13,"actividades de servicios administrativos y de apoyo"]
[8129,"Otras actividades de limpieza de edificios e instalaciones industriales",13,"actividades de servicios administrativos y de apoyo"]
[8130,"Actividades de paisajismo y servicios de mantenimiento conexos",13,"actividades de servicios administrativos y de apoyo"]
[8211,"Actividades combinadas de servicios administrativos de oficina",13,"actividades de servicios administrativos y de apoyo"]
[8219,"Fotocopiado, preparación de documentos y otras actividades especializadas de apoyo a oficina",13,"actividades de servicios administrativos y de apoyo"]
[8220,"Actividades de centros de llamadas (Call center)",13,"actividades de servicios administrativos y de apoyo"]
[8230,"Organización de convenciones y eventos comerciales",13,"actividades de servicios administrativos y de apoyo"]
[8291,"Actividades de agencias de cobranza y oficinas de calificación crediticia",13,"actividades de servicios administrativos y de apoyo"]
[8292,"Actividades de envase y empaque",13,"actividades de servicios administrativos y de apoyo"]
[8299,"Otras actividades de servicio de apoyo a las empresas n.c.p.",13,"actividades de servicios administrativos y de apoyo"]
[8411,"Actividades legislativas de la administración pública",14,"administración pública y defensa; planes de seguridad social de afiliación obligatoria"]
[8412,"Actividades ejecutivas de la administración pública",14,"administración pública y defensa; planes de seguridad social de afiliación obligatoria"]
[8413,"Regulación de las actividades de organismos que prestan servicios de salud, educativos, culturales y otros servicios sociales, excepto servicios de seguridad social",14,"administración pública y defensa; planes de seguridad social de afiliación obligatoria"]
[8414,"Actividades reguladoras y facilitadoras de la actividad económica",14,"administración pública y defensa; planes de seguridad social de afiliación obligatoria"]
[8415,"Actividades de los otros órganos de control",14,"administración pública y defensa; planes de seguridad social de afiliación obligatoria"]
[8421,"Relaciones exteriores",14,"administración pública y defensa; planes de seguridad social de afiliación obligatoria"]
[8422,"Actividades de defensa",14,"administración pública y defensa; planes de seguridad social de afiliación obligatoria"]
[8423,"Orden público y actividades de seguridad",14,"administración pública y defensa; planes de seguridad social de afiliación obligatoria"]
[8424,"Administración de justicia",14,"administración pública y defensa; planes de seguridad social de afiliación obligatoria"]
[8430,"Actividades de planes de seguridad social de afiliación obligatoria",14,"administración pública y defensa; planes de seguridad social de afiliación obligatoria"]
[8511,"Educación de la primera infancia",15,"educación"]
[8512,"Educación preescolar",15,"educación"]
[8513,"Educación básica primaria",15,"educación"]
[8521,"Educación básica secundaria",15,"educación"]
[8522,"Educación media académica",15,"educación"]
[8523,"Educación media técnica y de formación laboral",15,"educación"]
[8530,"Establecimientos que combinan diferentes niveles de educación",15,"educación"]
[8541,"Educación técnica profesional",15,"educación"]
[8542,"Educación tecnológica",15,"educación"]
[8543,"Educación de instituciones universitarias o de escuelas tecnológicas",15,"educación"]
[8544,"Educación de universidades",15,"educación"]
[8551,"Formación académica no formal",15,"educación"]
[8552,"Enseñanza deportiva y recreativa",15,"educación"]
[8553,"Enseñanza cultural",15,"educación"]
[8559,"Otros tipos de educación n.c.p.",15,"educación"]
[8560,"Actividades de apoyo a la educación",15,"educación"]
[8610,"Actividades de hospitales y clínicas, con internación",16,"actividades de atención de la salud humana y de asistencia social"]
[8621,"Actividades de la práctica médica, sin internación",16,"actividades de atención de la salud humana y de asistencia social"]
[8622,"Actividades de la práctica odontológica",16,"actividades de atención de la salud humana y de asistencia social"]
[8691,"Actividades de apoyo diagnóstico",16,"actividades de atención de la salud humana y de asistencia social"]
[8692,"Actividades de apoyo terapéutico",16,"actividades de atención de la salud humana y de asistencia social"]
[8699,"Otras actividades de atención de la salud humana",16,"actividades de atención de la salud humana y de asistencia social"]
[8710,"Actividades de atención residencial medicalizada de tipo general",16,"actividades de atención de la salud humana y de asistencia social"]
[8720,"Actividades de atención residencial, para el cuidado de pacientes con retardo mental, enfermedad mental y consumo de sustancias psicoactivas",16,"actividades de atención de la salud humana y de asistencia social"]
[8730,"Actividades de atención en instituciones para el cuidado de personas mayores y/o discapacitadas",16,"actividades de atención de la salud humana y de asistencia social"]
[8790,"Otras actividades de atención en instituciones con alojamiento",16,"actividades de atención de la salud humana y de asistencia social"]
[8810,"Actividades de asistencia social sin alojamiento para personas mayores y discapacitadas",16,"actividades de atención de la salud humana y de asistencia social"]
[8890,"Otras actividades de asistencia social sin alojamiento",16,"actividades de atención de la salud humana y de asistencia social"]
[9001,"Creación literaria",17,"actividades artísticas, de entretenimiento y recreación"]
[9002,"Creación musical",17,"actividades artísticas, de entretenimiento y recreación"]
[9003,"Creación teatral",17,"actividades artísticas, de entretenimiento y recreación"]
[9004,"Creación audiovisual",17,"actividades artísticas, de entretenimiento y recreación"]
[9005,"Artes plásticas y visuales",17,"actividades artísticas, de entretenimiento y recreación"]
[9006,"Actividades teatrales",17,"actividades artísticas, de entretenimiento y recreación"]
[9007,"Actividades de espectáculos musicales en vivo",17,"actividades artísticas, de entretenimiento y recreación"]
[9008,"Otras actividades de espectáculos en vivo",17,"actividades artísticas, de entretenimiento y recreación"]
[9101,"Actividades de bibliotecas y archivos",17,"actividades artísticas, de entretenimiento y recreación"]
[9102,"Actividades y funcionamiento de museos, conservación de edificios y sitios históricos",17,"actividades artísticas, de entretenimiento y recreación"]
[9103,"Actividades de jardines botánicos, zoológicos y reservas naturales",17,"actividades artísticas, de entretenimiento y recreación"]
[9200,"Actividades de juegos de azar y apuestas",17,"actividades artísticas, de entretenimiento y recreación"]
[9311,"Gestión de instalaciones deportivas",17,"actividades artísticas, de entretenimiento y recreación"]
[9312,"Actividades de clubes deportivos",17,"actividades artísticas, de entretenimiento y recreación"]
[9319,"Otras actividades deportivas",17,"actividades artísticas, de entretenimiento y recreación"]
[9321,"Actividades de parques de atracciones y parques temáticos",17,"actividades artísticas, de entretenimiento y recreación"]
[9329,"Otras actividades recreativas y de esparcimiento n.c.p.",17,"actividades artísticas, de entretenimiento y recreación"]
[9411,"Actividades de asociaciones empresariales y de empleadores",18,"otras actividades de servicios"]
[9412,"Actividades de asociaciones profesionales",18,"otras actividades de servicios"]
[9420,"Actividades de sindicatos de empleados",18,"otras actividades de servicios"]
[9491,"Actividades de asociaciones religiosas",18,"otras actividades de servicios"]
[9492,"Actividades de asociaciones políticas",18,"otras actividades de servicios"]
[9499,"Actividades de otras asociaciones n.c.p.",18,"otras actividades de servicios"]
[9511,"Mantenimiento y reparación de computadores y de equipo periférico",18,"otras actividades de servicios"]
[9512,"Mantenimiento y reparación de equipos de comunicación",18,"otras actividades de servicios"]
[9521,"Mantenimiento y reparación de aparatos electrónicos de consumo",18,"otras actividades de servicios"]
[9522,"Mantenimiento y reparación de aparatos y equipos domésticos y de jardinería",18,"otras actividades de servicios"]
[9523,"Reparación de calzado y artículos de cuero",18,"otras actividades de servicios"]
[9524,"Reparación de muebles y accesorios para el hogar",18,"otras actividades de servicios"]
[9529,"Mantenimiento y reparación de otros efectos personales y enseres domésticos",18,"otras actividades de servicios"]
[9601,"Lavado y limpieza, incluso la limpieza en seco, de productos textiles y de piel",18,"otras actividades de servicios"]
[9602,"Peluquería y otros tratamientos de belleza",18,"otras actividades de servicios"]
[9603,"Pompas fúnebres y actividades relacionadas",18,"otras actividades de servicios"]
[9609,"Otras actividades de servicios personales n.c.p.",18,"otras actividades de servicios"]
[9700,"Actividades de los hogares individuales como empleadores de personal doméstico",19,"actividades de los hogares individuales en calidad de empleadores; actividades no diferenciadas de los hogares individuales como productores de bienes y servicios para uso propio. "]
[9810,"Actividades no diferenciadas de los hogares individuales como productores de bienes para uso propio",19,"actividades de los hogares individuales en calidad de empleadores; actividades no diferenciadas de los hogares individuales como productores de bienes y servicios para uso propio. "]
[9820,"Actividades no diferenciadas de los hogares individuales como productores de servicios para uso propio",19,"actividades de los hogares individuales en calidad de empleadores; actividades no diferenciadas de los hogares individuales como productores de bienes y servicios para uso propio. "]
[9900,"Actividades de organizaciones y entidades extraterritoriales",20,"actividades de organizaciones y entidades extraterritoriales"]
[10,"Empleado"]
[20,"Pensionado"]
[90,"Rentista de capital"]

{"sheet":"Departamentos_y_municipios_de_C","index":1,"n_rows":1124,"n_cols":3,"rows_kept":1124,"cut":false,"hidden":true,"merged":[]}
["DPTO","DEPARTAMENTO","MUNICIPIO"]
["Amazonas","Amazonas","El Encanto"]
["Antioquia","Amazonas","La Chorrera"]
["Arauca","Amazonas","La Pedrera"]
["San_Andrés","Amazonas","La Victoria"]
["Atlántico","Amazonas","Leticia"]
["Bogotá","Amazonas","Miriti Paraná"]
["Bolívar","Amazonas","Puerto Alegría"]
["Boyacá","Amazonas","Puerto Arica"]
["Caldas","Amazonas","Puerto Nariño"]
["Caquetá","Amazonas","Puerto Santander"]
["Casanare","Amazonas","Tarapacá"]
["Cauca","Antioquia","Abejorral"]
["Cesar","Antioquia","Abriaquí"]
["Chocó","Antioquia","Alejandría"]
["Córdoba","Antioquia","Amagá"]
["Cundinamarca","Antioquia","Amalfi"]
["Guainía","Antioquia","Andes"]
["Guaviare","Antioquia","Angelópolis"]
["Huila","Antioquia","Angostura"]
["La_Guajira","Antioquia","Anorí"]
["Magdalena","Antioquia","Anza"]
["Meta","Antioquia","Apartadó"]
["Nariño","Antioquia","Arboletes"]
["Norte_de_Santander","Antioquia","Argelia"]
["Putumayo","Antioquia","Armenia"]
["Quindío","Antioquia","Barbosa"]
["Risaralda","Antioquia","Bello"]
["Santander","Antioquia","Belmira"]
["Sucre","Antioquia","Betania"]
["Tolima","Antioquia","Betulia"]
["Valle_del_Cauca","Antioquia","Briceño"]
["Vaupés","Antioquia","Buriticá"]
["Vichada","Antioquia","Cáceres"]
["Otro","Antioquia","Caicedo"]
[null,"Antioquia","Caldas"]
[null,"Antioquia","Campamento"]
[null,"Antioquia","Cañasgordas"]
[null,"Antioquia","Caracolí"]
[null,"Antioquia","Caramanta"]
[null,"Antioquia","Carepa"]
[null,"Antioquia","Carolina"]
[null,"Antioquia","Caucasia"]
[null,"Antioquia","Chigorodó"]
[null,"Antioquia","Cisneros"]
[null,"Antioquia","Ciudad Bolívar"]
[null,"Antioquia","Cocorná"]
[null,"Antioquia","Concepción"]
[null,"Antioquia","Concordia"]
[null,"Antioquia","Copacabana"]
[null,"Antioquia","Dabeiba"]
[null,"Antioquia","Don Matías"]
[null,"Antioquia","Ebéjico"]
[null,"Antioquia","El Bagre"]
[null,"Antioquia","El Carmen de Viboral"]
[null,"Antioquia","El Santuario"]
[null,"Antioquia","Entrerrios"]
[null,"Antioquia","Envigado"]
[null,"Antioquia","Fredonia"]
[null,"Antioquia","Frontino"]
[null,"Antioquia","Giraldo"]
[null,"Antioquia","Girardota"]
[null,"Antioquia","Gómez Plata"]
[null,"Antioquia","Granada"]
[null,"Antioquia","Guadalupe"]
[null,"Antioquia","Guarne"]
[null,"Antioquia","Guatapé"]
[null,"Antioquia","Heliconia"]
[null,"Antioquia","Hispania"]
[null,"Antioquia","Itagui"]
[null,"Antioquia","Ituango"]
[null,"Antioquia","Jardín"]
[null,"Antioquia","Jericó"]
[null,"Antioquia","La Ceja"]
[null,"Antioquia","La Estrella"]
[null,"Antioquia","La Pintada"]
[null,"Antioquia","La Unión"]
[null,"Antioquia","Liborina"]
[null,"Antioquia","Maceo"]
[null,"Antioquia","Marinilla"]
[null,"Antioquia","Medellín"]
[null,"Antioquia","Montebello"]
[null,"Antioquia","Murindó"]
[null,"Antioquia","Mutatá"]
[null,"Antioquia","Nariño"]
[null,"Antioquia","Nechí"]
[null,"Antioquia","Necoclí"]
[null,"Antioquia","Olaya"]
[null,"Antioquia","Peñol"]
[null,"Antioquia","Peque"]
[null,"Antioquia","Pueblorrico"]
[null,"Antioquia","Puerto Berrío"]
[null,"Antioquia","Puerto Nare"]
[null,"Antioquia","Puerto Triunfo"]
[null,"Antioquia","Remedios"]
[null,"Antioquia","Retiro"]
[null,"Antioquia","Rionegro"]
[null,"Antioquia","Sabanalarga"]
[null,"Antioquia","Sabaneta"]
[null,"Antioquia","Salgar"]
[null,"Antioquia","San Andrés de Cuerquía"]
[null,"Antioquia","San Carlos"]
[null,"Antioquia","San Francisco"]
[null,"Antioquia","San Jerónimo"]
[null,"Antioquia","San José de La Montaña"]
[null,"Antioquia","San Juan de Urabá"]
[null,"Antioquia","San Luis"]
[null,"Antioquia","San Pedro"]
[null,"Antioquia","San Pedro de Uraba"]
[null,"Antioquia","San Rafael"]
[null,"Antioquia","San Roque"]
[null,"Antioquia","San Vicente"]
[null,"Antioquia","Santa Bárbara"]
[null,"Antioquia","Santa Rosa de Osos"]
[null,"Antioquia","Santafé de Antioquia"]
[null,"Antioquia","Santo Domingo"]
[null,"Antioquia","Segovia"]
[null,"Antioquia","Sonsón"]
[null,"Antioquia","Sopetrán"]
[null,"Antioquia","Támesis"]
[null,"Antioquia","Tarazá"]
[null,"Antioquia","Tarso"]
[null,"Antioquia","Titiribí"]
[null,"Antioquia","Toledo"]
[null,"Antioquia","Turbo"]
[null,"Antioquia","Uramita"]
[null,"Antioquia","Urrao"]
[null,"Antioquia","Valdivia"]
[null,"Antioquia","Valparaíso"]
[null,"Antioquia","Vegachí"]
[null,"Antioquia","Venecia"]
[null,"Antioquia","Vigía del Fuerte"]
[null,"Antioquia","Yalí"]
[null,"Antioquia","Yarumal"]
[null,"Antioquia","Yolombó"]
[null,"Antioquia","Yondó"]
[null,"Antioquia","Zaragoza"]
[null,"Arauca","Arauca"]
[null,"Arauca","Arauquita"]
[null,"Arauca","Cravo Norte"]
[null,"Arauca","Fortul"]
[null,"Arauca","Puerto Rondón"]
[null,"Arauca","Saravena"]
[null,"Arauca","Tame"]
[null,"San_Andrés","Providencia"]
[null,"San_Andrés","San Andrés"]
[null,"Atlántico","Baranoa"]
[null,"Atlántico","Barranquilla"]
[null,"Atlántico","Campo de La Cruz"]
[null,"Atlántico","Candelaria"]
[null,"Atlántico","Galapa"]
[null,"Atlántico","Juan de Acosta"]
[null,"Atlántico","Luruaco"]
[null,"Atlántico","Malambo"]
[null,"Atlántico","Manatí"]
[null,"Atlántico","Palmar de Varela"]
[null,"Atlántico","Piojó"]
[null,"Atlántico","Polonuevo"]
[null,"Atlántico","Ponedera"]
[null,"Atlántico","Puerto Colombia"]
[null,"Atlántico","Repelón"]
[null,"Atlántico","Sabanagrande"]
[null,"Atlántico","Sabanalarga"]
[null,"Atlántico","Santa Lucía"]
[null,"Atlántico","Santo Tomás"]
[null,"Atlántico","Soledad"]
[null,"Atlántico","Suan"]
[null,"Atlántico","Tubará"]
[null,"Atlántico","Usiacurí"]
[null,"Bogotá","Bogotá"]
[null,"Bolívar","Achí"]
[null,"Bolívar","Altos del Rosario"]
[null,"Bolívar","Arenal"]
[null,"Bolívar","Arjona"]
[null,"Bolívar","Arroyohondo"]
[null,"Bolívar","Barranco de Loba"]
[null,"Bolívar","Calamar"]
[null,"Bolívar","Cantagallo"]
[null,"Bolívar","Cartagena"]
[null,"Bolívar","Cicuco"]
[null,"Bolívar","Clemencia"]
[null,"Bolívar","Córdoba"]
[null,"Bolívar","El Carmen de Bolívar"]
[null,"Bolívar","El Guamo"]
[null,"Bolívar","El Peñón"]
[null,"Bolívar","Hatillo de Loba"]
[null,"Bolívar","Magangué"]
[null,"Bolívar","Mahates"]
[null,"Bolívar","Margarita"]
[null,"Bolívar","María la Baja"]
[null,"Bolívar","Mompós"]
[null,"Bolívar","Montecristo"]
[null,"Bolívar","Morales"]
[null,"Bolívar","Norosí"]
[null,"Bolívar","Pinillos"]
[null,"Bolívar","Regidor"]
[null,"Bolívar","Río Viejo"]
[null,"Bolívar","San Cristóbal"]
[null,"Bolívar","San Estanislao"]
[null,"Bolívar","San Fernando"]
[null,"Bolívar","San Jacinto"]
[null,"Bolívar","San Jacinto del Cauca"]
[null,"Bolívar","San Juan Nepomuceno"]
[null,"Bolívar","San Martín de Loba"]
[null,"Bolívar","San Pablo de Borbur"]
[null,"Bolívar","Santa Catalina"]
[null,"Bolívar","Santa Rosa"]
[null,"Bolívar","Santa Rosa del Sur"]
[null,"Bolívar","Simití"]
[null,"Bolívar","Soplaviento"]
[null,"Bolívar","Talaigua Nuevo"]
[null,"Bolívar","Tiquisio"]
[null,"Bolívar","Turbaco"]
[null,"Bolívar","Turbaná"]
[null,"Bolívar","Villanueva"]
[null,"Bolívar","Zambrano"]
[null,"Boyacá","Almeida"]
[null,"Boyacá","Aquitania"]
[null,"Boyacá","Arcabuco"]
[null,"Boyacá","Belén"]
[null,"Boyacá","Berbeo"]
[null,"Boyacá","Betéitiva"]
[null,"Boyacá","Boavita"]
[null,"Boyacá","Boyacá"]
[null,"Boyacá","Briceño"]
[null,"Boyacá","Buena Vista"]
[null,"Boyacá","Busbanzá"]
[null,"Boyacá","Caldas"]
[null,"Boyacá","Campohermoso"]
[null,"Boyacá","Cerinza"]
[null,"Boyacá","Chinavita"]
[null,"Boyacá","Chiquinquirá"]
[null,"Boyacá","Chíquiza"]
[null,"Boyacá","Chiscas"]
[null,"Boyacá","Chita"]
[null,"Boyacá","Chitaraque"]
[null,"Boyacá","Chivatá"]
[null,"Boyacá","Chivor"]
[null,"Boyacá","Ciénega"]
[null,"Boyacá","Cómbita"]
[null,"Boyacá","Coper"]
[null,"Boyacá","Corrales"]
[null,"Boyacá","Covarachía"]
[null,"Boyacá","Cubará"]
[null,"Boyacá","Cucaita"]
[null,"Boyacá","Cuítiva"]
[null,"Boyacá","Duitama"]
[null,"Boyacá","El Cocuy"]
[null,"Boyacá","El Espino"]
[null,"Boyacá","Firavitoba"]
[null,"Boyacá","Floresta"]
[null,"Boyacá","Gachantivá"]
[null,"Boyacá","Gameza"]
[null,"Boyacá","Garagoa"]
[null,"Boyacá","Guacamayas"]
[null,"Boyacá","Guateque"]
[null,"Boyacá","Guayatá"]
[null,"Boyacá","Güicán"]
[null,"Boyacá","Iza"]
[null,"Boyacá","Jenesano"]
[null,"Boyacá","Jericó"]
[null,"Boyacá","La Capilla"]
[null,"Boyacá","La Uvita"]
[null,"Boyacá","La Victoria"]
[null,"Boyacá","Labranzagrande"]
[null,"Boyacá","Macanal"]
[null,"Boyacá","Maripí"]
[null,"Boyacá","Miraflores"]
[null,"Boyacá","Mongua"]
[null,"Boyacá","Monguí"]
[null,"Boyacá","Moniquirá"]
[null,"Boyacá","Motavita"]
[null,"Boyacá","Muzo"]
[null,"Boyacá","Nobsa"]
[null,"Boyacá","Nuevo Colón"]
[null,"Boyacá","Oicatá"]
[null,"Boyacá","Otanche"]
[null,"Boyacá","Pachavita"]
[null,"Boyacá","Páez"]
[null,"Boyacá","Paipa"]
[null,"Boyacá","Pajarito"]
[null,"Boyacá","Panqueba"]
[null,"Boyacá","Pauna"]
[null,"Boyacá","Paya"]
[null,"Boyacá","Paz de Río"]
[null,"Boyacá","Pesca"]
[null,"Boyacá","Pisba"]
[null,"Boyacá","Puerto Boyacá"]
[null,"Boyacá","Quípama"]
[null,"Boyacá","Ramiriquí"]
[null,"Boyacá","Ráquira"]
[null,"Boyacá","Rondón"]
[null,"Boyacá","Saboyá"]
[null,"Boyacá","Sáchica"]
[null,"Boyacá","Samacá"]
[null,"Boyacá","San Eduardo"]
[null,"Boyacá","San José de Pare"]
[null,"Boyacá","San Luis de Gaceno"]
[null,"Boyacá","San Mateo"]
[null,"Boyacá","San Miguel de Sema"]
[null,"Boyacá","San Pablo de Borbur"]
[null,"Boyacá","Santa María"]
[null,"Boyacá","Santa Rosa de Viterbo"]
[null,"Boyacá","Santa Sofía"]
[null,"Boyacá","Santana"]
[null,"Boyacá","Sativanorte"]
[null,"Boyacá","Sativasur"]
[null,"Boyacá","Siachoque"]
[null,"Boyacá","Soatá"]
[null,"Boyacá","Socha"]
[null,"Boyacá","Socotá"]
[null,"Boyacá","Sogamoso"]
[null,"Boyacá","Somondoco"]
[null,"Boyacá","Sora"]
[null,"Boyacá","Soracá"]
[null,"Boyacá","Sotaquirá"]
[null,"Boyacá","Susacón"]
[null,"Boyacá","Sutamarchán"]
[null,"Boyacá","Sutatenza"]
[null,"Boyacá","Tasco"]
[null,"Boyacá","Tenza"]
[null,"Boyacá","Tibaná"]
[null,"Boyacá","Tibasosa"]
[null,"Boyacá","Tinjacá"]
[null,"Boyacá","Tipacoque"]
[null,"Boyacá","Toca"]
[null,"Boyacá","Togüí"]
[null,"Boyacá","Tópaga"]
[null,"Boyacá","Tota"]
[null,"Boyacá","Tunja"]
[null,"Boyacá","Tununguá"]
[null,"Boyacá","Turmequé"]
[null,"Boyacá","Tuta"]
[null,"Boyacá","Tutazá"]
[null,"Boyacá","Umbita"]
[null,"Boyacá","Ventaquemada"]
[null,"Boyacá","Villa de Leyva"]
[null,"Boyacá","Viracachá"]
[null,"Boyacá","Zetaquira"]
[null,"Caldas","Aguadas"]
[null,"Caldas","Anserma"]
[null,"Caldas","Aranzazu"]
[null,"Caldas","Belalcázar"]
[null,"Caldas","Chinchiná"]
[null,"Caldas","Filadelfia"]
[null,"Caldas","La Dorada"]
[null,"Caldas","La Merced"]
[null,"Caldas","Manizales"]
[null,"Caldas","Manzanares"]
[null,"Caldas","Marmato"]
[null,"Caldas","Marquetalia"]
[null,"Caldas","Marulanda"]
[null,"Caldas","Neira"]
[null,"Caldas","Norcasia"]
[null,"Caldas","Pácora"]
[null,"Caldas","Palestina"]
[null,"Caldas","Pensilvania"]
[null,"Caldas","Riosucio"]
[null,"Caldas","Risaralda"]
[null,"Caldas","Salamina"]
[null,"Caldas","Samaná"]
[null,"Caldas","San José"]
[null,"Caldas","Supía"]
[null,"Caldas","Victoria"]
[null,"Caldas","Villamaría"]
[null,"Caldas","Viterbo"]
[null,"Caquetá","Albania"]
[null,"Caquetá","Belén de Los Andaquies"]
[null,"Caquetá","Cartagena del Chairá"]
[null,"Caquetá","Curillo"]
[null,"Caquetá","El Doncello"]
[null,"Caquetá","El Paujil"]
[null,"Caquetá","Florencia"]
[null,"Caquetá","La Montañita"]
[null,"Caquetá","Milán"]
[null,"Caquetá","Morelia"]
[null,"Caquetá","Puerto Rico"]
[null,"Caquetá","San José del Fragua"]
[null,"Caquetá","San Vicente del Caguán"]
[null,"Caquetá","Solano"]
[null,"Caquetá","Solita"]
[null,"Caquetá","Valparaíso"]
[null,"Casanare","Aguazul"]
[null,"Casanare","Chámeza"]
[null,"Casanare","Hato Corozal"]
[null,"Casanare","La Salina"]
[null,"Casanare","Maní"]
[null,"Casanare","Monterrey"]
[null,"Casanare","Nunchía"]
[null,"Casanare","Orocué"]
[null,"Casanare","Paz de Ariporo"]
[null,"Casanare","Pore"]
[null,"Casanare","Recetor"]
[null,"Casanare","Sabanalarga"]
[null,"Casanare","Sácama"]
[null,"Casanare","San Luis de Gaceno"]
[null,"Casanare","Támara"]
[null,"Casanare","Tauramena"]
[null,"Casanare","Trinidad"]
[null,"Casanare","Villanueva"]
[null,"Casanare","Yopal"]
[null,"Cauca","Almaguer"]
[null,"Cauca","Argelia"]
[null,"Cauca","Balboa"]
[null,"Cauca","Bolívar"]
[null,"Cauca","Buenos Aires"]
[null,"Cauca","Cajibío"]
[null,"Cauca","Caldono"]
[null,"Cauca","Caloto"]
[null,"Cauca","Corinto"]
[null,"Cauca","El Tambo"]
[null,"Cauca","Florencia"]
[null,"Cauca","Guachené"]
[null,"Cauca","Guapi"]
[null,"Cauca","Inzá"]
[null,"Cauca","Jambaló"]
[null,"Cauca","La Sierra"]
[null,"Cauca","La Vega"]
[null,"Cauca","López"]
[null,"Cauca","Mercaderes"]
[null,"Cauca","Miranda"]
[null,"Cauca","Morales"]
[null,"Cauca","Padilla"]
[null,"Cauca","Páez"]
[null,"Cauca","Patía"]
[null,"Cauca","Piamonte"]
[null,"Cauca","Piendamó"]
[null,"Cauca","Popayán"]
[null,"Cauca","Puerto Tejada"]
[null,"Cauca","Puracé"]
[null,"Cauca","Rosas"]
[null,"Cauca","San Sebastián"]
[null,"Cauca","Santa Rosa"]
[null,"Cauca","Santander de Quilichao"]
[null,"Cauca","Silvia"]
[null,"Cauca","Sotara"]
[null,"Cauca","Suárez"]
[null,"Cauca","Sucre"]
[null,"Cauca","Timbío"]
[null,"Cauca","Timbiquí"]
[null,"Cauca","Toribio"]
[null,"Cauca","Totoró"]
[null,"Cauca","Villa Rica"]
[null,"Cesar","Aguachica"]
[null,"Cesar","Agustín Codazzi"]
[null,"Cesar","Astrea"]
[null,"Cesar","Becerril"]
[null,"Cesar","Bosconia"]
[null,"Cesar","Chimichagua"]
[null,"Cesar","Chiriguaná"]
[null,"Cesar","Curumaní"]
[null,"Cesar","El Copey"]
[null,"Cesar","El Paso"]
[null,"Cesar","Gamarra"]
[null,"Cesar","González"]
[null,"Cesar","La Gloria"]
[null,"Cesar","La Jagua de Ibirico"]
[null,"Cesar","La Paz"]
[null,"Cesar","Manaure"]
[null,"Cesar","Pailitas"]
[null,"Cesar","Pelaya"]
[null,"Cesar","Pueblo Bello"]
[null,"Cesar","Río de Oro"]
[null,"Cesar","San Alberto"]
[null,"Cesar","San Diego"]
[null,"Cesar","San Martín"]
[null,"Cesar","Tamalameque"]
[null,"Cesar","Valledupar"]
[null,"Chocó","Acandí"]
[null,"Chocó","Alto Baudo"]
[null,"Chocó","Atrato"]
[null,"Chocó","Bagadó"]
[null,"Chocó","Bahía Solano"]
[null,"Chocó","Bajo Baudó"]
[null,"Chocó","Belén de Bajira"]
[null,"Chocó","Bojaya"]
[null,"Chocó","Carmen del Darien"]
[null,"Chocó","Cértegui"]
[null,"Chocó","Condoto"]
[null,"Chocó","El Cantón del San Pablo"]
[null,"Chocó","El Carmen de Atrato"]
[null,"Chocó","El Litoral del San Juan"]
[null,"Chocó","Istmina"]
[null,"Chocó","Juradó"]
[null,"Chocó","Lloró"]
[null,"Chocó","Medio Atrato"]
[null,"Chocó","Medio Baudó"]
[null,"Chocó","Medio San Juan"]
[null,"Chocó","Nóvita"]
[null,"Chocó","Nuquí"]
[null,"Chocó","Quibdó"]
[null,"Chocó","Río Iro"]
[null,"Chocó","Río Quito"]
[null,"Chocó","Riosucio"]
[null,"Chocó","San José del Palmar"]
[null,"Chocó","Sipí"]
[null,"Chocó","Tadó"]
[null,"Chocó","Unguía"]
[null,"Chocó","Unión Panamericana"]
[null,"Córdoba","Ayapel"]
[null,"Córdoba","Buenavista"]
[null,"Córdoba","Canalete"]
[null,"Córdoba","Cereté"]
[null,"Córdoba","Chimá"]
[null,"Córdoba","Chinú"]
[null,"Córdoba","Ciénaga de Oro"]
[null,"Córdoba","Cotorra"]
[null,"Córdoba","La Apartada"]
[null,"Córdoba","Lorica"]
[null,"Córdoba","Los Córdobas"]
[null,"Córdoba","Momil"]
[null,"Córdoba","Montelíbano"]
[null,"Córdoba","Montería"]
[null,"Córdoba","Moñitos"]
[null,"Córdoba","Planeta Rica"]
[null,"Córdoba","Pueblo Nuevo"]
[null,"Córdoba","Puerto Escondido"]
[null,"Córdoba","Puerto Libertador"]
[null,"Córdoba","Purísima"]
[null,"Córdoba","Sahagún"]
[null,"Córdoba","San Andrés Sotavento"]
[null,"Córdoba","San Antero"]
[null,"Córdoba","San Bernardo del Viento"]
[null,"Córdoba","San Carlos"]
[null,"Córdoba","San José de Uré"]
[null,"Córdoba","San Pelayo"]
[null,"Córdoba","Tierralta"]
[null,"Córdoba","Tuchín"]
[null,"Córdoba","Valencia"]
[null,"Cundinamarca","Agua de Dios"]
[null,"Cundinamarca","Albán"]
[null,"Cundinamarca","Anapoima"]
[null,"Cundinamarca","Anolaima"]
[null,"Cundinamarca","Apulo"]
[null,"Cundinamarca","Arbeláez"]
[null,"Cundinamarca","Beltrán"]
[null,"Cundinamarca","Bituima"]
[null,"Cundinamarca","Bojacá"]
[null,"Cundinamarca","Cabrera"]
[null,"Cundinamarca","Cachipay"]
[null,"Cundinamarca","Cajicá"]
[null,"Cundinamarca","Caparrapí"]
[null,"Cundinamarca","Caqueza"]
[null,"Cundinamarca","Carmen de Carupa"]
[null,"Cundinamarca","Chaguaní"]
[null,"Cundinamarca","Chía"]
[null,"Cundinamarca","Chipaque"]
[null,"Cundinamarca","Choachí"]
[null,"Cundinamarca","Chocontá"]
[null,"Cundinamarca","Cogua"]
[null,"Cundinamarca","Cota"]
[null,"Cundinamarca","Cucunubá"]
[null,"Cundinamarca","El Colegio"]
[null,"Cundinamarca","El Peñón"]
[null,"Cundinamarca","El Rosal"]
[null,"Cundinamarca","Facatativá"]
[null,"Cundinamarca","Fomeque"]
[null,"Cundinamarca","Fosca"]
[null,"Cundinamarca","Funza"]
[null,"Cundinamarca","Fúquene"]
[null,"Cundinamarca","Fusagasugá"]
[null,"Cundinamarca","Gachala"]
[null,"Cundinamarca","Gachancipá"]
[null,"Cundinamarca","Gachetá"]
[null,"Cundinamarca","Gama"]
[null,"Cundinamarca","Girardot"]
[null,"Cundinamarca","Granada"]
[null,"Cundinamarca","Guachetá"]
[null,"Cundinamarca","Guaduas"]
[null,"Cundinamarca","Guasca"]
[null,"Cundinamarca","Guataquí"]
[null,"Cundinamarca","Guatavita"]
[null,"Cundinamarca","Guayabal de Siquima"]
[null,"Cundinamarca","Guayabetal"]
[null,"Cundinamarca","Gutiérrez"]
[null,"Cundinamarca","Jerusalén"]
[null,"Cundinamarca","Junín"]
[null,"Cundinamarca","La Calera"]
[null,"Cundinamarca","La Mesa"]
[null,"Cundinamarca","La Palma"]
[null,"Cundinamarca","La Peña"]
[null,"Cundinamarca","La Vega"]
[null,"Cundinamarca","Lenguazaque"]
[null,"Cundinamarca","Macheta"]
[null,"Cundinamarca","Madrid"]
[null,"Cundinamarca","Manta"]
[null,"Cundinamarca","Medina"]
[null,"Cundinamarca","Mosquera"]
[null,"Cundinamarca","Nariño"]
[null,"Cundinamarca","Nemocón"]
[null,"Cundinamarca","Nilo"]
[null,"Cundinamarca","Nimaima"]
[null,"Cundinamarca","Nocaima"]
[null,"Cundinamarca","Pacho"]
[null,"Cundinamarca","Paime"]
[null,"Cundinamarca","Pandi"]
[null,"Cundinamarca","Paratebueno"]
[null,"Cundinamarca","Pasca"]
[null,"Cundinamarca","Puerto Salgar"]
[null,"Cundinamarca","Pulí"]
[null,"Cundinamarca","Quebradanegra"]
[null,"Cundinamarca","Quetame"]
[null,"Cundinamarca","Quipile"]
[null,"Cundinamarca","Ricaurte"]
[null,"Cundinamarca","San Antonio del Tequendama"]
[null,"Cundinamarca","San Bernardo"]
[null,"Cundinamarca","San Cayetano"]
[null,"Cundinamarca","San Francisco"]
[null,"Cundinamarca","San Juan de Río Seco"]
[null,"Cundinamarca","Sasaima"]
[null,"Cundinamarca","Sesquilé"]
[null,"Cundinamarca","Sibaté"]
[null,"Cundinamarca","Silvania"]
[null,"Cundinamarca","Simijaca"]
[null,"Cundinamarca","Soacha"]
[null,"Cundinamarca","Sopó"]
[null,"Cundinamarca","Subachoque"]
[null,"Cundinamarca","Suesca"]
[null,"Cundinamarca","Supatá"]
[null,"Cundinamarca","Susa"]
[null,"Cundinamarca","Sutatausa"]
[null,"Cundinamarca","Tabio"]
[null,"Cundinamarca","Tausa"]
[null,"Cundinamarca","Tena"]
[null,"Cundinamarca","Tenjo"]
[null,"Cundinamarca","Tibacuy"]
[null,"Cundinamarca","Tibirita"]
[null,"Cundinamarca","Tocaima"]
[null,"Cundinamarca","Tocancipá"]
[null,"Cundinamarca","Topaipí"]
[null,"Cundinamarca","Ubalá"]
[null,"Cundinamarca","Ubaque"]
[null,"Cundinamarca","Une"]
[null,"Cundinamarca","Útica"]
[null,"Cundinamarca","Venecia"]
[null,"Cundinamarca","Vergara"]
[null,"Cundinamarca","Vianí"]
[null,"Cundinamarca","Villa de San Diego de Ubate"]
[null,"Cundinamarca","Villagómez"]
[null,"Cundinamarca","Villapinzón"]
[null,"Cundinamarca","Villeta"]
[null,"Cundinamarca","Viotá"]
[null,"Cundinamarca","Yacopí"]
[null,"Cundinamarca","Zipacón"]
[null,"Cundinamarca","Zipaquirá"]
[null,"Guainía","Barranco Minas"]
[null,"Guainía","Cacahual"]
[null,"Guainía","Inírida"]
[null,"Guainía","La Guadalupe"]
[null,"Guainía","Mapiripana"]
[null,"Guainía","Morichal"]
[null,"Guainía","Pana Pana"]
[null,"Guainía","Puerto Colombia"]
[null,"Guainía","San Felipe"]
[null,"Guaviare","Calamar"]
[null,"Guaviare","El Retorno"]
[null,"Guaviare","Miraflores"]
[null,"Guaviare","San José del Guaviare"]
[null,"Huila","Acevedo"]
[null,"Huila","Agrado"]
[null,"Huila","Aipe"]
[null,"Huila","Algeciras"]
[null,"Huila","Altamira"]
[null,"Huila","Baraya"]
[null,"Huila","Campoalegre"]
[null,"Huila","Colombia"]
[null,"Huila","Elías"]
[null,"Huila","Garzón"]
[null,"Huila","Gigante"]
[null,"Huila","Guadalupe"]
[null,"Huila","Hobo"]
[null,"Huila","Iquira"]
[null,"Huila","Isnos"]
[null,"Huila","La Argentina"]
[null,"Huila","La Plata"]
[null,"Huila","Nátaga"]
[null,"Huila","Neiva"]
[null,"Huila","Oporapa"]
[null,"Huila","Paicol"]
[null,"Huila","Palermo"]
[null,"Huila","Palestina"]
[null,"Huila","Pital"]
[null,"Huila","Pitalito"]
[null,"Huila","Rivera"]
[null,"Huila","Saladoblanco"]
[null,"Huila","San Agustín"]
[null,"Huila","Santa María"]
[null,"Huila","Suaza"]
[null,"Huila","Tarqui"]
[null,"Huila","Tello"]
[null,"Huila","Teruel"]
[null,"Huila","Tesalia"]
[null,"Huila","Timaná"]
[null,"Huila","Villavieja"]
[null,"Huila","Yaguará"]
[null,"La_Guajira","Albania"]
[null,"La_Guajira","Barrancas"]
[null,"La_Guajira","Dibula"]
[null,"La_Guajira","Distracción"]
[null,"La_Guajira","El Molino"]
[null,"La_Guajira","Fonseca"]
[null,"La_Guajira","Hatonuevo"]
[null,"La_Guajira","La Jagua del Pilar"]
[null,"La_Guajira","Maicao"]
[null,"La_Guajira","Manaure"]
[null,"La_Guajira","Riohacha"]
[null,"La_Guajira","San Juan del Cesar"]
[null,"La_Guajira","Uribia"]
[null,"La_Guajira","Urumita"]
[null,"La_Guajira","Villanueva"]
[null,"Magdalena","Algarrobo"]
[null,"Magdalena","Aracataca"]
[null,"Magdalena","Ariguaní"]
[null,"Magdalena","Cerro San Antonio"]
[null,"Magdalena","Chivolo"]
[null,"Magdalena","Ciénaga"]
[null,"Magdalena","Concordia"]
[null,"Magdalena","El Banco"]
[null,"Magdalena","El Piñon"]
[null,"Magdalena","El Retén"]
[null,"Magdalena","Fundación"]
[null,"Magdalena","Guamal"]
[null,"Magdalena","Nueva Granada"]
[null,"Magdalena","Pedraza"]
[null,"Magdalena","Pijiño del Carmen"]
[null,"Magdalena","Pivijay"]
[null,"Magdalena","Plato"]
[null,"Magdalena","Pueblo Viejo"]
[null,"Magdalena","Remolino"]
[null,"Magdalena","Sabanas de San Angel"]
[null,"Magdalena","Salamina"]
[null,"Magdalena","San Sebastián de Buenavista"]
[null,"Magdalena","San Zenón"]
[null,"Magdalena","Santa Ana"]
[null,"Magdalena","Santa Bárbara de Pinto"]
[null,"Magdalena","Santa Marta"]
[null,"Magdalena","Sitionuevo"]
[null,"Magdalena","Tenerife"]
[null,"Magdalena","Zapayán"]
[null,"Magdalena","Zona Bananera"]
[null,"Meta","Acacias"]
[null,"Meta","Barranca de Upía"]
[null,"Meta","Cabuyaro"]
[null,"Meta","Castilla la Nueva"]
[null,"Meta","Cubarral"]
[null,"Meta","Cumaral"]
[null,"Meta","El Calvario"]
[null,"Meta","El Castillo"]
[null,"Meta","El Dorado"]
[null,"Meta","Fuente de Oro"]
[null,"Meta","Granada"]
[null,"Meta","Guamal"]
[null,"Meta","La Macarena"]
[null,"Meta","Lejanías"]
[null,"Meta","Mapiripán"]
[null,"Meta","Mesetas"]
[null,"Meta","Puerto Concordia"]
[null,"Meta","Puerto Gaitán"]
[null,"Meta","Puerto Lleras"]
[null,"Meta","Puerto López"]
[null,"Meta","Puerto Rico"]
[null,"Meta","Restrepo"]
[null,"Meta","San Carlos de Guaroa"]
[null,"Meta","San Juan de Arama"]
[null,"Meta","San Juanito"]
[null,"Meta","San Martín"]
[null,"Meta","Uribe"]
[null,"Meta","Villavicencio"]
[null,"Meta","Vista Hermosa"]
[null,"Nariño","Albán"]
[null,"Nariño","Aldana"]
[null,"Nariño","Ancuyá"]
[null,"Nariño","Arboleda"]
[null,"Nariño","Barbacoas"]
[null,"Nariño","Belén"]
[null,"Nariño","Buesaco"]
[null,"Nariño","Chachagüí"]
[null,"Nariño","Colón"]
[null,"Nariño","Consaca"]
[null,"Nariño","Contadero"]
[null,"Nariño","Córdoba"]
[null,"Nariño","Cuaspud"]
[null,"Nariño","Cumbal"]
[null,"Nariño","Cumbitara"]
[null,"Nariño","El Charco"]
[null,"Nariño","El Peñol"]
[null,"Nariño","El Rosario"]
[null,"Nariño","El Tablón de Gómez"]
[null,"Nariño","El Tambo"]
[null,"Nariño","Francisco Pizarro"]
[null,"Nariño","Funes"]
[null,"Nariño","Guachucal"]
[null,"Nariño","Guaitarilla"]
[null,"Nariño","Gualmatán"]
[null,"Nariño","Iles"]
[null,"Nariño","Imués"]
[null,"Nariño","Ipiales"]
[null,"Nariño","La Cruz"]
[null,"Nariño","La Florida"]
[null,"Nariño","La Llanada"]
[null,"Nariño","La Tola"]
[null,"Nariño","La Unión"]
[null,"Nariño","Leiva"]
[null,"Nariño","Linares"]
[null,"Nariño","Los Andes"]
[null,"Nariño","Magüí"]
[null,"Nariño","Mallama"]
[null,"Nariño","Mosquera"]
[null,"Nariño","Nariño"]
[null,"Nariño","Olaya Herrera"]
[null,"Nariño","Ospina"]
[null,"Nariño","Pasto"]
[null,"Nariño","Policarpa"]
[null,"Nariño","Potosí"]
[null,"Nariño","Providencia"]
[null,"Nariño","Puerres"]
[null,"Nariño","Pupiales"]
[null,"Nariño","Ricaurte"]
[null,"Nariño","Roberto Payán"]
[null,"Nariño","Samaniego"]
[null,"Nariño","San Andrés de Tumaco"]
[null,"Nariño","San Bernardo"]
[null,"Nariño","San Lorenzo"]
[null,"Nariño","San Pablo"]
[null,"Nariño","San Pedro de Cartago"]
[null,"Nariño","Sandoná"]
[null,"Nariño","Santa Bárbara"]
[null,"Nariño","Santacruz"]
[null,"Nariño","Sapuyes"]
[null,"Nariño","Taminango"]
[null,"Nariño","Tangua"]
[null,"Nariño","Túquerres"]
[null,"Nariño","Yacuanquer"]
[null,"Norte_de_Santander","Abrego"]
[null,"Norte_de_Santander","Arboledas"]
[null,"Norte_de_Santander","Bochalema"]
[null,"Norte_de_Santander","Bucarasica"]
[null,"Norte_de_Santander","Cachirá"]
[null,"Norte_de_Santander","Cácota"]
[null,"Norte_de_Santander","Chinácota"]
[null,"Norte_de_Santander","Chitagá"]
[null,"Norte_de_Santander","Convención"]
[null,"Norte_de_Santander","Cúcuta"]
[null,"Norte_de_Santander","Cucutilla"]
[null,"Norte_de_Santander","Durania"]
[null,"Norte_de_Santander","El Carmen"]
[null,"Norte_de_Santander","El Tarra"]
[null,"Norte_de_Santander","El Zulia"]
[null,"Norte_de_Santander","Gramalote"]
[null,"Norte_de_Santander","Hacarí"]
[null,"Norte_de_Santander","Herrán"]
[null,"Norte_de_Santander","La Esperanza"]
[null,"Norte_de_Santander","La Playa"]
[null,"Norte_de_Santander","Labateca"]
[null,"Norte_de_Santander","Los Patios"]
[null,"Norte_de_Santander","Lourdes"]
[null,"Norte_de_Santander","Mutiscua"]
[null,"Norte_de_Santander","Ocaña"]
[null,"Norte_de_Santander","Pamplona"]
[null,"Norte_de_Santander","Pamplonita"]
[null,"Norte_de_Santander","Puerto Santander"]
[null,"Norte_de_Santander","Ragonvalia"]
[null,"Norte_de_Santander","Salazar"]
[null,"Norte_de_Santander","San Calixto"]
[null,"Norte_de_Santander","San Cayetano"]
[null,"Norte_de_Santander","Santiago"]
[null,"Norte_de_Santander","Sardinata"]
[null,"Norte_de_Santander","Silos"]
[null,"Norte_de_Santander","Teorama"]
[null,"Norte_de_Santander","Tibú"]
[null,"Norte_de_Santander","Toledo"]
[null,"Norte_de_Santander","Villa Caro"]
[null,"Norte_de_Santander","Villa del Rosario"]
[null,"Putumayo","Colón"]
[null,"Putumayo","Leguízamo"]
[null,"Putumayo","Mocoa"]
[null,"Putumayo","Orito"]
[null,"Putumayo","Puerto Asís"]
[null,"Putumayo","Puerto Caicedo"]
[null,"Putumayo","Puerto Guzmán"]
[null,"Putumayo","San Francisco"]
[null,"Putumayo","San Miguel"]
[null,"Putumayo","Santiago"]
[null,"Putumayo","Sibundoy"]
[null,"Putumayo","Valle de Guamez"]
[null,"Putumayo","Villagarzón"]
[null,"Quindío","Armenia"]
[null,"Quindío","Buenavista"]
[null,"Quindío","Calarcá"]
[null,"Quindío","Circasia"]
[null,"Quindío","Córdoba"]
[null,"Quindío","Filandia"]
[null,"Quindío","Génova"]
[null,"Quindío","La Tebaida"]
[null,"Quindío","Montenegro"]
[null,"Quindío","Pijao"]
[null,"Quindío","Quimbaya"]
[null,"Quindío","Salento"]
[null,"Risaralda","Apía"]
[null,"Risaralda","Balboa"]
[null,"Risaralda","Belén de Umbría"]
[null,"Risaralda","Dosquebradas"]
[null,"Risaralda","Guática"]
[null,"Risaralda","La Celia"]
[null,"Risaralda","La Virginia"]
[null,"Risaralda","Marsella"]
[null,"Risaralda","Mistrató"]
[null,"Risaralda","Pereira"]
[null,"Risaralda","Pueblo Rico"]
[null,"Risaralda","Quinchía"]
[null,"Risaralda","Santa Rosa de Cabal"]
[null,"Risaralda","Santuario"]
[null,"Santander","Aguada"]
[null,"Santander","Albania"]
[null,"Santander","Aratoca"]
[null,"Santander","Barbosa"]
[null,"Santander","Barichara"]
[null,"Santander","Barrancabermeja"]
[null,"Santander","Betulia"]
[null,"Santander","Bolívar"]
[null,"Santander","Bucaramanga"]
[null,"Santander","Cabrera"]
[null,"Santander","California"]
[null,"Santander","Capitanejo"]
[null,"Santander","Carcasí"]
[null,"Santander","Cepitá"]
[null,"Santander","Cerrito"]
[null,"Santander","Charalá"]
[null,"Santander","Charta"]
[null,"Santander","Chimá"]
[null,"Santander","Chipatá"]
[null,"Santander","Cimitarra"]
[null,"Santander","Concepción"]
[null,"Santander","Confines"]
[null,"Santander","Contratación"]
[null,"Santander","Coromoro"]
[null,"Santander","Curití"]
[null,"Santander","El Carmen de Chucurí"]
[null,"Santander","El Guacamayo"]
[null,"Santander","El Peñón"]
[null,"Santander","El Playón"]
[null,"Santander","Encino"]
[null,"Santander","Enciso"]
[null,"Santander","Florián"]
[null,"Santander","Floridablanca"]
[null,"Santander","Galán"]
[null,"Santander","Gambita"]
[null,"Santander","Girón"]
[null,"Santander","Guaca"]
[null,"Santander","Guadalupe"]
[null,"Santander","Guapotá"]
[null,"Santander","Guavatá"]
[null,"Santander","Güepsa"]
[null,"Santander","Hato"]
[null,"Santander","Jesús María"]
[null,"Santander","Jordán"]
[null,"Santander","La Belleza"]
[null,"Santander","La Paz"]
[null,"Santander","Landázuri"]
[null,"Santander","Lebríja"]
[null,"Santander","Los Santos"]
[null,"Santander","Macaravita"]
[null,"Santander","Málaga"]
[null,"Santander","Matanza"]
[null,"Santander","Mogotes"]
[null,"Santander","Molagavita"]
[null,"Santander","Ocamonte"]
[null,"Santander","Oiba"]
[null,"Santander","Onzaga"]
[null,"Santander","Palmar"]
[null,"Santander","Palmas del Socorro"]
[null,"Santander","Páramo"]
[null,"Santander","Piedecuesta"]
[null,"Santander","Pinchote"]
[null,"Santander","Puente Nacional"]
[null,"Santander","Puerto Parra"]
[null,"Santander","Puerto Wilches"]
[null,"Santander","Rionegro"]
[null,"Santander","Sabana de Torres"]
[null,"Santander","San Andrés"]
[null,"Santander","San Benito"]
[null,"Santander","San Gil"]
[null,"Santander","San Joaquín"]
[null,"Santander","San José de Miranda"]
[null,"Santander","San Miguel"]
[null,"Santander","San Vicente de Chucurí"]
[null,"Santander","Santa Bárbara"]
[null,"Santander","Santa Helena del Opón"]
[null,"Santander","Simacota"]
[null,"Santander","Socorro"]
[null,"Santander","Suaita"]
[null,"Santander","Sucre"]
[null,"Santander","Suratá"]
[null,"Santander","Tona"]
[null,"Santander","Valle de San José"]
[null,"Santander","Vélez"]
[null,"Santander","Vetas"]
[null,"Santander","Villanueva"]
[null,"Santander","Zapatoca"]
[null,"Sucre","Buenavista"]
[null,"Sucre","Caimito"]
[null,"Sucre","Chalán"]
[null,"Sucre","Coloso"]
[null,"Sucre","Corozal"]
[null,"Sucre","Coveñas"]
[null,"Sucre","El Roble"]
[null,"Sucre","Galeras"]
[null,"Sucre","Guaranda"]
[null,"Sucre","La Unión"]
[null,"Sucre","Los Palmitos"]
[null,"Sucre","Majagual"]
[null,"Sucre","Morroa"]
[null,"Sucre","Ovejas"]
[null,"Sucre","Palmito"]
[null,"Sucre","Sampués"]
[null,"Sucre","San Benito Abad"]
[null,"Sucre","San Juan de Betulia"]
[null,"Sucre","San Luis de Sincé"]
[null,"Sucre","San Marcos"]
[null,"Sucre","San Onofre"]
[null,"Sucre","San Pedro"]
[null,"Sucre","Santiago de Tolú"]
[null,"Sucre","Sincelejo"]
[null,"Sucre","Sucre"]
[null,"Sucre","Tolú Viejo"]
[null,"Tolima","Alpujarra"]
[null,"Tolima","Alvarado"]
[null,"Tolima","Ambalema"]
[null,"Tolima","Anzoátegui"]
[null,"Tolima","Armero"]
[null,"Tolima","Ataco"]
[null,"Tolima","Cajamarca"]
[null,"Tolima","Carmen de Apicala"]
[null,"Tolima","Casabianca"]
[null,"Tolima","Chaparral"]
[null,"Tolima","Coello"]
[null,"Tolima","Coyaima"]
[null,"Tolima","Cunday"]
[null,"Tolima","Dolores"]
[null,"Tolima","Espinal"]
[null,"Tolima","Falan"]
[null,"Tolima","Flandes"]
[null,"Tolima","Fresno"]
[null,"Tolima","Guamo"]
[null,"Tolima","Herveo"]
[null,"Tolima","Honda"]
[null,"Tolima","Ibagué"]
[null,"Tolima","Icononzo"]
[null,"Tolima","Lérida"]
[null,"Tolima","Líbano"]
[null,"Tolima","Mariquita"]
[null,"Tolima","Melgar"]
[null,"Tolima","Murillo"]
[null,"Tolima","Natagaima"]
[null,"Tolima","Ortega"]
[null,"Tolima","Palocabildo"]
[null,"Tolima","Piedras"]
[null,"Tolima","Planadas"]
[null,"Tolima","Prado"]
[null,"Tolima","Purificación"]
[null,"Tolima","Rio Blanco"]
[null,"Tolima","Roncesvalles"]
[null,"Tolima","Rovira"]
[null,"Tolima","Saldaña"]
[null,"Tolima","San Antonio"]
[null,"Tolima","San Luis"]
[null,"Tolima","Santa Isabel"]
[null,"Tolima","Suárez"]
[null,"Tolima","Valle de San Juan"]
[null,"Tolima","Venadillo"]
[null,"Tolima","Villahermosa"]
[null,"Tolima","Villarrica"]
[null,"Valle_del_Cauca","Alcalá"]
[null,"Valle_del_Cauca","Andalucía"]
[null,"Valle_del_Cauca","Ansermanuevo"]
[null,"Valle_del_Cauca","Argelia"]
[null,"Valle_del_Cauca","Bolívar"]
[null,"Valle_del_Cauca","Buenaventura"]
[null,"Valle_del_Cauca","Bugalagrande"]
[null,"Valle_del_Cauca","Caicedonia"]
[null,"Valle_del_Cauca","Cali"]
[null,"Valle_del_Cauca","Calima"]
[null,"Valle_del_Cauca","Candelaria"]
[null,"Valle_del_Cauca","Cartago"]
[null,"Valle_del_Cauca","Dagua"]
[null,"Valle_del_Cauca","El Águila"]
[null,"Valle_del_Cauca","El Cairo"]
[null,"Valle_del_Cauca","El Cerrito"]
[null,"Valle_del_Cauca","El Dovio"]
[null,"Valle_del_Cauca","Florida"]
[null,"Valle_del_Cauca","Ginebra"]
[null,"Valle_del_Cauca","Guacarí"]
[null,"Valle_del_Cauca","Guadalajara de Buga"]
[null,"Valle_del_Cauca","Jamundí"]
[null,"Valle_del_Cauca","La Cumbre"]
[null,"Valle_del_Cauca","La Unión"]
[null,"Valle_del_Cauca","La Victoria"]
[null,"Valle_del_Cauca","Obando"]
[null,"Valle_del_Cauca","Palmira"]
[null,"Valle_del_Cauca","Pradera"]
[null,"Valle_del_Cauca","Restrepo"]
[null,"Valle_del_Cauca","Riofrío"]
[null,"Valle_del_Cauca","Roldanillo"]
[null,"Valle_del_Cauca","San Pedro"]
[null,"Valle_del_Cauca","Sevilla"]
[null,"Valle_del_Cauca","Toro"]
[null,"Valle_del_Cauca","Trujillo"]
[null,"Valle_del_Cauca","Tuluá"]
[null,"Valle_del_Cauca","Ulloa"]
[null,"Valle_del_Cauca","Versalles"]
[null,"Valle_del_Cauca","Vijes"]
[null,"Valle_del_Cauca","Yotoco"]
[null,"Valle_del_Cauca","Yumbo"]
[null,"Valle_del_Cauca","Zarzal"]
[null,"Vaupés","Carurú"]
[null,"Vaupés","Mitú"]
[null,"Vaupés","Pacoa"]
[null,"Vaupés","Papunahua"]
[null,"Vaupés","Taraira"]
[null,"Vaupés","Yavaraté"]
[null,"Vichada","Cumaribo"]
[null,"Vichada","La Primavera"]
[null,"Vichada","Puerto Carreño"]
[null,"Vichada","Santa Rosalía"]

{"sheet":"Hoja2","index":2,"n_rows":261,"n_cols":16,"rows_kept":261,"cut":false,"hidden":true,"merged":[]}
[0,"Si","Cliente","Cedula de ciudadania","Natural","Manufacturero",null,"Enero",1,null,2022,null,0.7,0.25,null,0]
[1,"No","Proveedor","NIT","Juridica","Servicios",null,"Febrero",2,null,2023,null,0.75,0.5,null,0.5]
[2,null,"Empleado","Pasaporte",null,"Comercio",null,"Marzo",3,null,2024,null,0.8,0.75,null,1]
[3,null,"Accionista","Cedula de Extranjeria",null,"NA",null,"Abril",4,null,2025,null,0.85,1,null,1.5]
[4,null,"Aliado de negocio","Otra",null,null,null,"Mayo",5,null,2026,null,0.9,1.25,null,2]
[5,null,"Usuario Final",null,null,null,null,"Junio",6,null,2027,null,0.95,1.5,null,2.5]
[null,null,null,null,null,null,null,"Julio",7,null,2028,null,null,1.75,null,3]
[null,null,null,null,null,null,null,"Agosto",8,null,2029,null,null,2,null,3.5]
[null,null,null,"Manufacturero","Servicios","Comercio",null,"Septiembre",9,null,2030,null,null,null,null,4]
[null,null,"Microempresa",{"$f":"23563*MatrizSegmentación!$D$2/1000","v":855525.40399999998},{"$f":"32988*MatrizSegmentación!$D$2/1000","v":1197728.304},{"$f":"44769*MatrizSegmentación!$D$2/1000","v":1625472.852},{"$f":"+IF(MatrizSegmentación!X5<=Hoja2!D10,Hoja2!C10,\"\")","v":""},"Octubre",10,null,2031,null,null,null,null,4.5]
[null,null,"Pequeña",{"$f":"204995*MatrizSegmentación!$D$2/1000","v":7442958.46},{"$f":"131951*MatrizSegmentación!$D$2/1000","v":4790876.9079999998},{"$f":"431196*MatrizSegmentación!$D$2/1000","v":15655864.368000001},null,"Noviembre",11,null,2032,null,null,null,null,5]
[null,null,"Mediana",{"$f":"1736565*MatrizSegmentación!$D$2/1000","v":63051202.020000003},{"$f":"483034*MatrizSegmentación!$D$2/1000","v":17537998.471999999},{"$f":"2160692*MatrizSegmentación!$D$2/1000","v":78450405.136000007},null,"Diciembre",12,null,2033]
[null,null,"Grande",10000000000,10000000000,10000000000,null,null,null,null,2034]
[null,null,null,null,null,null,null,null,null,null,2035]
[null,null,null,null,null,null,null,null,null,null,2036]
[null,null,null,null,null,null,null,null,null,null,2037]
[null,null,"AFGANISTAN",null,null,null,null,null,null,null,2038]
[null,null,"ALBANIA",null,null,null,null,null,null,null,2039]
[null,null,"ALEMANIA",null,null,null,null,null,null,null,2040]
[null,null,"ANDORRA"]
[null,null,"ANGOLA"]
[null,null,"ANGUILLA"]
[null,null,"ANTIGUA Y BARBUDA"]
[null,null,"ANTILLAS HOLANDESAS"]
[null,null,"ARABIA SAUDI"]
[null,null,"ARGELIA"]
[null,null,"ARGENTINA"]
[null,null,"ARMENIA"]
[null,null,"ARUBA"]
[null,null,"AUSTRALIA"]
[null,null,"AUSTRIA"]
[null,null,"AZERBAIYAN"]
[null,null,"BAHAMAS"]
[null,null,"BAHREIN"]
[null,null,"BANGLADESH"]
[null,null,"BARBADOS"]
[null,null,"BELARUS"]
[null,null,"BELGICA"]
[null,null,"BELICE"]
[null,null,"BENIN"]
[null,null,"BERMUDAS"]
[null,null,"BHUTÁN"]
[null,null,"BOLIVIA"]
[null,null,"BOSNIA Y HERZEGOVINA"]
[null,null,"BOTSWANA"]
[null,null,"BRASIL"]
[null,null,"BRUNEI"]
[null,null,"BULGARIA"]
[null,null,"BURKINA FASO"]
[null,null,"BURUNDI"]
[null,null,"CABO VERDE"]
[null,null,"CAMBOYA"]
[null,null,"CAMERUN"]
[null,null,"CANADA"]
[null,null,"CHAD"]
[null,null,"CHILE"]
[null,null,"CHINA"]
[null,null,"CHIPRE"]
[null,null,"COLOMBIA"]
[null,null,"COMORES"]
[null,null,"CONGO"]
[null,null,"COREA"]
[null,null,"COREA DEL NORTE "]
[null,null,"COSTA DE MARFIL"]
[null,null,"COSTA RICA"]
[null,null,"CROACIA"]
[null,null,"CUBA"]
[null,null,"DINAMARCA"]
[null,null,"DJIBOUTI"]
[null,null,"DOMINICA"]
[null,null,"ECUADOR"]
[null,null,"EGIPTO"]
[null,null,"EL SALVADOR"]
[null,null,"EMIRATOS ARABES UNIDOS"]
[null,null,"ERITREA"]
[null,null,"ESLOVENIA"]
[null,null,"ESPAÑA"]
[null,null,"ESTADOS UNIDOS DE AMERICA"]
[null,null,"ESTONIA"]
[null,null,"ETIOPIA"]
[null,null,"FIJI"]
[null,null,"FILIPINAS"]
[null,null,"FINLANDIA"]
[null,null,"FRANCIA"]
[null,null,"GABON"]
[null,null,"GAMBIA"]
[null,null,"GEORGIA"]
[null,null,"GHANA"]
[null,null,"GIBRALTAR"]
[null,null,"GRANADA"]
[null,null,"GRECIA"]
[null,null,"GROENLANDIA"]
[null,null,"GUADALUPE"]
[null,null,"GUAM"]
[null,null,"GUATEMALA"]
[null,null,"GUAYANA FRANCESA"]
[null,null,"GUERNESEY"]
[null,null,"GUINEA"]
[null,null,"GUINEA ECUATORIAL"]
[null,null,"GUINEA-BISSAU"]
[null,null,"GUYANA"]
[null,null,"HAITI"]
[null,null,"HONDURAS"]
[null,null,"HONG KONG"]
[null,null,"HUNGRIA"]
[null,null,"INDIA"]
[null,null,"INDONESIA"]
[null,null,"IRAN"]
[null,null,"IRAQ"]
[null,null,"IRLANDA"]
[null,null,"ISLA DE MAN"]
[null,null,"ISLA NORFOLK"]
[null,null,"ISLANDIA"]
[null,null,"ISLAS ALAND"]
[null,null,"ISLAS CAIMÁN"]
[null,null,"ISLAS COOK"]
[null,null,"ISLAS DEL CANAL"]
[null,null,"ISLAS FEROE"]
[null,null,"ISLAS MALVINAS"]
[null,null,"ISLAS MARIANAS DEL NORTE"]
[null,null,"ISLAS MARSHALL"]
[null,null,"ISLAS PITCAIRN"]
[null,null,"ISLAS SALOMON"]
[null,null,"ISLAS TURCAS Y CAICOS"]
[null,null,"ISLAS VIRGENES BRITANICAS"]
[null,null,"ISLAS VÍRGENES DE LOS ESTADOS UNIDOS"]
[null,null,"ISRAEL"]
[null,null,"ITALIA"]
[null,null,"JAMAICA"]
[null,null,"JAPON"]
[null,null,"JERSEY"]
[null,null,"JORDANIA"]
[null,null,"KAZAJSTAN"]
[null,null,"KENIA"]
[null,null,"KIRGUISTAN"]
[null,null,"KIRIBATI"]
[null,null,"KUWAIT"]
[null,null,"LAOS"]
[null,null,"LESOTHO"]
[null,null,"LETONIA"]
[null,null,"LIBANO"]
[null,null,"LIBERIA"]
[null,null,"LIBIA"]
[null,null,"LIECHTENSTEIN"]
[null,null,"LITUANIA"]
[null,null,"LUXEMBURGO"]
[null,null,"MACAO"]
[null,null,"MACEDONIA "]
[null,null,"MADAGASCAR"]
[null,null,"MALASIA"]
[null,null,"MALAWI"]
[null,null,"MALDIVAS"]
[null,null,"MALI"]
[null,null,"MALTA"]
[null,null,"MARRUECOS"]
[null,null,"MARTINICA"]
[null,null,"MAURICIO"]
[null,null,"MAURITANIA"]
[null,null,"MAYOTTE"]
[null,null,"MEXICO"]
[null,null,"MICRONESIA"]
[null,null,"MOLDAVIA"]
[null,null,"MONACO"]
[null,null,"MONGOLIA"]
[null,null,"MONTENEGRO"]
[null,null,"MONTSERRAT"]
[null,null,"MOZAMBIQUE"]
[null,null,"MYANMAR"]
[null,null,"NAMIBIA"]
[null,null,"NAURU"]
[null,null,"NEPAL"]
[null,null,"NICARAGUA"]
[null,null,"NIGER"]
[null,null,"NIGERIA"]
[null,null,"NIUE"]
[null,null,"NORUEGA"]
[null,null,"NUEVA CALEDONIA"]
[null,null,"NUEVA ZELANDA"]
[null,null,"OMAN"]
[null,null,"OTROS PAISES  O TERRITORIOS DE AMERICA DEL NORTE"]
[null,null,"OTROS PAISES O TERRITORIOS  DE SUDAMERICA"]
[null,null,"OTROS PAISES O TERRITORIOS DE AFRICA"]
[null,null,"OTROS PAISES O TERRITORIOS DE ASIA"]
[null,null,"OTROS PAISES O TERRITORIOS DE LA UNION EUROPEA"]
[null,null,"OTROS PAISES O TERRITORIOS DE OCEANIA"]
[null,null,"OTROS PAISES O TERRITORIOS DEL CARIBE Y AMERICA CENTRAL"]
[null,null,"OTROS PAISES O TERRITORIOS DEL RESTO DE EUROPA"]
[null,null,"PAISES BAJOS"]
[null,null,"PAKISTAN"]
[null,null,"PALAOS"]
[null,null,"PALESTINA"]
[null,null,"PANAMA"]
[null,null,"PAPUA NUEVA GUINEA"]
[null,null,"PARAGUAY"]
[null,null,"PERU"]
[null,null,"POLINESIA FRANCESA"]
[null,null,"POLONIA"]
[null,null,"PORTUGAL"]
[null,null,"PUERTO RICO"]
[null,null,"QATAR"]
[null,null,"REINO UNIDO"]
[null,null,"REP.DEMOCRATICA DEL CONGO"]
[null,null,"REPUBLICA CENTROAFRICANA"]
[null,null,"REPUBLICA CHECA"]
[null,null,"REPUBLICA DOMINICANA"]
[null,null,"REPUBLICA ESLOVACA"]
[null,null,"REUNION"]
[null,null,"RUANDA"]
[null,null,"RUMANIA"]
[null,null,"RUSIA"]
[null,null,"SAHARA OCCIDENTAL"]
[null,null,"SAMOA"]
[null,null,"SAMOA AMERICANA"]
[null,null,"SAN BARTOLOME"]
[null,null,"SAN CRISTOBAL Y NIEVES"]
[null,null,"SAN MARINO"]
[null,null,"SAN MARTIN (PARTE FRANCESA)"]
[null,null,"SAN PEDRO Y MIQUELON "]
[null,null,"SAN VICENTE Y LAS GRANADINAS"]
[null,null,"SANTA HELENA"]
[null,null,"SANTA LUCIA"]
[null,null,"SANTA SEDE"]
[null,null,"SANTO TOME Y PRINCIPE"]
[null,null,"SENEGAL"]
[null,null,"SERBIA"]
[null,null,"SEYCHELLES"]
[null,null,"SIERRA LEONA"]
[null,null,"SINGAPUR"]
[null,null,"SIRIA"]
[null,null,"SOMALIA"]
[null,null,"SRI LANKA"]
[null,null,"SUDAFRICA"]
[null,null,"SUDAN"]
[null,null,"SUECIA"]
[null,null,"SUIZA"]
[null,null,"SURINAM"]
[null,null,"SVALBARD Y JAN MAYEN"]
[null,null,"SWAZILANDIA"]
[null,null,"TADYIKISTAN"]
[null,null,"TAILANDIA"]
[null,null,"TANZANIA"]
[null,null,"TIMOR ORIENTAL"]
[null,null,"TOGO"]
[null,null,"TOKELAU"]
[null,null,"TONGA"]
[null,null,"TRINIDAD Y TOBAGO"]
[null,null,"TUNEZ"]
[null,null,"TURKMENISTAN"]
[null,null,"TURQUIA"]
[null,null,"TUVALU"]
[null,null,"UCRANIA"]
[null,null,"UGANDA"]
[null,null,"URUGUAY"]
[null,null,"UZBEKISTAN"]
[null,null,"VANUATU"]
[null,null,"VENEZUELA"]
[null,null,"VIETNAM"]
[null,null,"WALLIS Y FORTUNA"]
[null,null,"YEMEN"]
[null,null,"ZAMBIA"]
[null,null,"ZIMBABWE"]

{"sheet":"MatrizSegmentación","index":3,"n_rows":100,"n_cols":25,"rows_kept":100,"cut":false,"hidden":false,"merged":[[1,1,1,2]]}
[]
[null,"VALOR DEL UVT ULTIMO AÑO",null,36308]
[]
[null,"Tipo de contraparte","Tipo de Persona","Tipo de Identificación","Numero de Identificación","Nombre","Verificado en Listas Restrictivas","PEP","Pais","Pais Cooperante","Departamento","Municipio","Nivel de Riesgo Jurisdicción","Sector","Actividad economica principal (Codigo CIIU)","Actividad económica principal","Actividad económica secundaria (Codigo CIIU)","Actividad económica secundaría","Nivel de utilización insumos que pueden ser usados en actividades ilegales","Nivel de riesgo asociado a la actividad económica","Es un PEP o tiene relación con PEPs","Nivel de realizacion de actividades en efectivo por montos elevados","Nivel de Riesgo Actividad Económica","Ingresos del ultimo año(miles de pesos)","Tipo de empresa"]
[null,"Cliente","Natural","Cedula de ciudadania",79951201,"PEDRO PEREZ","Si","Si","COLOMBIA","Si","Quindío","Circasia",3.5,"NA",10,{"$f":"IFERROR(_xlfn.XLOOKUP(O5,'Código CIIU'!$A$2:$A$499,'Código CIIU'!$B$2:$B$499),\"\")","v":"Empleado"},null,{"$f":"IFERROR(_xlfn.XLOOKUP(MatrizSegmentación!Q5,'Código CIIU'!$A$2:$A$499,'Código CIIU'!$B$2:$B$499),\"\")","v":""},0,0,5,0,{"$f":"IFERROR(AVERAGE(S5:V5),\"\")","v":1.25},200000000,{"$f":"IFERROR(IF(N5=\"Manufacturero\",_xlfn.XLOOKUP(X5,Hoja2!$D$10:$D$13,Hoja2!$C$10:$C$13,,1),IF(N5=\"Servicios\",_xlfn.XLOOKUP(X5,Hoja2!$E$10:$E$13,Hoja2!$C$10:$C$13,,1),IF(N5=\"Comercio\",_xlfn.XLOOKUP(X5,Hoja2!$F$10:$F$13,Hoja2!$C$10:$C$13,,1),\"P. Natural\"))),\"\")","v":"P. Natural"}]
[null,"Proveedor","Juridica","NIT","900.111.222-2","FABRICA XYZ","Si","No","COLOMBIA","Si","Cauca","Cajibío",5,"Manufacturero",3210,{"$f":"IFERROR(_xlfn.XLOOKUP(O6,'Código CIIU'!$A$2:$A$499,'Código CIIU'!$B$2:$B$499),\"\")","v":"Fabricación de joyas, bisutería y artículos conexos"},null,{"$f":"IFERROR(_xlfn.XLOOKUP(MatrizSegmentación!Q6,'Código CIIU'!$A$2:$A$499,'Código CIIU'!$B$2:$B$499),\"\")","v":""},0,3.5,0,3.5,{"$f":"IFERROR(AVERAGE(S6:V6),\"\")","v":1.75},100000000,{"$f":"IFERROR(IF(N6=\"Manufacturero\",_xlfn.XLOOKUP(X6,Hoja2!$D$10:$D$13,Hoja2!$C$10:$C$13,,1),IF(N6=\"Servicios\",_xlfn.XLOOKUP(X6,Hoja2!$E$10:$E$13,Hoja2!$C$10:$C$13,,1),IF(N6=\"Comercio\",_xlfn.XLOOKUP(X6,Hoja2!$F$10:$F$13,Hoja2!$C$10:$C$13,,1),\"P. Natural\"))),\"\")","v":"Grande"}]
[null,"Aliado de negocio","Juridica","NIT","860.333.111-3","XLM CONSULTORES","Si","No","PANAMA","No","Otro",null,5,"Manufacturero",2819,{"$f":"IFERROR(_xlfn.XLOOKUP(O7,'Código CIIU'!$A$2:$A$499,'Código CIIU'!$B$2:$B$499),\"\")","v":"Fabricación de otros tipos de maquinaria y equipo de uso general n.c.p."},null,{"$f":"IFERROR(_xlfn.XLOOKUP(MatrizSegmentación!Q7,'Código CIIU'!$A$2:$A$499,'Código CIIU'!$B$2:$B$499),\"\")","v":""},0,1,0,0,0.25,50000000,{"$f":"IFERROR(IF(N7=\"Manufacturero\",_xlfn.XLOOKUP(X7,Hoja2!$D$10:$D$13,Hoja2!$C$10:$C$13,,1),IF(N7=\"Servicios\",_xlfn.XLOOKUP(X7,Hoja2!$E$10:$E$13,Hoja2!$C$10:$C$13,,1),IF(N7=\"Comercio\",_xlfn.XLOOKUP(X7,Hoja2!$F$10:$F$13,Hoja2!$C$10:$C$13,,1),\"P. Natural\"))),\"\")","v":"Mediana"}]
[null,"Empleado","Natural","Cedula de ciudadania",1010110112,"MIGUEL HERNANDEZ","Si","No","COLOMBIA","Si","Bogotá","Bogotá",0,"NA",10,{"$f":"IFERROR(_xlfn.XLOOKUP(O8,'Código CIIU'!$A$2:$A$499,'Código CIIU'!$B$2:$B$499),\"\")","v":"Empleado"},null,{"$f":"IFERROR(_xlfn.XLOOKUP(MatrizSegmentación!Q8,'Código CIIU'!$A$2:$A$499,'Código CIIU'!$B$2:$B$499),\"\")","v":""},0,0,0,0,0,60000000,{"$f":"IFERROR(IF(N8=\"Manufacturero\",_xlfn.XLOOKUP(X8,Hoja2!$D$10:$D$13,Hoja2!$C$10:$C$13,,1),IF(N8=\"Servicios\",_xlfn.XLOOKUP(X8,Hoja2!$E$10:$E$13,Hoja2!$C$10:$C$13,,1),IF(N8=\"Comercio\",_xlfn.XLOOKUP(X8,Hoja2!$F$10:$F$13,Hoja2!$C$10:$C$13,,1),\"P. Natural\"))),\"\")","v":"P. Natural"}]
[null,"Usuario Final","Natural","Cedula de Extranjeria",10101010,"LINA GOMEZ","Si","Si","PANAMA","No","Otro",null,5,"NA",90,{"$f":"IFERROR(_xlfn.XLOOKUP(O9,'Código CIIU'!$A$2:$A$499,'Código CIIU'!$B$2:$B$499),\"\")","v":"Rentista de capital"},null,{"$f":"IFERROR(_xlfn.XLOOKUP(MatrizSegmentación!Q9,'Código CIIU'!$A$2:$A$499,'Código CIIU'!$B$2:$B$499),\"\")","v":""},0,0,5,0,1.25,2000000000,{"$f":"IFERROR(IF(N9=\"Manufacturero\",_xlfn.XLOOKUP(X9,Hoja2!$D$10:$D$13,Hoja2!$C$10:$C$13,,1),IF(N9=\"Servicios\",_xlfn.XLOOKUP(X9,Hoja2!$E$10:$E$13,Hoja2!$C$10:$C$13,,1),IF(N9=\"Comercio\",_xlfn.XLOOKUP(X9,Hoja2!$F$10:$F$13,Hoja2!$C$10:$C$13,,1),\"P. Natural\"))),\"\")","v":"P. Natural"}]
[null,null,null,null,null,null,null,null,null,null,null,null,null,null,null,{"$f":"IFERROR(_xlfn.XLOOKUP(O10,'Código CIIU'!$A$2:$A$499,'Código CIIU'!$B$2:$B$499),\"\")","v":""},null,{"$f":"IFERROR(_xlfn.XLOOKUP(MatrizSegmentación!Q10,'Código CIIU'!$A$2:$A$499,'Código CIIU'!$B$2:$B$499),\"\")","v":""},null,null,null,null,"",null,{"$f":"IFERROR(IF(N10=\"Manufacturero\",_xlfn.XLOOKUP(X10,Hoja2!$D$10:$D$13,Hoja2!$C$10:$C$13,,1),IF(N10=\"Servicios\",_xlfn.XLOOKUP(X10,Hoja2!$E$10:$E$13,Hoja2!$C$10:$C$13,,1),IF(N10=\"Comercio\",_xlfn.XLOOKUP(X10,Hoja2!$F$10:$F$13,Hoja2!$C$10:$C$13,,1),\"P. Natural\"))),\"\")","v":"P. Natural"}]
[null,null,null,null,null,null,null,null,null,null,null,null,null,null,null,{"$f":"IFERROR(_xlfn.XLOOKUP(O11,'Código CIIU'!$A$2:$A$499,'Código CIIU'!$B$2:$B$499),\"\")","v":""},null,{"$f":"IFERROR(_xlfn.XLOOKUP(MatrizSegmentación!Q11,'Código CIIU'!$A$2:$A$499,'Código CIIU'!$B$2:$B$499),\"\")","v":""},null,null,null,null,"",null,{"$f":"IFERROR(IF(N11=\"Manufacturero\",_xlfn.XLOOKUP(X11,Hoja2!$D$10:$D$13,Hoja2!$C$10:$C$13,,1),IF(N11=\"Servicios\",_xlfn.XLOOKUP(X11,Hoja2!$E$10:$E$13,Hoja2!$C$10:$C$13,,1),IF(N11=\"Comercio\",_xlfn.XLOOKUP(X11,Hoja2!$F$10:$F$13,Hoja2!$C$10:$C$13,,1),\"P. Natural\"))),\"\")","v":"P. Natural"}]
[null,null,null,null,null,null,null,null,null,null,null,null,null,null,null,{"$f":"IFERROR(_xlfn.XLOOKUP(O12,'Código CIIU'!$A$2:$A$499,'Código CIIU'!$B$2:$B$499),\"\")","v":""},null,{"$f":"IFERROR(_xlfn.XLOOKUP(MatrizSegmentación!Q12,'Código CIIU'!$A$2:$A$499,'Código CIIU'!$B$2:$B$499),\"\")","v":""},null,null,null,null,"",null,{"$f":"IFERROR(IF(N12=\"Manufacturero\",_xlfn.XLOOKUP(X12,Hoja2!$D$10:$D$13,Hoja2!$C$10:$C$13,,1),IF(N12=\"Servicios\",_xlfn.XLOOKUP(X12,Hoja2!$E$10:$E$13,Hoja2!$C$10:$C$13,,1),IF(N12=\"Comercio\",_xlfn.XLOOKUP(X12,Hoja2!$F$10:$F$13,Hoja2!$C$10:$C$13,,1),\"P. Natural\"))),\"\")","v":"P. Natural"}]
[null,null,null,null,null,null,null,null,null,null,null,null,null,null,null,{"$f":"IFERROR(_xlfn.XLOOKUP(O13,'Código CIIU'!$A$2:$A$499,'Código CIIU'!$B$2:$B$499),\"\")","v":""},null,{"$f":"IFERROR(_xlfn.XLOOKUP(MatrizSegmentación!Q13,'Código CIIU'!$A$2:$A$499,'Código CIIU'!$B$2:$B$499),\"\")","v":""},null,null,null,null,"",null,{"$f":"IFERROR(IF(N13=\"Manufacturero\",_xlfn.XLOOKUP(X13,Hoja2!$D$10:$D$13,Hoja2!$C$10:$C$13,,1),IF(N13=\"Servicios\",_xlfn.XLOOKUP(X13,Hoja2!$E$10:$E$13,Hoja2!$C$10:$C$13,,1),IF(N13=\"Comercio\",_xlfn.XLOOKUP(X13,Hoja2!$F$10:$F$13,Hoja2!$C$10:$C$13,,1),\"P. Natural\"))),\"\")","v":"P. Natural"}]
[null,null,null,null,null,null,null,null,null,null,null,null,null,null,null,{"$f":"IFERROR(_xlfn.XLOOKUP(O14,'Código CIIU'!$A$2:$A$499,'Código CIIU'!$B$2:$B$499),\"\")","v":""},null,{"$f":"IFERROR(_xlfn.XLOOKUP(MatrizSegmentación!Q14,'Código CIIU'!$A$2:$A$499,'Código CIIU'!$B$2:$B$499),\"\")","v":""},null,null,null,null,"",null,{"$f":"IFERROR(IF(N14=\"Manufacturero\",_xlfn.XLOOKUP(X14,Hoja2!$D$10:$D$13,Hoja2!$C$10:$C$13,,1),IF(N14=\"Servicios\",_xlfn.XLOOKUP(X14,Hoja2!$E$10:$E$13,Hoja2!$C$10:$C$13,,1),IF(N14=\"Comercio\",_xlfn.XLOOKUP(X14,Hoja2!$F$10:$F$13,Hoja2!$C$10:$C$13,,1),\"P. Natural\"))),\"\")","v":"P. Natural"}]
[null,null,null,null,null,null,null,null,null,null,null,null,null,null,null,{"$f":"IFERROR(_xlfn.XLOOKUP(O15,'Código CIIU'!$A$2:$A$499,'Código CIIU'!$B$2:$B$499),\"\")","v":""},null,{"$f":"IFERROR(_xlfn.XLOOKUP(MatrizSegmentación!Q15,'Código CIIU'!$A$2:$A$499,'Código CIIU'!$B$2:$B$499),\"\")","v":""},null,null,null,null,"",null,{"$f":"IFERROR(IF(N15=\"Manufacturero\",_xlfn.XLOOKUP(X15,Hoja2!$D$10:$D$13,Hoja2!$C$10:$C$13,,1),IF(N15=\"Servicios\",_xlfn.XLOOKUP(X15,Hoja2!$E$10:$E$13,Hoja2!$C$10:$C$13,,1),IF(N15=\"Comercio\",_xlfn.XLOOKUP(X15,Hoja2!$F$10:$F$13,Hoja2!$C$10:$C$13,,1),\"P. Natural\"))),\"\")","v":"P. Natural"}]
[null,null,null,null,null,null,null,null,null,null,null,null,null,null,null,{"$f":"IFERROR(_xlfn.XLOOKUP(O16,'Código CIIU'!$A$2:$A$499,'Código CIIU'!$B$2:$B$499),\"\")","v":""},null,{"$f":"IFERROR(_xlfn.XLOOKUP(MatrizSegmentación!Q16,'Código CIIU'!$A$2:$A$499,'Código CIIU'!$B$2:$B$499),\"\")","v":""},null,null,null,null,"",null,{"$f":"IFERROR(IF(N16=\"Manufacturero\",_xlfn.XLOOKUP(X16,Hoja2!$D$10:$D$13,Hoja2!$C$10:$C$13,,1),IF(N16=\"Servicios\",_xlfn.XLOOKUP(X16,Hoja2!$E$10:$E$13,Hoja2!$C$10:$C$13,,1),IF(N16=\"Comercio\",_xlfn.XLOOKUP(X16,Hoja2!$F$10:$F$13,Hoja2!$C$10:$C$13,,1),\"P. Natural\"))),\"\")","v":"P. Natural"}]
[null,null,null,null,null,null,null,null,null,null,null,null,null,null,null,{"$f":"IFERROR(_xlfn.XLOOKUP(O17,'Código CIIU'!$A$2:$A$499,'Código CIIU'!$B$2:$B$499),\"\")","v":""},null,{"$f":"IFERROR(_xlfn.XLOOKUP(MatrizSegmentación!Q17,'Código CIIU'!$A$2:$A$499,'Código CIIU'!$B$2:$B$499),\"\")","v":""},null,null,null,null,"",null,{"$f":"IFERROR(IF(N17=\"Manufacturero\",_xlfn.XLOOKUP(X17,Hoja2!$D$10:$D$13,Hoja2!$C$10:$C$13,,1),IF(N17=\"Servicios\",_xlfn.XLOOKUP(X17,Hoja2!$E$10:$E$13,Hoja2!$C$10:$C$13,,1),IF(N17=\"Comercio\",_xlfn.XLOOKUP(X17,Hoja2!$F$10:$F$13,Hoja2!$C$10:$C$13,,1),\"P. Natural\"))),\"\")","v":"P. Natural"}]
[null,null,null,null,null,null,null,null,null,null,null,null,null,null,null,{"$f":"IFERROR(_xlfn.XLOOKUP(O18,'Código CIIU'!$A$2:$A$499,'Código CIIU'!$B$2:$B$499),\"\")","v":""},null,{"$f":"IFERROR(_xlfn.XLOOKUP(MatrizSegmentación!Q18,'Código CIIU'!$A$2:$A$499,'Código CIIU'!$B$2:$B$499),\"\")","v":""},null,null,null,null,"",null,{"$f":"IFERROR(IF(N18=\"Manufacturero\",_xlfn.XLOOKUP(X18,Hoja2!$D$10:$D$13,Hoja2!$C$10:$C$13,,1),IF(N18=\"Servicios\",_xlfn.XLOOKUP(X18,Hoja2!$E$10:$E$13,Hoja2!$C$10:$C$13,,1),IF(N18=\"Comercio\",_xlfn.XLOOKUP(X18,Hoja2!$F$10:$F$13,Hoja2!$C$10:$C$13,,1),\"P. Natural\"))),\"\")","v":"P. Natural"}]
[null,null,null,null,null,null,null,null,null,null,null,null,null,null,null,{"$f":"IFERROR(_xlfn.XLOOKUP(O19,'Código CIIU'!$A$2:$A$499,'Código CIIU'!$B$2:$B$499),\"\")","v":""},null,{"$f":"IFERROR(_xlfn.XLOOKUP(MatrizSegmentación!Q19,'Código CIIU'!$A$2:$A$499,'Código CIIU'!$B$2:$B$499),\"\")","v":""},null,null,null,null,"",null,{"$f":"IFERROR(IF(N19=\"Manufacturero\",_xlfn.XLOOKUP(X19,Hoja2!$D$10:$D$13,Hoja2!$C$10:$C$13,,1),IF(N19=\"Servicios\",_xlfn.XLOOKUP(X19,Hoja2!$E$10:$E$13,Hoja2!$C$10:$C$13,,1),IF(N19=\"Comercio\",_xlfn.XLOOKUP(X19,Hoja2!$F$10:$F$13,Hoja2!$C$10:$C$13,,1),\"P. Natural\"))),\"\")","v":"P. Natural"}]
[null,null,null,null,null,null,null,null,null,null,null,null,null,null,null,{"$f":"IFERROR(_xlfn.XLOOKUP(O20,'Código CIIU'!$A$2:$A$499,'Código CIIU'!$B$2:$B$499),\"\")","v":""},null,{"$f":"IFERROR(_xlfn.XLOOKUP(MatrizSegmentación!Q20,'Código CIIU'!$A$2:$A$499,'Código CIIU'!$B$2:$B$499),\"\")","v":""},null,null,null,null,"",null,{"$f":"IFERROR(IF(N20=\"Manufacturero\",_xlfn.XLOOKUP(X20,Hoja2!$D$10:$D$13,Hoja2!$C$10:$C$13,,1),IF(N20=\"Servicios\",_xlfn.XLOOKUP(X20,Hoja2!$E$10:$E$13,Hoja2!$C$10:$C$13,,1),IF(N20=\"Comercio\",_xlfn.XLOOKUP(X20,Hoja2!$F$10:$F$13,Hoja2!$C$10:$C$13,,1),\"P. Natural\"))),\"\")","v":"P. Natural"}]
[null,null,null,null,null,null,null,null,null,null,null,null,null,null,null,{"$f":"IFERROR(_xlfn.XLOOKUP(O21,'Código CIIU'!$A$2:$A$499,'Código CIIU'!$B$2:$B$499),\"\")","v":""},null,{"$f":"IFERROR(_xlfn.XLOOKUP(MatrizSegmentación!Q21,'Código CIIU'!$A$2:$A$499,'Código CIIU'!$B$2:$B$499),\"\")","v":""},null,null,null,null,"",null,{"$f":"IFERROR(IF(N21=\"Manufacturero\",_xlfn.XLOOKUP(X21,Hoja2!$D$10:$D$13,Hoja2!$C$10:$C$13,,1),IF(N21=\"Servicios\",_xlfn.XLOOKUP(X21,Hoja2!$E$10:$E$13,Hoja2!$C$10:$C$13,,1),IF(N21=\"Comercio\",_xlfn.XLOOKUP(X21,Hoja2!$F$10:$F$13,Hoja2!$C$10:$C$13,,1),\"P. Natural\"))),\"\")","v":"P. Natural"}]
[null,null,null,null,null,null,null,null,null,null,null,null,null,null,null,{"$f":"IFERROR(_xlfn.XLOOKUP(O22,'Código CIIU'!$A$2:$A$499,'Código CIIU'!$B$2:$B$499),\"\")","v":""},null,{"$f":"IFERROR(_xlfn.XLOOKUP(MatrizSegmentación!Q22,'Código CIIU'!$A$2:$A$499,'Código CIIU'!$B$2:$B$499),\"\")","v":""},null,null,null,null,"",null,{"$f":"IFERROR(IF(N22=\"Manufacturero\",_xlfn.XLOOKUP(X22,Hoja2!$D$10:$D$13,Hoja2!$C$10:$C$13,,1),IF(N22=\"Servicios\",_xlfn.XLOOKUP(X22,Hoja2!$E$10:$E$13,Hoja2!$C$10:$C$13,,1),IF(N22=\"Comercio\",_xlfn.XLOOKUP(X22,Hoja2!$F$10:$F$13,Hoja2!$C$10:$C$13,,1),\"P. Natural\"))),\"\")","v":"P. Natural"}]
[null,null,null,null,null,null,null,null,null,null,null,null,null,null,null,{"$f":"IFERROR(_xlfn.XLOOKUP(O23,'Código CIIU'!$A$2:$A$499,'Código CIIU'!$B$2:$B$499),\"\")","v":""},null,{"$f":"IFERROR(_xlfn.XLOOKUP(MatrizSegmentación!Q23,'Código CIIU'!$A$2:$A$499,'Código CIIU'!$B$2:$B$499),\"\")","v":""},null,null,null,null,"",null,{"$f":"IFERROR(IF(N23=\"Manufacturero\",_xlfn.XLOOKUP(X23,Hoja2!$D$10:$D$13,Hoja2!$C$10:$C$13,,1),IF(N23=\"Servicios\",_xlfn.XLOOKUP(X23,Hoja2!$E$10:$E$13,Hoja2!$C$10:$C$13,,1),IF(N23=\"Comercio\",_xlfn.XLOOKUP(X23,Hoja2!$F$10:$F$13,Hoja2!$C$10:$C$13,,1),\"P. Natural\"))),\"\")","v":"P. Natural"}]
[null,null,null,null,null,null,null,null,null,null,null,null,null,null,null,{"$f":"IFERROR(_xlfn.XLOOKUP(O24,'Código CIIU'!$A$2:$A$499,'Código CIIU'!$B$2:$B$499),\"\")","v":""},null,{"$f":"IFERROR(_xlfn.XLOOKUP(MatrizSegmentación!Q24,'Código CIIU'!$A$2:$A$499,'Código CIIU'!$B$2:$B$499),\"\")","v":""},null,null,null,null,"",null,{"$f":"IFERROR(IF(N24=\"Manufacturero\",_xlfn.XLOOKUP(X24,Hoja2!$D$10:$D$13,Hoja2!$C$10:$C$13,,1),IF(N24=\"Servicios\",_xlfn.XLOOKUP(X24,Hoja2!$E$10:$E$13,Hoja2!$C$10:$C$13,,1),IF(N24=\"Comercio\",_xlfn.XLOOKUP(X24,Hoja2!$F$10:$F$13,Hoja2!$C$10:$C$13,,1),\"P. Natural\"))),\"\")","v":"P. Natural"}]
[null,null,null,null,null,null,null,null,null,null,null,null,null,null,null,{"$f":"IFERROR(_xlfn.XLOOKUP(O25,'Código CIIU'!$A$2:$A$499,'Código CIIU'!$B$2:$B$499),\"\")","v":""},null,{"$f":"IFERROR(_xlfn.XLOOKUP(MatrizSegmentación!Q25,'Código CIIU'!$A$2:$A$499,'Código CIIU'!$B$2:$B$499),\"\")","v":""},null,null,null,null,"",null,{"$f":"IFERROR(IF(N25=\"Manufacturero\",_xlfn.XLOOKUP(X25,Hoja2!$D$10:$D$13,Hoja2!$C$10:$C$13,,1),IF(N25=\"Servicios\",_xlfn.XLOOKUP(X25,Hoja2!$E$10:$E$13,Hoja2!$C$10:$C$13,,1),IF(N25=\"Comercio\",_xlfn.XLOOKUP(X25,Hoja2!$F$10:$F$13,Hoja2!$C$10:$C$13,,1),\"P. Natural\"))),\"\")","v":"P. Natural"}]
[null,null,null,null,null,null,null,null,null,null,null,null,null,null,null,{"$f":"IFERROR(_xlfn.XLOOKUP(O26,'Código CIIU'!$A$2:$A$499,'Código CIIU'!$B$2:$B$499),\"\")","v":""},null,{"$f":"IFERROR(_xlfn.XLOOKUP(MatrizSegmentación!Q26,'Código CIIU'!$A$2:$A$499,'Código CIIU'!$B$2:$B$499),\"\")","v":""},null,null,null,null,"",null,{"$f":"IFERROR(IF(N26=\"Manufacturero\",_xlfn.XLOOKUP(X26,Hoja2!$D$10:$D$13,Hoja2!$C$10:$C$13,,1),IF(N26=\"Servicios\",_xlfn.XLOOKUP(X26,Hoja2!$E$10:$E$13,Hoja2!$C$10:$C$13,,1),IF(N26=\"Comercio\",_xlfn.XLOOKUP(X26,Hoja2!$F$10:$F$13,Hoja2!$C$10:$C$13,,1),\"P. Natural\"))),\"\")","v":"P. Natural"}]
[null,null,null,null,null,null,null,null,null,null,null,null,null,null,null,{"$f":"IFERROR(_xlfn.XLOOKUP(O27,'Código CIIU'!$A$2:$A$499,'Código CIIU'!$B$2:$B$499),\"\")","v":""},null,{"$f":"IFERROR(_xlfn.XLOOKUP(MatrizSegmentación!Q27,'Código CIIU'!$A$2:$A$499,'Código CIIU'!$B$2:$B$499),\"\")","v":""},null,null,null,null,"",null,{"$f":"IFERROR(IF(N27=\"Manufacturero\",_xlfn.XLOOKUP(X27,Hoja2!$D$10:$D$13,Hoja2!$C$10:$C$13,,1),IF(N27=\"Servicios\",_xlfn.XLOOKUP(X27,Hoja2!$E$10:$E$13,Hoja2!$C$10:$C$13,,1),IF(N27=\"Comercio\",_xlfn.XLOOKUP(X27,Hoja2!$F$10:$F$13,Hoja2!$C$10:$C$13,,1),\"P. Natural\"))),\"\")","v":"P. Natural"}]
[null,null,null,null,null,null,null,null,null,null,null,null,null,null,null,{"$f":"IFERROR(_xlfn.XLOOKUP(O28,'Código CIIU'!$A$2:$A$499,'Código CIIU'!$B$2:$B$499),\"\")","v":""},null,{"$f":"IFERROR(_xlfn.XLOOKUP(MatrizSegmentación!Q28,'Código CIIU'!$A$2:$A$499,'Código CIIU'!$B$2:$B$499),\"\")","v":""},null,null,null,null,"",null,{"$f":"IFERROR(IF(N28=\"Manufacturero\",_xlfn.XLOOKUP(X28,Hoja2!$D$10:$D$13,Hoja2!$C$10:$C$13,,1),IF(N28=\"Servicios\",_xlfn.XLOOKUP(X28,Hoja2!$E$10:$E$13,Hoja2!$C$10:$C$13,,1),IF(N28=\"Comercio\",_xlfn.XLOOKUP(X28,Hoja2!$F$10:$F$13,Hoja2!$C$10:$C$13,,1),\"P. Natural\"))),\"\")","v":"P. Natural"}]
[null,null,null,null,null,null,null,null,null,null,null,null,null,null,null,{"$f":"IFERROR(_xlfn.XLOOKUP(O29,'Código CIIU'!$A$2:$A$499,'Código CIIU'!$B$2:$B$499),\"\")","v":""},null,{"$f":"IFERROR(_xlfn.XLOOKUP(MatrizSegmentación!Q29,'Código CIIU'!$A$2:$A$499,'Código CIIU'!$B$2:$B$499),\"\")","v":""},null,null,null,null,"",null,{"$f":"IFERROR(IF(N29=\"Manufacturero\",_xlfn.XLOOKUP(X29,Hoja2!$D$10:$D$13,Hoja2!$C$10:$C$13,,1),IF(N29=\"Servicios\",_xlfn.XLOOKUP(X29,Hoja2!$E$10:$E$13,Hoja2!$C$10:$C$13,,1),IF(N29=\"Comercio\",_xlfn.XLOOKUP(X29,Hoja2!$F$10:$F$13,Hoja2!$C$10:$C$13,,1),\"P. Natural\"))),\"\")","v":"P. Natural"}]
[null,null,null,null,null,null,null,null,null,null,null,null,null,null,null,{"$f":"IFERROR(_xlfn.XLOOKUP(O30,'Código CIIU'!$A$2:$A$499,'Código CIIU'!$B$2:$B$499),\"\")","v":""},null,{"$f":"IFERROR(_xlfn.XLOOKUP(MatrizSegmentación!Q30,'Código CIIU'!$A$2:$A$499,'Código CIIU'!$B$2:$B$499),\"\")","v":""},null,null,null,null,"",null,{"$f":"IFERROR(IF(N30=\"Manufacturero\",_xlfn.XLOOKUP(X30,Hoja2!$D$10:$D$13,Hoja2!$C$10:$C$13,,1),IF(N30=\"Servicios\",_xlfn.XLOOKUP(X30,Hoja2!$E$10:$E$13,Hoja2!$C$10:$C$13,,1),IF(N30=\"Comercio\",_xlfn.XLOOKUP(X30,Hoja2!$F$10:$F$13,Hoja2!$C$10:$C$13,,1),\"P. Natural\"))),\"\")","v":"P. Natural"}]
[null,null,null,null,null,null,null,null,null,null,null,null,null,null,null,{"$f":"IFERROR(_xlfn.XLOOKUP(O31,'Código CIIU'!$A$2:$A$499,'Código CIIU'!$B$2:$B$499),\"\")","v":""},null,{"$f":"IFERROR(_xlfn.XLOOKUP(MatrizSegmentación!Q31,'Código CIIU'!$A$2:$A$499,'Código CIIU'!$B$2:$B$499),\"\")","v":""},null,null,null,null,"",null,{"$f":"IFERROR(IF(N31=\"Manufacturero\",_xlfn.XLOOKUP(X31,Hoja2!$D$10:$D$13,Hoja2!$C$10:$C$13,,1),IF(N31=\"Servicios\",_xlfn.XLOOKUP(X31,Hoja2!$E$10:$E$13,Hoja2!$C$10:$C$13,,1),IF(N31=\"Comercio\",_xlfn.XLOOKUP(X31,Hoja2!$F$10:$F$13,Hoja2!$C$10:$C$13,,1),\"P. Natural\"))),\"\")","v":"P. Natural"}]
[null,null,null,null,null,null,null,null,null,null,null,null,null,null,null,{"$f":"IFERROR(_xlfn.XLOOKUP(O32,'Código CIIU'!$A$2:$A$499,'Código CIIU'!$B$2:$B$499),\"\")","v":""},null,{"$f":"IFERROR(_xlfn.XLOOKUP(MatrizSegmentación!Q32,'Código CIIU'!$A$2:$A$499,'Código CIIU'!$B$2:$B$499),\"\")","v":""},null,null,null,null,"",null,{"$f":"IFERROR(IF(N32=\"Manufacturero\",_xlfn.XLOOKUP(X32,Hoja2!$D$10:$D$13,Hoja2!$C$10:$C$13,,1),IF(N32=\"Servicios\",_xlfn.XLOOKUP(X32,Hoja2!$E$10:$E$13,Hoja2!$C$10:$C$13,,1),IF(N32=\"Comercio\",_xlfn.XLOOKUP(X32,Hoja2!$F$10:$F$13,Hoja2!$C$10:$C$13,,1),\"P. Natural\"))),\"\")","v":"P. Natural"}]
[null,null,null,null,null,null,null,null,null,null,null,null,null,null,null,{"$f":"IFERROR(_xlfn.XLOOKUP(O33,'Código CIIU'!$A$2:$A$499,'Código CIIU'!$B$2:$B$499),\"\")","v":""},null,{"$f":"IFERROR(_xlfn.XLOOKUP(MatrizSegmentación!Q33,'Código CIIU'!$A$2:$A$499,'Código CIIU'!$B$2:$B$499),\"\")","v":""},null,null,null,null,"",null,{"$f":"IFERROR(IF(N33=\"Manufacturero\",_xlfn.XLOOKUP(X33,Hoja2!$D$10:$D$13,Hoja2!$C$10:$C$13,,1),IF(N33=\"Servicios\",_xlfn.XLOOKUP(X33,Hoja2!$E$10:$E$13,Hoja2!$C$10:$C$13,,1),IF(N33=\"Comercio\",_xlfn.XLOOKUP(X33,Hoja2!$F$10:$F$13,Hoja2!$C$10:$C$13,,1),\"P. Natural\"))),\"\")","v":"P. Natural"}]
[null,null,null,null,null,null,null,null,null,null,null,null,null,null,null,{"$f":"IFERROR(_xlfn.XLOOKUP(O34,'Código CIIU'!$A$2:$A$499,'Código CIIU'!$B$2:$B$499),\"\")","v":""},null,{"$f":"IFERROR(_xlfn.XLOOKUP(MatrizSegmentación!Q34,'Código CIIU'!$A$2:$A$499,'Código CIIU'!$B$2:$B$499),\"\")","v":""},null,null,null,null,"",null,{"$f":"IFERROR(IF(N34=\"Manufacturero\",_xlfn.XLOOKUP(X34,Hoja2!$D$10:$D$13,Hoja2!$C$10:$C$13,,1),IF(N34=\"Servicios\",_xlfn.XLOOKUP(X34,Hoja2!$E$10:$E$13,Hoja2!$C$10:$C$13,,1),IF(N34=\"Comercio\",_xlfn.XLOOKUP(X34,Hoja2!$F$10:$F$13,Hoja2!$C$10:$C$13,,1),\"P. Natural\"))),\"\")","v":"P. Natural"}]
[null,null,null,null,null,null,null,null,null,null,null,null,null,null,null,{"$f":"IFERROR(_xlfn.XLOOKUP(O35,'Código CIIU'!$A$2:$A$499,'Código CIIU'!$B$2:$B$499),\"\")","v":""},null,{"$f":"IFERROR(_xlfn.XLOOKUP(MatrizSegmentación!Q35,'Código CIIU'!$A$2:$A$499,'Código CIIU'!$B$2:$B$499),\"\")","v":""},null,null,null,null,"",null,{"$f":"IFERROR(IF(N35=\"Manufacturero\",_xlfn.XLOOKUP(X35,Hoja2!$D$10:$D$13,Hoja2!$C$10:$C$13,,1),IF(N35=\"Servicios\",_xlfn.XLOOKUP(X35,Hoja2!$E$10:$E$13,Hoja2!$C$10:$C$13,,1),IF(N35=\"Comercio\",_xlfn.XLOOKUP(X35,Hoja2!$F$10:$F$13,Hoja2!$C$10:$C$13,,1),\"P. Natural\"))),\"\")","v":"P. Natural"}]
[null,null,null,null,null,null,null,null,null,null,null,null,null,null,null,{"$f":"IFERROR(_xlfn.XLOOKUP(O36,'Código CIIU'!$A$2:$A$499,'Código CIIU'!$B$2:$B$499),\"\")","v":""},null,{"$f":"IFERROR(_xlfn.XLOOKUP(MatrizSegmentación!Q36,'Código CIIU'!$A$2:$A$499,'Código CIIU'!$B$2:$B$499),\"\")","v":""},null,null,null,null,"",null,{"$f":"IFERROR(IF(N36=\"Manufacturero\",_xlfn.XLOOKUP(X36,Hoja2!$D$10:$D$13,Hoja2!$C$10:$C$13,,1),IF(N36=\"Servicios\",_xlfn.XLOOKUP(X36,Hoja2!$E$10:$E$13,Hoja2!$C$10:$C$13,,1),IF(N36=\"Comercio\",_xlfn.XLOOKUP(X36,Hoja2!$F$10:$F$13,Hoja2!$C$10:$C$13,,1),\"P. Natural\"))),\"\")","v":"P. Natural"}]
[null,null,null,null,null,null,null,null,null,null,null,null,null,null,null,{"$f":"IFERROR(_xlfn.XLOOKUP(O37,'Código CIIU'!$A$2:$A$499,'Código CIIU'!$B$2:$B$499),\"\")","v":""},null,{"$f":"IFERROR(_xlfn.XLOOKUP(MatrizSegmentación!Q37,'Código CIIU'!$A$2:$A$499,'Código CIIU'!$B$2:$B$499),\"\")","v":""},null,null,null,null,"",null,{"$f":"IFERROR(IF(N37=\"Manufacturero\",_xlfn.XLOOKUP(X37,Hoja2!$D$10:$D$13,Hoja2!$C$10:$C$13,,1),IF(N37=\"Servicios\",_xlfn.XLOOKUP(X37,Hoja2!$E$10:$E$13,Hoja2!$C$10:$C$13,,1),IF(N37=\"Comercio\",_xlfn.XLOOKUP(X37,Hoja2!$F$10:$F$13,Hoja2!$C$10:$C$13,,1),\"P. Natural\"))),\"\")","v":"P. Natural"}]
[null,null,null,null,null,null,null,null,null,null,null,null,null,null,null,{"$f":"IFERROR(_xlfn.XLOOKUP(O38,'Código CIIU'!$A$2:$A$499,'Código CIIU'!$B$2:$B$499),\"\")","v":""},null,{"$f":"IFERROR(_xlfn.XLOOKUP(MatrizSegmentación!Q38,'Código CIIU'!$A$2:$A$499,'Código CIIU'!$B$2:$B$499),\"\")","v":""},null,null,null,null,"",null,{"$f":"IFERROR(IF(N38=\"Manufacturero\",_xlfn.XLOOKUP(X38,Hoja2!$D$10:$D$13,Hoja2!$C$10:$C$13,,1),IF(N38=\"Servicios\",_xlfn.XLOOKUP(X38,Hoja2!$E$10:$E$13,Hoja2!$C$10:$C$13,,1),IF(N38=\"Comercio\",_xlfn.XLOOKUP(X38,Hoja2!$F$10:$F$13,Hoja2!$C$10:$C$13,,1),\"P. Natural\"))),\"\")","v":"P. Natural"}]
[null,null,null,null,null,null,null,null,null,null,null,null,null,null,null,{"$f":"IFERROR(_xlfn.XLOOKUP(O39,'Código CIIU'!$A$2:$A$499,'Código CIIU'!$B$2:$B$499),\"\")","v":""},null,{"$f":"IFERROR(_xlfn.XLOOKUP(MatrizSegmentación!Q39,'Código CIIU'!$A$2:$A$499,'Código CIIU'!$B$2:$B$499),\"\")","v":""},null,null,null,null,"",null,{"$f":"IFERROR(IF(N39=\"Manufacturero\",_xlfn.XLOOKUP(X39,Hoja2!$D$10:$D$13,Hoja2!$C$10:$C$13,,1),IF(N39=\"Servicios\",_xlfn.XLOOKUP(X39,Hoja2!$E$10:$E$13,Hoja2!$C$10:$C$13,,1),IF(N39=\"Comercio\",_xlfn.XLOOKUP(X39,Hoja2!$F$10:$F$13,Hoja2!$C$10:$C$13,,1),\"P. Natural\"))),\"\")","v":"P. Natural"}]
[null,null,null,null,null,null,null,null,null,null,null,null,null,null,null,{"$f":"IFERROR(_xlfn.XLOOKUP(O40,'Código CIIU'!$A$2:$A$499,'Código CIIU'!$B$2:$B$499),\"\")","v":""},null,{"$f":"IFERROR(_xlfn.XLOOKUP(MatrizSegmentación!Q40,'Código CIIU'!$A$2:$A$499,'Código CIIU'!$B$2:$B$499),\"\")","v":""},null,null,null,null,"",null,{"$f":"IFERROR(IF(N40=\"Manufacturero\",_xlfn.XLOOKUP(X40,Hoja2!$D$10:$D$13,Hoja2!$C$10:$C$13,,1),IF(N40=\"Servicios\",_xlfn.XLOOKUP(X40,Hoja2!$E$10:$E$13,Hoja2!$C$10:$C$13,,1),IF(N40=\"Comercio\",_xlfn.XLOOKUP(X40,Hoja2!$F$10:$F$13,Hoja2!$C$10:$C$13,,1),\"P. Natural\"))),\"\")","v":"P. Natural"}]
[null,null,null,null,null,null,null,null,null,null,null,null,null,null,null,{"$f":"IFERROR(_xlfn.XLOOKUP(O41,'Código CIIU'!$A$2:$A$499,'Código CIIU'!$B$2:$B$499),\"\")","v":""},null,{"$f":"IFERROR(_xlfn.XLOOKUP(MatrizSegmentación!Q41,'Código CIIU'!$A$2:$A$499,'Código CIIU'!$B$2:$B$499),\"\")","v":""},null,null,null,null,"",null,{"$f":"IFERROR(IF(N41=\"Manufacturero\",_xlfn.XLOOKUP(X41,Hoja2!$D$10:$D$13,Hoja2!$C$10:$C$13,,1),IF(N41=\"Servicios\",_xlfn.XLOOKUP(X41,Hoja2!$E$10:$E$13,Hoja2!$C$10:$C$13,,1),IF(N41=\"Comercio\",_xlfn.XLOOKUP(X41,Hoja2!$F$10:$F$13,Hoja2!$C$10:$C$13,,1),\"P. Natural\"))),\"\")","v":"P. Natural"}]
[null,null,null,null,null,null,null,null,null,null,null,null,null,null,null,{"$f":"IFERROR(_xlfn.XLOOKUP(O42,'Código CIIU'!$A$2:$A$499,'Código CIIU'!$B$2:$B$499),\"\")","v":""},null,{"$f":"IFERROR(_xlfn.XLOOKUP(MatrizSegmentación!Q42,'Código CIIU'!$A$2:$A$499,'Código CIIU'!$B$2:$B$499),\"\")","v":""},null,null,null,null,"",null,{"$f":"IFERROR(IF(N42=\"Manufacturero\",_xlfn.XLOOKUP(X42,Hoja2!$D$10:$D$13,Hoja2!$C$10:$C$13,,1),IF(N42=\"Servicios\",_xlfn.XLOOKUP(X42,Hoja2!$E$10:$E$13,Hoja2!$C$10:$C$13,,1),IF(N42=\"Comercio\",_xlfn.XLOOKUP(X42,Hoja2!$F$10:$F$13,Hoja2!$C$10:$C$13,,1),\"P. Natural\"))),\"\")","v":"P. Natural"}]
[null,null,null,null,null,null,null,null,null,null,null,null,null,null,null,{"$f":"IFERROR(_xlfn.XLOOKUP(O43,'Código CIIU'!$A$2:$A$499,'Código CIIU'!$B$2:$B$499),\"\")","v":""},null,{"$f":"IFERROR(_xlfn.XLOOKUP(MatrizSegmentación!Q43,'Código CIIU'!$A$2:$A$499,'Código CIIU'!$B$2:$B$499),\"\")","v":""},null,null,null,null,"",null,{"$f":"IFERROR(IF(N43=\"Manufacturero\",_xlfn.XLOOKUP(X43,Hoja2!$D$10:$D$13,Hoja2!$C$10:$C$13,,1),IF(N43=\"Servicios\",_xlfn.XLOOKUP(X43,Hoja2!$E$10:$E$13,Hoja2!$C$10:$C$13,,1),IF(N43=\"Comercio\",_xlfn.XLOOKUP(X43,Hoja2!$F$10:$F$13,Hoja2!$C$10:$C$13,,1),\"P. Natural\"))),\"\")","v":"P. Natural"}]
[null,null,null,null,null,null,null,null,null,null,null,null,null,null,null,{"$f":"IFERROR(_xlfn.XLOOKUP(O44,'Código CIIU'!$A$2:$A$499,'Código CIIU'!$B$2:$B$499),\"\")","v":""},null,{"$f":"IFERROR(_xlfn.XLOOKUP(MatrizSegmentación!Q44,'Código CIIU'!$A$2:$A$499,'Código CIIU'!$B$2:$B$499),\"\")","v":""},null,null,null,null,"",null,{"$f":"IFERROR(IF(N44=\"Manufacturero\",_xlfn.XLOOKUP(X44,Hoja2!$D$10:$D$13,Hoja2!$C$10:$C$13,,1),IF(N44=\"Servicios\",_xlfn.XLOOKUP(X44,Hoja2!$E$10:$E$13,Hoja2!$C$10:$C$13,,1),IF(N44=\"Comercio\",_xlfn.XLOOKUP(X44,Hoja2!$F$10:$F$13,Hoja2!$C$10:$C$13,,1),\"P. Natural\"))),\"\")","v":"P. Natural"}]
[null,null,null,null,null,null,null,null,null,null,null,null,null,null,null,{"$f":"IFERROR(_xlfn.XLOOKUP(O45,'Código CIIU'!$A$2:$A$499,'Código CIIU'!$B$2:$B$499),\"\")","v":""},null,{"$f":"IFERROR(_xlfn.XLOOKUP(MatrizSegmentación!Q45,'Código CIIU'!$A$2:$A$499,'Código CIIU'!$B$2:$B$499),\"\")","v":""},null,null,null,null,"",null,{"$f":"IFERROR(IF(N45=\"Manufacturero\",_xlfn.XLOOKUP(X45,Hoja2!$D$10:$D$13,Hoja2!$C$10:$C$13,,1),IF(N45=\"Servicios\",_xlfn.XLOOKUP(X45,Hoja2!$E$10:$E$13,Hoja2!$C$10:$C$13,,1),IF(N45=\"Comercio\",_xlfn.XLOOKUP(X45,Hoja2!$F$10:$F$13,Hoja2!$C$10:$C$13,,1),\"P. Natural\"))),\"\")","v":"P. Natural"}]
[null,null,null,null,null,null,null,null,null,null,null,null,null,null,null,{"$f":"IFERROR(_xlfn.XLOOKUP(O46,'Código CIIU'!$A$2:$A$499,'Código CIIU'!$B$2:$B$499),\"\")","v":""},null,{"$f":"IFERROR(_xlfn.XLOOKUP(MatrizSegmentación!Q46,'Código CIIU'!$A$2:$A$499,'Código CIIU'!$B$2:$B$499),\"\")","v":""},null,null,null,null,"",null,{"$f":"IFERROR(IF(N46=\"Manufacturero\",_xlfn.XLOOKUP(X46,Hoja2!$D$10:$D$13,Hoja2!$C$10:$C$13,,1),IF(N46=\"Servicios\",_xlfn.XLOOKUP(X46,Hoja2!$E$10:$E$13,Hoja2!$C$10:$C$13,,1),IF(N46=\"Comercio\",_xlfn.XLOOKUP(X46,Hoja2!$F$10:$F$13,Hoja2!$C$10:$C$13,,1),\"P. Natural\"))),\"\")","v":"P. Natural"}]
[null,null,null,null,null,null,null,null,null,null,null,null,null,null,null,{"$f":"IFERROR(_xlfn.XLOOKUP(O47,'Código CIIU'!$A$2:$A$499,'Código CIIU'!$B$2:$B$499),\"\")","v":""},null,{"$f":"IFERROR(_xlfn.XLOOKUP(MatrizSegmentación!Q47,'Código CIIU'!$A$2:$A$499,'Código CIIU'!$B$2:$B$499),\"\")","v":""},null,null,null,null,"",null,{"$f":"IFERROR(IF(N47=\"Manufacturero\",_xlfn.XLOOKUP(X47,Hoja2!$D$10:$D$13,Hoja2!$C$10:$C$13,,1),IF(N47=\"Servicios\",_xlfn.XLOOKUP(X47,Hoja2!$E$10:$E$13,Hoja2!$C$10:$C$13,,1),IF(N47=\"Comercio\",_xlfn.XLOOKUP(X47,Hoja2!$F$10:$F$13,Hoja2!$C$10:$C$13,,1),\"P. Natural\"))),\"\")","v":"P. Natural"}]
[null,null,null,null,null,null,null,null,null,null,null,null,null,null,null,{"$f":"IFERROR(_xlfn.XLOOKUP(O48,'Código CIIU'!$A$2:$A$499,'Código CIIU'!$B$2:$B$499),\"\")","v":""},null,{"$f":"IFERROR(_xlfn.XLOOKUP(MatrizSegmentación!Q48,'Código CIIU'!$A$2:$A$499,'Código CIIU'!$B$2:$B$499),\"\")","v":""},null,null,null,null,"",null,{"$f":"IFERROR(IF(N48=\"Manufacturero\",_xlfn.XLOOKUP(X48,Hoja2!$D$10:$D$13,Hoja2!$C$10:$C$13,,1),IF(N48=\"Servicios\",_xlfn.XLOOKUP(X48,Hoja2!$E$10:$E$13,Hoja2!$C$10:$C$13,,1),IF(N48=\"Comercio\",_xlfn.XLOOKUP(X48,Hoja2!$F$10:$F$13,Hoja2!$C$10:$C$13,,1),\"P. Natural\"))),\"\")","v":"P. Natural"}]
[null,null,null,null,null,null,null,null,null,null,null,null,null,null,null,{"$f":"IFERROR(_xlfn.XLOOKUP(O49,'Código CIIU'!$A$2:$A$499,'Código CIIU'!$B$2:$B$499),\"\")","v":""},null,{"$f":"IFERROR(_xlfn.XLOOKUP(MatrizSegmentación!Q49,'Código CIIU'!$A$2:$A$499,'Código CIIU'!$B$2:$B$499),\"\")","v":""},null,null,null,null,"",null,{"$f":"IFERROR(IF(N49=\"Manufacturero\",_xlfn.XLOOKUP(X49,Hoja2!$D$10:$D$13,Hoja2!$C$10:$C$13,,1),IF(N49=\"Servicios\",_xlfn.XLOOKUP(X49,Hoja2!$E$10:$E$13,Hoja2!$C$10:$C$13,,1),IF(N49=\"Comercio\",_xlfn.XLOOKUP(X49,Hoja2!$F$10:$F$13,Hoja2!$C$10:$C$13,,1),\"P. Natural\"))),\"\")","v":"P. Natural"}]
[null,null,null,null,null,null,null,null,null,null,null,null,null,null,null,{"$f":"IFERROR(_xlfn.XLOOKUP(O50,'Código CIIU'!$A$2:$A$499,'Código CIIU'!$B$2:$B$499),\"\")","v":""},null,{"$f":"IFERROR(_xlfn.XLOOKUP(MatrizSegmentación!Q50,'Código CIIU'!$A$2:$A$499,'Código CIIU'!$B$2:$B$499),\"\")","v":""},null,null,null,null,"",null,{"$f":"IFERROR(IF(N50=\"Manufacturero\",_xlfn.XLOOKUP(X50,Hoja2!$D$10:$D$13,Hoja2!$C$10:$C$13,,1),IF(N50=\"Servicios\",_xlfn.XLOOKUP(X50,Hoja2!$E$10:$E$13,Hoja2!$C$10:$C$13,,1),IF(N50=\"Comercio\",_xlfn.XLOOKUP(X50,Hoja2!$F$10:$F$13,Hoja2!$C$10:$C$13,,1),\"P. Natural\"))),\"\")","v":"P. Natural"}]
[null,null,null,null,null,null,null,null,null,null,null,null,null,null,null,{"$f":"IFERROR(_xlfn.XLOOKUP(O51,'Código CIIU'!$A$2:$A$499,'Código CIIU'!$B$2:$B$499),\"\")","v":""},null,{"$f":"IFERROR(_xlfn.XLOOKUP(MatrizSegmentación!Q51,'Código CIIU'!$A$2:$A$499,'Código CIIU'!$B$2:$B$499),\"\")","v":""},null,null,null,null,"",null,{"$f":"IFERROR(IF(N51=\"Manufacturero\",_xlfn.XLOOKUP(X51,Hoja2!$D$10:$D$13,Hoja2!$C$10:$C$13,,1),IF(N51=\"Servicios\",_xlfn.XLOOKUP(X51,Hoja2!$E$10:$E$13,Hoja2!$C$10:$C$13,,1),IF(N51=\"Comercio\",_xlfn.XLOOKUP(X51,Hoja2!$F$10:$F$13,Hoja2!$C$10:$C$13,,1),\"P. Natural\"))),\"\")","v":"P. Natural"}]
[null,null,null,null,null,null,null,null,null,null,null,null,null,null,null,{"$f":"IFERROR(_xlfn.XLOOKUP(O52,'Código CIIU'!$A$2:$A$499,'Código CIIU'!$B$2:$B$499),\"\")","v":""},null,{"$f":"IFERROR(_xlfn.XLOOKUP(MatrizSegmentación!Q52,'Código CIIU'!$A$2:$A$499,'Código CIIU'!$B$2:$B$499),\"\")","v":""},null,null,null,null,"",null,{"$f":"IFERROR(IF(N52=\"Manufacturero\",_xlfn.XLOOKUP(X52,Hoja2!$D$10:$D$13,Hoja2!$C$10:$C$13,,1),IF(N52=\"Servicios\",_xlfn.XLOOKUP(X52,Hoja2!$E$10:$E$13,Hoja2!$C$10:$C$13,,1),IF(N52=\"Comercio\",_xlfn.XLOOKUP(X52,Hoja2!$F$10:$F$13,Hoja2!$C$10:$C$13,,1),\"P. Natural\"))),\"\")","v":"P. Natural"}]
[null,null,null,null,null,null,null,null,null,null,null,null,null,null,null,{"$f":"IFERROR(_xlfn.XLOOKUP(O53,'Código CIIU'!$A$2:$A$499,'Código CIIU'!$B$2:$B$499),\"\")","v":""},null,{"$f":"IFERROR(_xlfn.XLOOKUP(MatrizSegmentación!Q53,'Código CIIU'!$A$2:$A$499,'Código CIIU'!$B$2:$B$499),\"\")","v":""},null,null,null,null,"",null,{"$f":"IFERROR(IF(N53=\"Manufacturero\",_xlfn.XLOOKUP(X53,Hoja2!$D$10:$D$13,Hoja2!$C$10:$C$13,,1),IF(N53=\"Servicios\",_xlfn.XLOOKUP(X53,Hoja2!$E$10:$E$13,Hoja2!$C$10:$C$13,,1),IF(N53=\"Comercio\",_xlfn.XLOOKUP(X53,Hoja2!$F$10:$F$13,Hoja2!$C$10:$C$13,,1),\"P. Natural\"))),\"\")","v":"P. Natural"}]
[null,null,null,null,null,null,null,null,null,null,null,null,null,null,null,{"$f":"IFERROR(_xlfn.XLOOKUP(O54,'Código CIIU'!$A$2:$A$499,'Código CIIU'!$B$2:$B$499),\"\")","v":""},null,{"$f":"IFERROR(_xlfn.XLOOKUP(MatrizSegmentación!Q54,'Código CIIU'!$A$2:$A$499,'Código CIIU'!$B$2:$B$499),\"\")","v":""},null,null,null,null,"",null,{"$f":"IFERROR(IF(N54=\"Manufacturero\",_xlfn.XLOOKUP(X54,Hoja2!$D$10:$D$13,Hoja2!$C$10:$C$13,,1),IF(N54=\"Servicios\",_xlfn.XLOOKUP(X54,Hoja2!$E$10:$E$13,Hoja2!$C$10:$C$13,,1),IF(N54=\"Comercio\",_xlfn.XLOOKUP(X54,Hoja2!$F$10:$F$13,Hoja2!$C$10:$C$13,,1),\"P. Natural\"))),\"\")","v":"P. Natural"}]
[null,null,null,null,null,null,null,null,null,null,null,null,null,null,null,{"$f":"IFERROR(_xlfn.XLOOKUP(O55,'Código CIIU'!$A$2:$A$499,'Código CIIU'!$B$2:$B$499),\"\")","v":""},null,{"$f":"IFERROR(_xlfn.XLOOKUP(MatrizSegmentación!Q55,'Código CIIU'!$A$2:$A$499,'Código CIIU'!$B$2:$B$499),\"\")","v":""},null,null,null,null,"",null,{"$f":"IFERROR(IF(N55=\"Manufacturero\",_xlfn.XLOOKUP(X55,Hoja2!$D$10:$D$13,Hoja2!$C$10:$C$13,,1),IF(N55=\"Servicios\",_xlfn.XLOOKUP(X55,Hoja2!$E$10:$E$13,Hoja2!$C$10:$C$13,,1),IF(N55=\"Comercio\",_xlfn.XLOOKUP(X55,Hoja2!$F$10:$F$13,Hoja2!$C$10:$C$13,,1),\"P. Natural\"))),\"\")","v":"P. Natural"}]
[null,null,null,null,null,null,null,null,null,null,null,null,null,null,null,{"$f":"IFERROR(_xlfn.XLOOKUP(O56,'Código CIIU'!$A$2:$A$499,'Código CIIU'!$B$2:$B$499),\"\")","v":""},null,{"$f":"IFERROR(_xlfn.XLOOKUP(MatrizSegmentación!Q56,'Código CIIU'!$A$2:$A$499,'Código CIIU'!$B$2:$B$499),\"\")","v":""},null,null,null,null,"",null,{"$f":"IFERROR(IF(N56=\"Manufacturero\",_xlfn.XLOOKUP(X56,Hoja2!$D$10:$D$13,Hoja2!$C$10:$C$13,,1),IF(N56=\"Servicios\",_xlfn.XLOOKUP(X56,Hoja2!$E$10:$E$13,Hoja2!$C$10:$C$13,,1),IF(N56=\"Comercio\",_xlfn.XLOOKUP(X56,Hoja2!$F$10:$F$13,Hoja2!$C$10:$C$13,,1),\"P. Natural\"))),\"\")","v":"P. Natural"}]
[null,null,null,null,null,null,null,null,null,null,null,null,null,null,null,{"$f":"IFERROR(_xlfn.XLOOKUP(O57,'Código CIIU'!$A$2:$A$499,'Código CIIU'!$B$2:$B$499),\"\")","v":""},null,{"$f":"IFERROR(_xlfn.XLOOKUP(MatrizSegmentación!Q57,'Código CIIU'!$A$2:$A$499,'Código CIIU'!$B$2:$B$499),\"\")","v":""},null,null,null,null,"",null,{"$f":"IFERROR(IF(N57=\"Manufacturero\",_xlfn.XLOOKUP(X57,Hoja2!$D$10:$D$13,Hoja2!$C$10:$C$13,,1),IF(N57=\"Servicios\",_xlfn.XLOOKUP(X57,Hoja2!$E$10:$E$13,Hoja2!$C$10:$C$13,,1),IF(N57=\"Comercio\",_xlfn.XLOOKUP(X57,Hoja2!$F$10:$F$13,Hoja2!$C$10:$C$13,,1),\"P. Natural\"))),\"\")","v":"P. Natural"}]
[null,null,null,null,null,null,null,null,null,null,null,null,null,null,null,{"$f":"IFERROR(_xlfn.XLOOKUP(O58,'Código CIIU'!$A$2:$A$499,'Código CIIU'!$B$2:$B$499),\"\")","v":""},null,{"$f":"IFERROR(_xlfn.XLOOKUP(MatrizSegmentación!Q58,'Código CIIU'!$A$2:$A$499,'Código CIIU'!$B$2:$B$499),\"\")","v":""},null,null,null,null,"",null,{"$f":"IFERROR(IF(N58=\"Manufacturero\",_xlfn.XLOOKUP(X58,Hoja2!$D$10:$D$13,Hoja2!$C$10:$C$13,,1),IF(N58=\"Servicios\",_xlfn.XLOOKUP(X58,Hoja2!$E$10:$E$13,Hoja2!$C$10:$C$13,,1),IF(N58=\"Comercio\",_xlfn.XLOOKUP(X58,Hoja2!$F$10:$F$13,Hoja2!$C$10:$C$13,,1),\"P. Natural\"))),\"\")","v":"P. Natural"}]
[null,null,null,null,null,null,null,null,null,null,null,null,null,null,null,{"$f":"IFERROR(_xlfn.XLOOKUP(O59,'Código CIIU'!$A$2:$A$499,'Código CIIU'!$B$2:$B$499),\"\")","v":""},null,{"$f":"IFERROR(_xlfn.XLOOKUP(MatrizSegmentación!Q59,'Código CIIU'!$A$2:$A$499,'Código CIIU'!$B$2:$B$499),\"\")","v":""},null,null,null,null,"",null,{"$f":"IFERROR(IF(N59=\"Manufacturero\",_xlfn.XLOOKUP(X59,Hoja2!$D$10:$D$13,Hoja2!$C$10:$C$13,,1),IF(N59=\"Servicios\",_xlfn.XLOOKUP(X59,Hoja2!$E$10:$E$13,Hoja2!$C$10:$C$13,,1),IF(N59=\"Comercio\",_xlfn.XLOOKUP(X59,Hoja2!$F$10:$F$13,Hoja2!$C$10:$C$13,,1),\"P. Natural\"))),\"\")","v":"P. Natural"}]
[null,null,null,null,null,null,null,null,null,null,null,null,null,null,null,{"$f":"IFERROR(_xlfn.XLOOKUP(O60,'Código CIIU'!$A$2:$A$499,'Código CIIU'!$B$2:$B$499),\"\")","v":""},null,{"$f":"IFERROR(_xlfn.XLOOKUP(MatrizSegmentación!Q60,'Código CIIU'!$A$2:$A$499,'Código CIIU'!$B$2:$B$499),\"\")","v":""},null,null,null,null,"",null,{"$f":"IFERROR(IF(N60=\"Manufacturero\",_xlfn.XLOOKUP(X60,Hoja2!$D$10:$D$13,Hoja2!$C$10:$C$13,,1),IF(N60=\"Servicios\",_xlfn.XLOOKUP(X60,Hoja2!$E$10:$E$13,Hoja2!$C$10:$C$13,,1),IF(N60=\"Comercio\",_xlfn.XLOOKUP(X60,Hoja2!$F$10:$F$13,Hoja2!$C$10:$C$13,,1),\"P. Natural\"))),\"\")","v":"P. Natural"}]
[null,null,null,null,null,null,null,null,null,null,null,null,null,null,null,{"$f":"IFERROR(_xlfn.XLOOKUP(O61,'Código CIIU'!$A$2:$A$499,'Código CIIU'!$B$2:$B$499),\"\")","v":""},null,{"$f":"IFERROR(_xlfn.XLOOKUP(MatrizSegmentación!Q61,'Código CIIU'!$A$2:$A$499,'Código CIIU'!$B$2:$B$499),\"\")","v":""},null,null,null,null,"",null,{"$f":"IFERROR(IF(N61=\"Manufacturero\",_xlfn.XLOOKUP(X61,Hoja2!$D$10:$D$13,Hoja2!$C$10:$C$13,,1),IF(N61=\"Servicios\",_xlfn.XLOOKUP(X61,Hoja2!$E$10:$E$13,Hoja2!$C$10:$C$13,,1),IF(N61=\"Comercio\",_xlfn.XLOOKUP(X61,Hoja2!$F$10:$F$13,Hoja2!$C$10:$C$13,,1),\"P. Natural\"))),\"\")","v":"P. Natural"}]
[null,null,null,null,null,null,null,null,null,null,null,null,null,null,null,{"$f":"IFERROR(_xlfn.XLOOKUP(O62,'Código CIIU'!$A$2:$A$499,'Código CIIU'!$B$2:$B$499),\"\")","v":""},null,{"$f":"IFERROR(_xlfn.XLOOKUP(MatrizSegmentación!Q62,'Código CIIU'!$A$2:$A$499,'Código CIIU'!$B$2:$B$499),\"\")","v":""},null,null,null,null,"",null,{"$f":"IFERROR(IF(N62=\"Manufacturero\",_xlfn.XLOOKUP(X62,Hoja2!$D$10:$D$13,Hoja2!$C$10:$C$13,,1),IF(N62=\"Servicios\",_xlfn.XLOOKUP(X62,Hoja2!$E$10:$E$13,Hoja2!$C$10:$C$13,,1),IF(N62=\"Comercio\",_xlfn.XLOOKUP(X62,Hoja2!$F$10:$F$13,Hoja2!$C$10:$C$13,,1),\"P. Natural\"))),\"\")","v":"P. Natural"}]
[null,null,null,null,null,null,null,null,null,null,null,null,null,null,null,{"$f":"IFERROR(_xlfn.XLOOKUP(O63,'Código CIIU'!$A$2:$A$499,'Código CIIU'!$B$2:$B$499),\"\")","v":""},null,{"$f":"IFERROR(_xlfn.XLOOKUP(MatrizSegmentación!Q63,'Código CIIU'!$A$2:$A$499,'Código CIIU'!$B$2:$B$499),\"\")","v":""},null,null,null,null,"",null,{"$f":"IFERROR(IF(N63=\"Manufacturero\",_xlfn.XLOOKUP(X63,Hoja2!$D$10:$D$13,Hoja2!$C$10:$C$13,,1),IF(N63=\"Servicios\",_xlfn.XLOOKUP(X63,Hoja2!$E$10:$E$13,Hoja2!$C$10:$C$13,,1),IF(N63=\"Comercio\",_xlfn.XLOOKUP(X63,Hoja2!$F$10:$F$13,Hoja2!$C$10:$C$13,,1),\"P. Natural\"))),\"\")","v":"P. Natural"}]
[null,null,null,null,null,null,null,null,null,null,null,null,null,null,null,{"$f":"IFERROR(_xlfn.XLOOKUP(O64,'Código CIIU'!$A$2:$A$499,'Código CIIU'!$B$2:$B$499),\"\")","v":""},null,{"$f":"IFERROR(_xlfn.XLOOKUP(MatrizSegmentación!Q64,'Código CIIU'!$A$2:$A$499,'Código CIIU'!$B$2:$B$499),\"\")","v":""},null,null,null,null,"",null,{"$f":"IFERROR(IF(N64=\"Manufacturero\",_xlfn.XLOOKUP(X64,Hoja2!$D$10:$D$13,Hoja2!$C$10:$C$13,,1),IF(N64=\"Servicios\",_xlfn.XLOOKUP(X64,Hoja2!$E$10:$E$13,Hoja2!$C$10:$C$13,,1),IF(N64=\"Comercio\",_xlfn.XLOOKUP(X64,Hoja2!$F$10:$F$13,Hoja2!$C$10:$C$13,,1),\"P. Natural\"))),\"\")","v":"P. Natural"}]
[null,null,null,null,null,null,null,null,null,null,null,null,null,null,null,{"$f":"IFERROR(_xlfn.XLOOKUP(O65,'Código CIIU'!$A$2:$A$499,'Código CIIU'!$B$2:$B$499),\"\")","v":""},null,{"$f":"IFERROR(_xlfn.XLOOKUP(MatrizSegmentación!Q65,'Código CIIU'!$A$2:$A$499,'Código CIIU'!$B$2:$B$499),\"\")","v":""},null,null,null,null,"",null,{"$f":"IFERROR(IF(N65=\"Manufacturero\",_xlfn.XLOOKUP(X65,Hoja2!$D$10:$D$13,Hoja2!$C$10:$C$13,,1),IF(N65=\"Servicios\",_xlfn.XLOOKUP(X65,Hoja2!$E$10:$E$13,Hoja2!$C$10:$C$13,,1),IF(N65=\"Comercio\",_xlfn.XLOOKUP(X65,Hoja2!$F$10:$F$13,Hoja2!$C$10:$C$13,,1),\"P. Natural\"))),\"\")","v":"P. Natural"}]
[null,null,null,null,null,null,null,null,null,null,null,null,null,null,null,{"$f":"IFERROR(_xlfn.XLOOKUP(O66,'Código CIIU'!$A$2:$A$499,'Código CIIU'!$B$2:$B$499),\"\")","v":""},null,{"$f":"IFERROR(_xlfn.XLOOKUP(MatrizSegmentación!Q66,'Código CIIU'!$A$2:$A$499,'Código CIIU'!$B$2:$B$499),\"\")","v":""},null,null,null,null,"",null,{"$f":"IFERROR(IF(N66=\"Manufacturero\",_xlfn.XLOOKUP(X66,Hoja2!$D$10:$D$13,Hoja2!$C$10:$C$13,,1),IF(N66=\"Servicios\",_xlfn.XLOOKUP(X66,Hoja2!$E$10:$E$13,Hoja2!$C$10:$C$13,,1),IF(N66=\"Comercio\",_xlfn.XLOOKUP(X66,Hoja2!$F$10:$F$13,Hoja2!$C$10:$C$13,,1),\"P. Natural\"))),\"\")","v":"P. Natural"}]
[null,null,null,null,null,null,null,null,null,null,null,null,null,null,null,{"$f":"IFERROR(_xlfn.XLOOKUP(O67,'Código CIIU'!$A$2:$A$499,'Código CIIU'!$B$2:$B$499),\"\")","v":""},null,{"$f":"IFERROR(_xlfn.XLOOKUP(MatrizSegmentación!Q67,'Código CIIU'!$A$2:$A$499,'Código CIIU'!$B$2:$B$499),\"\")","v":""},null,null,null,null,"",null,{"$f":"IFERROR(IF(N67=\"Manufacturero\",_xlfn.XLOOKUP(X67,Hoja2!$D$10:$D$13,Hoja2!$C$10:$C$13,,1),IF(N67=\"Servicios\",_xlfn.XLOOKUP(X67,Hoja2!$E$10:$E$13,Hoja2!$C$10:$C$13,,1),IF(N67=\"Comercio\",_xlfn.XLOOKUP(X67,Hoja2!$F$10:$F$13,Hoja2!$C$10:$C$13,,1),\"P. Natural\"))),\"\")","v":"P. Natural"}]
[null,null,null,null,null,null,null,null,null,null,null,null,null,null,null,{"$f":"IFERROR(_xlfn.XLOOKUP(O68,'Código CIIU'!$A$2:$A$499,'Código CIIU'!$B$2:$B$499),\"\")","v":""},null,{"$f":"IFERROR(_xlfn.XLOOKUP(MatrizSegmentación!Q68,'Código CIIU'!$A$2:$A$499,'Código CIIU'!$B$2:$B$499),\"\")","v":""},null,null,null,null,"",null,{"$f":"IFERROR(IF(N68=\"Manufacturero\",_xlfn.XLOOKUP(X68,Hoja2!$D$10:$D$13,Hoja2!$C$10:$C$13,,1),IF(N68=\"Servicios\",_xlfn.XLOOKUP(X68,Hoja2!$E$10:$E$13,Hoja2!$C$10:$C$13,,1),IF(N68=\"Comercio\",_xlfn.XLOOKUP(X68,Hoja2!$F$10:$F$13,Hoja2!$C$10:$C$13,,1),\"P. Natural\"))),\"\")","v":"P. Natural"}]
[null,null,null,null,null,null,null,null,null,null,null,null,null,null,null,{"$f":"IFERROR(_xlfn.XLOOKUP(O69,'Código CIIU'!$A$2:$A$499,'Código CIIU'!$B$2:$B$499),\"\")","v":""},null,{"$f":"IFERROR(_xlfn.XLOOKUP(MatrizSegmentación!Q69,'Código CIIU'!$A$2:$A$499,'Código CIIU'!$B$2:$B$499),\"\")","v":""},null,null,null,null,"",null,{"$f":"IFERROR(IF(N69=\"Manufacturero\",_xlfn.XLOOKUP(X69,Hoja2!$D$10:$D$13,Hoja2!$C$10:$C$13,,1),IF(N69=\"Servicios\",_xlfn.XLOOKUP(X69,Hoja2!$E$10:$E$13,Hoja2!$C$10:$C$13,,1),IF(N69=\"Comercio\",_xlfn.XLOOKUP(X69,Hoja2!$F$10:$F$13,Hoja2!$C$10:$C$13,,1),\"P. Natural\"))),\"\")","v":"P. Natural"}]
[null,null,null,null,null,null,null,null,null,null,null,null,null,null,null,{"$f":"IFERROR(_xlfn.XLOOKUP(O70,'Código CIIU'!$A$2:$A$499,'Código CIIU'!$B$2:$B$499),\"\")","v":""},null,{"$f":"IFERROR(_xlfn.XLOOKUP(MatrizSegmentación!Q70,'Código CIIU'!$A$2:$A$499,'Código CIIU'!$B$2:$B$499),\"\")","v":""},null,null,null,null,{"$f":"IFERROR(AVERAGE(S70:V70),\"\")","v":""},null,{"$f":"IFERROR(IF(N70=\"Manufacturero\",_xlfn.XLOOKUP(X70,Hoja2!$D$10:$D$13,Hoja2!$C$10:$C$13,,1),IF(N70=\"Servicios\",_xlfn.XLOOKUP(X70,Hoja2!$E$10:$E$13,Hoja2!$C$10:$C$13,,1),IF(N70=\"Comercio\",_xlfn.XLOOKUP(X70,Hoja2!$F$10:$F$13,Hoja2!$C$10:$C$13,,1),\"P. Natural\"))),\"\")","v":"P. Natural"}]
[null,null,null,null,null,null,null,null,null,null,null,null,null,null,null,{"$f":"IFERROR(_xlfn.XLOOKUP(O71,'Código CIIU'!$A$2:$A$499,'Código CIIU'!$B$2:$B$499),\"\")","v":""},null,{"$f":"IFERROR(_xlfn.XLOOKUP(MatrizSegmentación!Q71,'Código CIIU'!$A$2:$A$499,'Código CIIU'!$B$2:$B$499),\"\")","v":""},null,null,null,null,"",null,{"$f":"IFERROR(IF(N71=\"Manufacturero\",_xlfn.XLOOKUP(X71,Hoja2!$D$10:$D$13,Hoja2!$C$10:$C$13,,1),IF(N71=\"Servicios\",_xlfn.XLOOKUP(X71,Hoja2!$E$10:$E$13,Hoja2!$C$10:$C$13,,1),IF(N71=\"Comercio\",_xlfn.XLOOKUP(X71,Hoja2!$F$10:$F$13,Hoja2!$C$10:$C$13,,1),\"P. Natural\"))),\"\")","v":"P. Natural"}]
[null,null,null,null,null,null,null,null,null,null,null,null,null,null,null,{"$f":"IFERROR(_xlfn.XLOOKUP(O72,'Código CIIU'!$A$2:$A$499,'Código CIIU'!$B$2:$B$499),\"\")","v":""},null,{"$f":"IFERROR(_xlfn.XLOOKUP(MatrizSegmentación!Q72,'Código CIIU'!$A$2:$A$499,'Código CIIU'!$B$2:$B$499),\"\")","v":""},null,null,null,null,"",null,{"$f":"IFERROR(IF(N72=\"Manufacturero\",_xlfn.XLOOKUP(X72,Hoja2!$D$10:$D$13,Hoja2!$C$10:$C$13,,1),IF(N72=\"Servicios\",_xlfn.XLOOKUP(X72,Hoja2!$E$10:$E$13,Hoja2!$C$10:$C$13,,1),IF(N72=\"Comercio\",_xlfn.XLOOKUP(X72,Hoja2!$F$10:$F$13,Hoja2!$C$10:$C$13,,1),\"P. Natural\"))),\"\")","v":"P. Natural"}]
[null,null,null,null,null,null,null,null,null,null,null,null,null,null,null,{"$f":"IFERROR(_xlfn.XLOOKUP(O73,'Código CIIU'!$A$2:$A$499,'Código CIIU'!$B$2:$B$499),\"\")","v":""},null,{"$f":"IFERROR(_xlfn.XLOOKUP(MatrizSegmentación!Q73,'Código CIIU'!$A$2:$A$499,'Código CIIU'!$B$2:$B$499),\"\")","v":""},null,null,null,null,"",null,{"$f":"IFERROR(IF(N73=\"Manufacturero\",_xlfn.XLOOKUP(X73,Hoja2!$D$10:$D$13,Hoja2!$C$10:$C$13,,1),IF(N73=\"Servicios\",_xlfn.XLOOKUP(X73,Hoja2!$E$10:$E$13,Hoja2!$C$10:$C$13,,1),IF(N73=\"Comercio\",_xlfn.XLOOKUP(X73,Hoja2!$F$10:$F$13,Hoja2!$C$10:$C$13,,1),\"P. Natural\"))),\"\")","v":"P. Natural"}]
[null,null,null,null,null,null,null,null,null,null,null,null,null,null,null,{"$f":"IFERROR(_xlfn.XLOOKUP(O74,'Código CIIU'!$A$2:$A$499,'Código CIIU'!$B$2:$B$499),\"\")","v":""},null,{"$f":"IFERROR(_xlfn.XLOOKUP(MatrizSegmentación!Q74,'Código CIIU'!$A$2:$A$499,'Código CIIU'!$B$2:$B$499),\"\")","v":""},null,null,null,null,"",null,{"$f":"IFERROR(IF(N74=\"Manufacturero\",_xlfn.XLOOKUP(X74,Hoja2!$D$10:$D$13,Hoja2!$C$10:$C$13,,1),IF(N74=\"Servicios\",_xlfn.XLOOKUP(X74,Hoja2!$E$10:$E$13,Hoja2!$C$10:$C$13,,1),IF(N74=\"Comercio\",_xlfn.XLOOKUP(X74,Hoja2!$F$10:$F$13,Hoja2!$C$10:$C$13,,1),\"P. Natural\"))),\"\")","v":"P. Natural"}]
[null,null,null,null,null,null,null,null,null,null,null,null,null,null,null,{"$f":"IFERROR(_xlfn.XLOOKUP(O75,'Código CIIU'!$A$2:$A$499,'Código CIIU'!$B$2:$B$499),\"\")","v":""},null,{"$f":"IFERROR(_xlfn.XLOOKUP(MatrizSegmentación!Q75,'Código CIIU'!$A$2:$A$499,'Código CIIU'!$B$2:$B$499),\"\")","v":""},null,null,null,null,"",null,{"$f":"IFERROR(IF(N75=\"Manufacturero\",_xlfn.XLOOKUP(X75,Hoja2!$D$10:$D$13,Hoja2!$C$10:$C$13,,1),IF(N75=\"Servicios\",_xlfn.XLOOKUP(X75,Hoja2!$E$10:$E$13,Hoja2!$C$10:$C$13,,1),IF(N75=\"Comercio\",_xlfn.XLOOKUP(X75,Hoja2!$F$10:$F$13,Hoja2!$C$10:$C$13,,1),\"P. Natural\"))),\"\")","v":"P. Natural"}]
[null,null,null,null,null,null,null,null,null,null,null,null,null,null,null,{"$f":"IFERROR(_xlfn.XLOOKUP(O76,'Código CIIU'!$A$2:$A$499,'Código CIIU'!$B$2:$B$499),\"\")","v":""},null,{"$f":"IFERROR(_xlfn.XLOOKUP(MatrizSegmentación!Q76,'Código CIIU'!$A$2:$A$499,'Código CIIU'!$B$2:$B$499),\"\")","v":""},null,null,null,null,"",null,{"$f":"IFERROR(IF(N76=\"Manufacturero\",_xlfn.XLOOKUP(X76,Hoja2!$D$10:$D$13,Hoja2!$C$10:$C$13,,1),IF(N76=\"Servicios\",_xlfn.XLOOKUP(X76,Hoja2!$E$10:$E$13,Hoja2!$C$10:$C$13,,1),IF(N76=\"Comercio\",_xlfn.XLOOKUP(X76,Hoja2!$F$10:$F$13,Hoja2!$C$10:$C$13,,1),\"P. Natural\"))),\"\")","v":"P. Natural"}]
[null,null,null,null,null,null,null,null,null,null,null,null,null,null,null,{"$f":"IFERROR(_xlfn.XLOOKUP(O77,'Código CIIU'!$A$2:$A$499,'Código CIIU'!$B$2:$B$499),\"\")","v":""},null,{"$f":"IFERROR(_xlfn.XLOOKUP(MatrizSegmentación!Q77,'Código CIIU'!$A$2:$A$499,'Código CIIU'!$B$2:$B$499),\"\")","v":""},null,null,null,null,"",null,{"$f":"IFERROR(IF(N77=\"Manufacturero\",_xlfn.XLOOKUP(X77,Hoja2!$D$10:$D$13,Hoja2!$C$10:$C$13,,1),IF(N77=\"Servicios\",_xlfn.XLOOKUP(X77,Hoja2!$E$10:$E$13,Hoja2!$C$10:$C$13,,1),IF(N77=\"Comercio\",_xlfn.XLOOKUP(X77,Hoja2!$F$10:$F$13,Hoja2!$C$10:$C$13,,1),\"P. Natural\"))),\"\")","v":"P. Natural"}]
[null,null,null,null,null,null,null,null,null,null,null,null,null,null,null,{"$f":"IFERROR(_xlfn.XLOOKUP(O78,'Código CIIU'!$A$2:$A$499,'Código CIIU'!$B$2:$B$499),\"\")","v":""},null,{"$f":"IFERROR(_xlfn.XLOOKUP(MatrizSegmentación!Q78,'Código CIIU'!$A$2:$A$499,'Código CIIU'!$B$2:$B$499),\"\")","v":""},null,null,null,null,"",null,{"$f":"IFERROR(IF(N78=\"Manufacturero\",_xlfn.XLOOKUP(X78,Hoja2!$D$10:$D$13,Hoja2!$C$10:$C$13,,1),IF(N78=\"Servicios\",_xlfn.XLOOKUP(X78,Hoja2!$E$10:$E$13,Hoja2!$C$10:$C$13,,1),IF(N78=\"Comercio\",_xlfn.XLOOKUP(X78,Hoja2!$F$10:$F$13,Hoja2!$C$10:$C$13,,1),\"P. Natural\"))),\"\")","v":"P. Natural"}]
[null,null,null,null,null,null,null,null,null,null,null,null,null,null,null,{"$f":"IFERROR(_xlfn.XLOOKUP(O79,'Código CIIU'!$A$2:$A$499,'Código CIIU'!$B$2:$B$499),\"\")","v":""},null,{"$f":"IFERROR(_xlfn.XLOOKUP(MatrizSegmentación!Q79,'Código CIIU'!$A$2:$A$499,'Código CIIU'!$B$2:$B$499),\"\")","v":""},null,null,null,null,"",null,{"$f":"IFERROR(IF(N79=\"Manufacturero\",_xlfn.XLOOKUP(X79,Hoja2!$D$10:$D$13,Hoja2!$C$10:$C$13,,1),IF(N79=\"Servicios\",_xlfn.XLOOKUP(X79,Hoja2!$E$10:$E$13,Hoja2!$C$10:$C$13,,1),IF(N79=\"Comercio\",_xlfn.XLOOKUP(X79,Hoja2!$F$10:$F$13,Hoja2!$C$10:$C$13,,1),\"P. Natural\"))),\"\")","v":"P. Natural"}]
[null,null,null,null,null,null,null,null,null,null,null,null,null,null,null,{"$f":"IFERROR(_xlfn.XLOOKUP(O80,'Código CIIU'!$A$2:$A$499,'Código CIIU'!$B$2:$B$499),\"\")","v":""},null,{"$f":"IFERROR(_xlfn.XLOOKUP(MatrizSegmentación!Q80,'Código CIIU'!$A$2:$A$499,'Código CIIU'!$B$2:$B$499),\"\")","v":""},null,null,null,null,"",null,{"$f":"IFERROR(IF(N80=\"Manufacturero\",_xlfn.XLOOKUP(X80,Hoja2!$D$10:$D$13,Hoja2!$C$10:$C$13,,1),IF(N80=\"Servicios\",_xlfn.XLOOKUP(X80,Hoja2!$E$10:$E$13,Hoja2!$C$10:$C$13,,1),IF(N80=\"Comercio\",_xlfn.XLOOKUP(X80,Hoja2!$F$10:$F$13,Hoja2!$C$10:$C$13,,1),\"P. Natural\"))),\"\")","v":"P. Natural"}]
[null,null,null,null,null,null,null,null,null,null,null,null,null,null,null,{"$f":"IFERROR(_xlfn.XLOOKUP(O81,'Código CIIU'!$A$2:$A$499,'Código CIIU'!$B$2:$B$499),\"\")","v":""},null,{"$f":"IFERROR(_xlfn.XLOOKUP(MatrizSegmentación!Q81,'Código CIIU'!$A$2:$A$499,'Código CIIU'!$B$2:$B$499),\"\")","v":""},null,null,null,null,"",null,{"$f":"IFERROR(IF(N81=\"Manufacturero\",_xlfn.XLOOKUP(X81,Hoja2!$D$10:$D$13,Hoja2!$C$10:$C$13,,1),IF(N81=\"Servicios\",_xlfn.XLOOKUP(X81,Hoja2!$E$10:$E$13,Hoja2!$C$10:$C$13,,1),IF(N81=\"Comercio\",_xlfn.XLOOKUP(X81,Hoja2!$F$10:$F$13,Hoja2!$C$10:$C$13,,1),\"P. Natural\"))),\"\")","v":"P. Natural"}]
[null,null,null,null,null,null,null,null,null,null,null,null,null,null,null,{"$f":"IFERROR(_xlfn.XLOOKUP(O82,'Código CIIU'!$A$2:$A$499,'Código CIIU'!$B$2:$B$499),\"\")","v":""},null,{"$f":"IFERROR(_xlfn.XLOOKUP(MatrizSegmentación!Q82,'Código CIIU'!$A$2:$A$499,'Código CIIU'!$B$2:$B$499),\"\")","v":""},null,null,null,null,"",null,{"$f":"IFERROR(IF(N82=\"Manufacturero\",_xlfn.XLOOKUP(X82,Hoja2!$D$10:$D$13,Hoja2!$C$10:$C$13,,1),IF(N82=\"Servicios\",_xlfn.XLOOKUP(X82,Hoja2!$E$10:$E$13,Hoja2!$C$10:$C$13,,1),IF(N82=\"Comercio\",_xlfn.XLOOKUP(X82,Hoja2!$F$10:$F$13,Hoja2!$C$10:$C$13,,1),\"P. Natural\"))),\"\")","v":"P. Natural"}]
[null,null,null,null,null,null,null,null,null,null,null,null,null,null,null,{"$f":"IFERROR(_xlfn.XLOOKUP(O83,'Código CIIU'!$A$2:$A$499,'Código CIIU'!$B$2:$B$499),\"\")","v":""},null,{"$f":"IFERROR(_xlfn.XLOOKUP(MatrizSegmentación!Q83,'Código CIIU'!$A$2:$A$499,'Código CIIU'!$B$2:$B$499),\"\")","v":""},null,null,null,null,"",null,{"$f":"IFERROR(IF(N83=\"Manufacturero\",_xlfn.XLOOKUP(X83,Hoja2!$D$10:$D$13,Hoja2!$C$10:$C$13,,1),IF(N83=\"Servicios\",_xlfn.XLOOKUP(X83,Hoja2!$E$10:$E$13,Hoja2!$C$10:$C$13,,1),IF(N83=\"Comercio\",_xlfn.XLOOKUP(X83,Hoja2!$F$10:$F$13,Hoja2!$C$10:$C$13,,1),\"P. Natural\"))),\"\")","v":"P. Natural"}]
[null,null,null,null,null,null,null,null,null,null,null,null,null,null,null,{"$f":"IFERROR(_xlfn.XLOOKUP(O84,'Código CIIU'!$A$2:$A$499,'Código CIIU'!$B$2:$B$499),\"\")","v":""},null,{"$f":"IFERROR(_xlfn.XLOOKUP(MatrizSegmentación!Q84,'Código CIIU'!$A$2:$A$499,'Código CIIU'!$B$2:$B$499),\"\")","v":""},null,null,null,null,"",null,{"$f":"IFERROR(IF(N84=\"Manufacturero\",_xlfn.XLOOKUP(X84,Hoja2!$D$10:$D$13,Hoja2!$C$10:$C$13,,1),IF(N84=\"Servicios\",_xlfn.XLOOKUP(X84,Hoja2!$E$10:$E$13,Hoja2!$C$10:$C$13,,1),IF(N84=\"Comercio\",_xlfn.XLOOKUP(X84,Hoja2!$F$10:$F$13,Hoja2!$C$10:$C$13,,1),\"P. Natural\"))),\"\")","v":"P. Natural"}]
[null,null,null,null,null,null,null,null,null,null,null,null,null,null,null,{"$f":"IFERROR(_xlfn.XLOOKUP(O85,'Código CIIU'!$A$2:$A$499,'Código CIIU'!$B$2:$B$499),\"\")","v":""},null,{"$f":"IFERROR(_xlfn.XLOOKUP(MatrizSegmentación!Q85,'Código CIIU'!$A$2:$A$499,'Código CIIU'!$B$2:$B$499),\"\")","v":""},null,null,null,null,"",null,{"$f":"IFERROR(IF(N85=\"Manufacturero\",_xlfn.XLOOKUP(X85,Hoja2!$D$10:$D$13,Hoja2!$C$10:$C$13,,1),IF(N85=\"Servicios\",_xlfn.XLOOKUP(X85,Hoja2!$E$10:$E$13,Hoja2!$C$10:$C$13,,1),IF(N85=\"Comercio\",_xlfn.XLOOKUP(X85,Hoja2!$F$10:$F$13,Hoja2!$C$10:$C$13,,1),\"P. Natural\"))),\"\")","v":"P. Natural"}]
[null,null,null,null,null,null,null,null,null,null,null,null,null,null,null,{"$f":"IFERROR(_xlfn.XLOOKUP(O86,'Código CIIU'!$A$2:$A$499,'Código CIIU'!$B$2:$B$499),\"\")","v":""},null,{"$f":"IFERROR(_xlfn.XLOOKUP(MatrizSegmentación!Q86,'Código CIIU'!$A$2:$A$499,'Código CIIU'!$B$2:$B$499),\"\")","v":""},null,null,null,null,"",null,{"$f":"IFERROR(IF(N86=\"Manufacturero\",_xlfn.XLOOKUP(X86,Hoja2!$D$10:$D$13,Hoja2!$C$10:$C$13,,1),IF(N86=\"Servicios\",_xlfn.XLOOKUP(X86,Hoja2!$E$10:$E$13,Hoja2!$C$10:$C$13,,1),IF(N86=\"Comercio\",_xlfn.XLOOKUP(X86,Hoja2!$F$10:$F$13,Hoja2!$C$10:$C$13,,1),\"P. Natural\"))),\"\")","v":"P. Natural"}]
[null,null,null,null,null,null,null,null,null,null,null,null,null,null,null,{"$f":"IFERROR(_xlfn.XLOOKUP(O87,'Código CIIU'!$A$2:$A$499,'Código CIIU'!$B$2:$B$499),\"\")","v":""},null,{"$f":"IFERROR(_xlfn.XLOOKUP(MatrizSegmentación!Q87,'Código CIIU'!$A$2:$A$499,'Código CIIU'!$B$2:$B$499),\"\")","v":""},null,null,null,null,"",null,{"$f":"IFERROR(IF(N87=\"Manufacturero\",_xlfn.XLOOKUP(X87,Hoja2!$D$10:$D$13,Hoja2!$C$10:$C$13,,1),IF(N87=\"Servicios\",_xlfn.XLOOKUP(X87,Hoja2!$E$10:$E$13,Hoja2!$C$10:$C$13,,1),IF(N87=\"Comercio\",_xlfn.XLOOKUP(X87,Hoja2!$F$10:$F$13,Hoja2!$C$10:$C$13,,1),\"P. Natural\"))),\"\")","v":"P. Natural"}]
[null,null,null,null,null,null,null,null,null,null,null,null,null,null,null,{"$f":"IFERROR(_xlfn.XLOOKUP(O88,'Código CIIU'!$A$2:$A$499,'Código CIIU'!$B$2:$B$499),\"\")","v":""},null,{"$f":"IFERROR(_xlfn.XLOOKUP(MatrizSegmentación!Q88,'Código CIIU'!$A$2:$A$499,'Código CIIU'!$B$2:$B$499),\"\")","v":""},null,null,null,null,"",null,{"$f":"IFERROR(IF(N88=\"Manufacturero\",_xlfn.XLOOKUP(X88,Hoja2!$D$10:$D$13,Hoja2!$C$10:$C$13,,1),IF(N88=\"Servicios\",_xlfn.XLOOKUP(X88,Hoja2!$E$10:$E$13,Hoja2!$C$10:$C$13,,1),IF(N88=\"Comercio\",_xlfn.XLOOKUP(X88,Hoja2!$F$10:$F$13,Hoja2!$C$10:$C$13,,1),\"P. Natural\"))),\"\")","v":"P. Natural"}]
[null,null,null,null,null,null,null,null,null,null,null,null,null,null,null,{"$f":"IFERROR(_xlfn.XLOOKUP(O89,'Código CIIU'!$A$2:$A$499,'Código CIIU'!$B$2:$B$499),\"\")","v":""},null,{"$f":"IFERROR(_xlfn.XLOOKUP(MatrizSegmentación!Q89,'Código CIIU'!$A$2:$A$499,'Código CIIU'!$B$2:$B$499),\"\")","v":""},null,null,null,null,"",null,{"$f":"IFERROR(IF(N89=\"Manufacturero\",_xlfn.XLOOKUP(X89,Hoja2!$D$10:$D$13,Hoja2!$C$10:$C$13,,1),IF(N89=\"Servicios\",_xlfn.XLOOKUP(X89,Hoja2!$E$10:$E$13,Hoja2!$C$10:$C$13,,1),IF(N89=\"Comercio\",_xlfn.XLOOKUP(X89,Hoja2!$F$10:$F$13,Hoja2!$C$10:$C$13,,1),\"P. Natural\"))),\"\")","v":"P. Natural"}]
[null,null,null,null,null,null,null,null,null,null,null,null,null,null,null,{"$f":"IFERROR(_xlfn.XLOOKUP(O90,'Código CIIU'!$A$2:$A$499,'Código CIIU'!$B$2:$B$499),\"\")","v":""},null,{"$f":"IFERROR(_xlfn.XLOOKUP(MatrizSegmentación!Q90,'Código CIIU'!$A$2:$A$499,'Código CIIU'!$B$2:$B$499),\"\")","v":""},null,null,null,null,"",null,{"$f":"IFERROR(IF(N90=\"Manufacturero\",_xlfn.XLOOKUP(X90,Hoja2!$D$10:$D$13,Hoja2!$C$10:$C$13,,1),IF(N90=\"Servicios\",_xlfn.XLOOKUP(X90,Hoja2!$E$10:$E$13,Hoja2!$C$10:$C$13,,1),IF(N90=\"Comercio\",_xlfn.XLOOKUP(X90,Hoja2!$F$10:$F$13,Hoja2!$C$10:$C$13,,1),\"P. Natural\"))),\"\")","v":"P. Natural"}]
[null,null,null,null,null,null,null,null,null,null,null,null,null,null,null,{"$f":"IFERROR(_xlfn.XLOOKUP(O91,'Código CIIU'!$A$2:$A$499,'Código CIIU'!$B$2:$B$499),\"\")","v":""},null,{"$f":"IFERROR(_xlfn.XLOOKUP(MatrizSegmentación!Q91,'Código CIIU'!$A$2:$A$499,'Código CIIU'!$B$2:$B$499),\"\")","v":""},null,null,null,null,"",null,{"$f":"IFERROR(IF(N91=\"Manufacturero\",_xlfn.XLOOKUP(X91,Hoja2!$D$10:$D$13,Hoja2!$C$10:$C$13,,1),IF(N91=\"Servicios\",_xlfn.XLOOKUP(X91,Hoja2!$E$10:$E$13,Hoja2!$C$10:$C$13,,1),IF(N91=\"Comercio\",_xlfn.XLOOKUP(X91,Hoja2!$F$10:$F$13,Hoja2!$C$10:$C$13,,1),\"P. Natural\"))),\"\")","v":"P. Natural"}]
[null,null,null,null,null,null,null,null,null,null,null,null,null,null,null,{"$f":"IFERROR(_xlfn.XLOOKUP(O92,'Código CIIU'!$A$2:$A$499,'Código CIIU'!$B$2:$B$499),\"\")","v":""},null,{"$f":"IFERROR(_xlfn.XLOOKUP(MatrizSegmentación!Q92,'Código CIIU'!$A$2:$A$499,'Código CIIU'!$B$2:$B$499),\"\")","v":""},null,null,null,null,"",null,{"$f":"IFERROR(IF(N92=\"Manufacturero\",_xlfn.XLOOKUP(X92,Hoja2!$D$10:$D$13,Hoja2!$C$10:$C$13,,1),IF(N92=\"Servicios\",_xlfn.XLOOKUP(X92,Hoja2!$E$10:$E$13,Hoja2!$C$10:$C$13,,1),IF(N92=\"Comercio\",_xlfn.XLOOKUP(X92,Hoja2!$F$10:$F$13,Hoja2!$C$10:$C$13,,1),\"P. Natural\"))),\"\")","v":"P. Natural"}]
[null,null,null,null,null,null,null,null,null,null,null,null,null,null,null,{"$f":"IFERROR(_xlfn.XLOOKUP(O93,'Código CIIU'!$A$2:$A$499,'Código CIIU'!$B$2:$B$499),\"\")","v":""},null,{"$f":"IFERROR(_xlfn.XLOOKUP(MatrizSegmentación!Q93,'Código CIIU'!$A$2:$A$499,'Código CIIU'!$B$2:$B$499),\"\")","v":""},null,null,null,null,"",null,{"$f":"IFERROR(IF(N93=\"Manufacturero\",_xlfn.XLOOKUP(X93,Hoja2!$D$10:$D$13,Hoja2!$C$10:$C$13,,1),IF(N93=\"Servicios\",_xlfn.XLOOKUP(X93,Hoja2!$E$10:$E$13,Hoja2!$C$10:$C$13,,1),IF(N93=\"Comercio\",_xlfn.XLOOKUP(X93,Hoja2!$F$10:$F$13,Hoja2!$C$10:$C$13,,1),\"P. Natural\"))),\"\")","v":"P. Natural"}]
[null,null,null,null,null,null,null,null,null,null,null,null,null,null,null,{"$f":"IFERROR(_xlfn.XLOOKUP(O94,'Código CIIU'!$A$2:$A$499,'Código CIIU'!$B$2:$B$499),\"\")","v":""},null,{"$f":"IFERROR(_xlfn.XLOOKUP(MatrizSegmentación!Q94,'Código CIIU'!$A$2:$A$499,'Código CIIU'!$B$2:$B$499),\"\")","v":""},null,null,null,null,"",null,{"$f":"IFERROR(IF(N94=\"Manufacturero\",_xlfn.XLOOKUP(X94,Hoja2!$D$10:$D$13,Hoja2!$C$10:$C$13,,1),IF(N94=\"Servicios\",_xlfn.XLOOKUP(X94,Hoja2!$E$10:$E$13,Hoja2!$C$10:$C$13,,1),IF(N94=\"Comercio\",_xlfn.XLOOKUP(X94,Hoja2!$F$10:$F$13,Hoja2!$C$10:$C$13,,1),\"P. Natural\"))),\"\")","v":"P. Natural"}]
[null,null,null,null,null,null,null,null,null,null,null,null,null,null,null,{"$f":"IFERROR(_xlfn.XLOOKUP(O95,'Código CIIU'!$A$2:$A$499,'Código CIIU'!$B$2:$B$499),\"\")","v":""},null,{"$f":"IFERROR(_xlfn.XLOOKUP(MatrizSegmentación!Q95,'Código CIIU'!$A$2:$A$499,'Código CIIU'!$B$2:$B$499),\"\")","v":""},null,null,null,null,"",null,{"$f":"IFERROR(IF(N95=\"Manufacturero\",_xlfn.XLOOKUP(X95,Hoja2!$D$10:$D$13,Hoja2!$C$10:$C$13,,1),IF(N95=\"Servicios\",_xlfn.XLOOKUP(X95,Hoja2!$E$10:$E$13,Hoja2!$C$10:$C$13,,1),IF(N95=\"Comercio\",_xlfn.XLOOKUP(X95,Hoja2!$F$10:$F$13,Hoja2!$C$10:$C$13,,1),\"P. Natural\"))),\"\")","v":"P. Natural"}]
[null,null,null,null,null,null,null,null,null,null,null,null,null,null,null,{"$f":"IFERROR(_xlfn.XLOOKUP(O96,'Código CIIU'!$A$2:$A$499,'Código CIIU'!$B$2:$B$499),\"\")","v":""},null,{"$f":"IFERROR(_xlfn.XLOOKUP(MatrizSegmentación!Q96,'Código CIIU'!$A$2:$A$499,'Código CIIU'!$B$2:$B$499),\"\")","v":""},null,null,null,null,"",null,{"$f":"IFERROR(IF(N96=\"Manufacturero\",_xlfn.XLOOKUP(X96,Hoja2!$D$10:$D$13,Hoja2!$C$10:$C$13,,1),IF(N96=\"Servicios\",_xlfn.XLOOKUP(X96,Hoja2!$E$10:$E$13,Hoja2!$C$10:$C$13,,1),IF(N96=\"Comercio\",_xlfn.XLOOKUP(X96,Hoja2!$F$10:$F$13,Hoja2!$C$10:$C$13,,1),\"P. Natural\"))),\"\")","v":"P. Natural"}]
[null,null,null,null,null,null,null,null,null,null,null,null,null,null,null,{"$f":"IFERROR(_xlfn.XLOOKUP(O97,'Código CIIU'!$A$2:$A$499,'Código CIIU'!$B$2:$B$499),\"\")","v":""},null,{"$f":"IFERROR(_xlfn.XLOOKUP(MatrizSegmentación!Q97,'Código CIIU'!$A$2:$A$499,'Código CIIU'!$B$2:$B$499),\"\")","v":""},null,null,null,null,"",null,{"$f":"IFERROR(IF(N97=\"Manufacturero\",_xlfn.XLOOKUP(X97,Hoja2!$D$10:$D$13,Hoja2!$C$10:$C$13,,1),IF(N97=\"Servicios\",_xlfn.XLOOKUP(X97,Hoja2!$E$10:$E$13,Hoja2!$C$10:$C$13,,1),IF(N97=\"Comercio\",_xlfn.XLOOKUP(X97,Hoja2!$F$10:$F$13,Hoja2!$C$10:$C$13,,1),\"P. Natural\"))),\"\")","v":"P. Natural"}]
[null,null,null,null,null,null,null,null,null,null,null,null,null,null,null,{"$f":"IFERROR(_xlfn.XLOOKUP(O98,'Código CIIU'!$A$2:$A$499,'Código CIIU'!$B$2:$B$499),\"\")","v":""},null,{"$f":"IFERROR(_xlfn.XLOOKUP(MatrizSegmentación!Q98,'Código CIIU'!$A$2:$A$499,'Código CIIU'!$B$2:$B$499),\"\")","v":""},null,null,null,null,"",null,{"$f":"IFERROR(IF(N98=\"Manufacturero\",_xlfn.XLOOKUP(X98,Hoja2!$D$10:$D$13,Hoja2!$C$10:$C$13,,1),IF(N98=\"Servicios\",_xlfn.XLOOKUP(X98,Hoja2!$E$10:$E$13,Hoja2!$C$10:$C$13,,1),IF(N98=\"Comercio\",_xlfn.XLOOKUP(X98,Hoja2!$F$10:$F$13,Hoja2!$C$10:$C$13,,1),\"P. Natural\"))),\"\")","v":"P. Natural"}]
[null,null,null,null,null,null,null,null,null,null,null,null,null,null,null,{"$f":"IFERROR(_xlfn.XLOOKUP(O99,'Código CIIU'!$A$2:$A$499,'Código CIIU'!$B$2:$B$499),\"\")","v":""},null,{"$f":"IFERROR(_xlfn.XLOOKUP(MatrizSegmentación!Q99,'Código CIIU'!$A$2:$A$499,'Código CIIU'!$B$2:$B$499),\"\")","v":""},null,null,null,null,"",null,{"$f":"IFERROR(IF(N99=\"Manufacturero\",_xlfn.XLOOKUP(X99,Hoja2!$D$10:$D$13,Hoja2!$C$10:$C$13,,1),IF(N99=\"Servicios\",_xlfn.XLOOKUP(X99,Hoja2!$E$10:$E$13,Hoja2!$C$10:$C$13,,1),IF(N99=\"Comercio\",_xlfn.XLOOKUP(X99,Hoja2!$F$10:$F$13,Hoja2!$C$10:$C$13,,1),\"P. Natural\"))),\"\")","v":"P. Natural"}]
[null,null,null,null,null,null,null,null,null,null,null,null,null,null,null,{"$f":"IFERROR(_xlfn.XLOOKUP(O100,'Código CIIU'!$A$2:$A$499,'Código CIIU'!$B$2:$B$499),\"\")","v":""},null,{"$f":"IFERROR(_xlfn.XLOOKUP(MatrizSegmentación!Q100,'Código CIIU'!$A$2:$A$499,'Código CIIU'!$B$2:$B$499),\"\")","v":""},null,null,null,null,"",null,{"$f":"IFERROR(IF(N100=\"Manufacturero\",_xlfn.XLOOKUP(X100,Hoja2!$D$10:$D$13,Hoja2!$C$10:$C$13,,1),IF(N100=\"Servicios\",_xlfn.XLOOKUP(X100,Hoja2!$E$10:$E$13,Hoja2!$C$10:$C$13,,1),IF(N100=\"Comercio\",_xlfn.XLOOKUP(X100,Hoja2!$F$10:$F$13,Hoja2!$C$10:$C$13,,1),\"P. Natural\"))),\"\")","v":"P. Natural"}]

{"sheet":"PorJurisdicción","index":4,"n_rows":25,"n_cols":9,"rows_kept":25,"cut":false,"hidden":false,"merged":[]}
["NOTA: Cuando Actualice datos, haga clic en alguna de las tablas dinamicas, luego en la parte superior haga clic en analizar tabla dinamica, despues en actualizar y finalmente en actualizar todo"]
[]
["Tipo de contraparte","(Todas)"]
[]
["Municipio","Cuenta de Municipio","Promedio de Nivel de Riesgo Jurisdicción",null,null,"Empresa","Promedio de Nivel de Riesgo Jurisdicción"]
["Quindío",0.5,3.5,null,null,"Aliado de negocio",5]
["Cauca",0.5,5,null,null,"Juridica",5]
["Otro",0,5,null,null,"Cliente",3.5]
["Total general",1,4.625,null,null,"Natural",3.5]
[null,null,null,null,null,"Empleado",0]
[null,null,null,null,null,"Natural",0]
[null,null,null,null,null,"Proveedor",5]
[null,null,null,null,null,"Juridica",5]
[null,null,null,null,null,"(en blanco)"]
[null,null,null,null,null,"(en blanco)"]
[null,null,null,null,null,"Usuario Final",5]
[null,null,null,null,null,"Natural",5]
[null,null,null,null,null,"Total general",3.7]
["Tipo de contraparte","(Todas)",null,"Tipo de contraparte","(Todas)",null,"Pais Cooperante","No"]
[]
["Municipio","Promedio de Nivel de Riesgo Jurisdicción",null,"Contraparte","Promedio de Nivel de Riesgo Jurisdicción",null,"Empresa","Etiquetas de columna"]
["Circasia",3.5,null,"PEDRO PEREZ",3.5,null,"Empresa","PANAMA","Total general"]
["Cajibío",5,null,"FABRICA XYZ",5,null,"XLM CONSULTORES",0.5,0.5]
["Total general",4.25,null,"XLM CONSULTORES",5,null,"LINA GOMEZ",0.5,0.5]
[null,null,null,"Total general",4.5,null,"Total general",1,1]

{"sheet":"PorActividadEconómica","index":5,"n_rows":41,"n_cols":9,"rows_kept":41,"cut":false,"hidden":false,"merged":[]}
["NOTA: Cuando Actualice datos, haga clic en alguna de las tablas dinamicas, luego en la parte superior haga clic en analizar tabla dinamica, despues en actualizar y finalmente en actualizar todo"]
[]
["Tipo de contraparte","(Todas)",null,"Tipo de contraparte","(Todas)",null,"Tipo de contraparte","(Todas)"]
[null,null,null,null,null,null,"PEP","Si"]
["Sector","Promedio de Nivel de Riesgo Actividad Económica",null,"Empresa","Promedio de Nivel de Riesgo Actividad Económica"]
["Manufacturero",1,null,"PEDRO PEREZ",1.25,null,"Nombre ","Promedio de Nivel de Riesgo Actividad Económica","Promedio de Nivel de Riesgo Jurisdicción"]
["NA",0.83333333333333337,null,"FABRICA XYZ",1.75,null,"PEDRO PEREZ",1.25,3.5]
["Total general",0.9,null,"XLM CONSULTORES",0.25,null,"LINA GOMEZ",1.25,5]
[null,null,null,"Total general",1.0833333333333333,null,"Total general",1.25,4.25]
[]
[]
[]
["Tipo de contraparte","(Todas)"]
[]
["Actividad Economica Principal","Promedio de Nivel de Riesgo Actividad Económica"]
["Empleado",0.625]
["Total general",0.625]
[]
[]
[]
[]
[]
[]
[]
[null,null,null,"Nombre ","Promedio de Nivel de Riesgo Actividad Económica"]
[null,null,null,"Aliado de negocio",0.25]
[null,null,null,"Juridica",0.25]
[null,null,null,"Cliente",1.25]
[null,null,null,"Natural",1.25]
[null,null,null,"Empleado",0]
[null,null,null,"Natural",0]
[null,null,null,"Proveedor",1.75]
[null,null,null,"Juridica",1.75]
[null,null,null,"(en blanco)",{"$error":"#DIV/0!"}]
[null,null,null,"(en blanco)",{"$error":"#DIV/0!"}]
[null,null,null,"Usuario Final",1.25]
["Tipo de contraparte","(Todas)",null,"Natural",1.25]
[null,null,null,"Total general",0.9]
["Actividad economica Secundaria","Promedio de Nivel de Riesgo Actividad Económica"]
[null,0.9]
["Total general",0.9]

{"sheet":"MatrizMonitoreo","index":6,"n_rows":107,"n_cols":166,"rows_kept":107,"cut":false,"hidden":false,"merged":[[6,5,8,5],[6,6,8,6],[6,0,8,0],[6,1,8,1],[6,2,8,2],[6,3,8,3],[6,4,8,4]]}
["Mes inicial","Enero",{"$f":"+_xlfn.XLOOKUP(B1,Hoja2!H1:H12,Hoja2!I1:I12)","v":1},null,null,null,null,{"$f":"+C1","v":1},{"$f":"+IF(H1<12,H1+1,IF(H1=12,1))","v":2},{"$f":"+IF(I1<12,I1+1,IF(I1=12,1))","v":3},{"$f":"+IF(J1<12,J1+1,IF(J1=12,1))","v":4},{"$f":"+IF(K1<12,K1+1,IF(K1=12,1))","v":5},{"$f":"+IF(L1<12,L1+1,IF(L1=12,1))","v":6},{"$f":"+IF(M1<12,M1+1,IF(M1=12,1))","v":7},8,9,10,11,12,1,2,3,4,5,6,7,8,9,10,11,12,1,2,3,4,5,6,7,8,9,10,11,12,1,2,3,4,5,6,7,8,9,10,11,12,1,2,3,4,5,6,7,8,9,10,11,12,1,2,3,4,5,6,7,8,9,10,{"$f":"+IF(BY1<12,BY1+1,IF(BY1=12,1))","v":11},12,1,2,3,4,5,6,7,8,9,10,11,12,1,2,3,4,5,6,7,8,9,10,11,12,1,2,3,4,5,6,7,8,9,10,11,12,1,2,3,4,5,6,7,8,9,10,11,12,1,2,3,4,5,6,7,8,9,10,11,12,1,2,{"$f":"+IF(EK1<12,EK1+1,IF(EK1=12,1))","v":3},4,5,6,7,8,9,10,11,12,1,2,3,4,5,6,7,8,9,10,11,12,1,2,3]
["Año",2023]
["Porcentaje señales de alerta sobre ingresos",1]
["Percentil Señales de Alerta sobre movimientos",0.85]
[]
[]
["No de Identificación","Nombre","Tipo de Contraparte","Ingresos del Ultimo año (Miles)","Movimientos del Mes (Miles)","Señal de Alerta sobre ingresos","Señal de alerta sobre movimientos financieros",null,null,null,null,null,null,null,null,null,null,"HISTORICO DE MOVIMIENTOS FINANCIEROS (Miles de Pesos)"]
[null,null,null,null,null,null,null,{"$f":"+_xlfn.XLOOKUP(H1,Hoja2!$I$1:$I$12,Hoja2!$H$1:$H$12)","v":"Enero"},{"$f":"+_xlfn.XLOOKUP(I1,Hoja2!$I$1:$I$12,Hoja2!$H$1:$H$12)","v":"Febrero"},{"$f":"+_xlfn.XLOOKUP(J1,Hoja2!$I$1:$I$12,Hoja2!$H$1:$H$12)","v":"Marzo"},{"$f":"+_xlfn.XLOOKUP(K1,Hoja2!$I$1:$I$12,Hoja2!$H$1:$H$12)","v":"Abril"},{"$f":"+_xlfn.XLOOKUP(L1,Hoja2!$I$1:$I$12,Hoja2!$H$1:$H$12)","v":"Mayo"},{"$f":"+_xlfn.XLOOKUP(M1,Hoja2!$I$1:$I$12,Hoja2!$H$1:$H$12)","v":"Junio"},{"$f":"+_xlfn.XLOOKUP(N1,Hoja2!$I$1:$I$12,Hoja2!$H$1:$H$12)","v":"Julio"},{"$f":"+_xlfn.XLOOKUP(O1,Hoja2!$I$1:$I$12,Hoja2!$H$1:$H$12)","v":"Agosto"},{"$f":"+_xlfn.XLOOKUP(P1,Hoja2!$I$1:$I$12,Hoja2!$H$1:$H$12)","v":"Septiembre"},{"$f":"+_xlfn.XLOOKUP(Q1,Hoja2!$I$1:$I$12,Hoja2!$H$1:$H$12)","v":"Octubre"},{"$f":"+_xlfn.XLOOKUP(R1,Hoja2!$I$1:$I$12,Hoja2!$H$1:$H$12)","v":"Noviembre"},{"$f":"+_xlfn.XLOOKUP(S1,Hoja2!$I$1:$I$12,Hoja2!$H$1:$H$12)","v":"Diciembre"},{"$f":"+_xlfn.XLOOKUP(T1,Hoja2!$I$1:$I$12,Hoja2!$H$1:$H$12)","v":"Enero"},{"$f":"+_xlfn.XLOOKUP(U1,Hoja2!$I$1:$I$12,Hoja2!$H$1:$H$12)","v":"Febrero"},{"$f":"+_xlfn.XLOOKUP(V1,Hoja2!$I$1:$I$12,Hoja2!$H$1:$H$12)","v":"Marzo"},{"$f":"+_xlfn.XLOOKUP(W1,Hoja2!$I$1:$I$12,Hoja2!$H$1:$H$12)","v":"Abril"},{"$f":"+_xlfn.XLOOKUP(X1,Hoja2!$I$1:$I$12,Hoja2!$H$1:$H$12)","v":"Mayo"},{"$f":"+_xlfn.XLOOKUP(Y1,Hoja2!$I$1:$I$12,Hoja2!$H$1:$H$12)","v":"Junio"},{"$f":"+_xlfn.XLOOKUP(Z1,Hoja2!$I$1:$I$12,Hoja2!$H$1:$H$12)","v":"Julio"},{"$f":"+_xlfn.XLOOKUP(AA1,Hoja2!$I$1:$I$12,Hoja2!$H$1:$H$12)","v":"Agosto"},{"$f":"+_xlfn.XLOOKUP(AB1,Hoja2!$I$1:$I$12,Hoja2!$H$1:$H$12)","v":"Septiembre"},{"$f":"+_xlfn.XLOOKUP(AC1,Hoja2!$I$1:$I$12,Hoja2!$H$1:$H$12)","v":"Octubre"},{"$f":"+_xlfn.XLOOKUP(AD1,Hoja2!$I$1:$I$12,Hoja2!$H$1:$H$12)","v":"Noviembre"},{"$f":"+_xlfn.XLOOKUP(AE1,Hoja2!$I$1:$I$12,Hoja2!$H$1:$H$12)","v":"Diciembre"}]
[null,null,null,null,null,null,null,{"$f":"+B2","v":2023},{"$f":"+IF(I1>H1,H9,H9+1)","v":2023},{"$f":"+IF(J1>I1,I9,I9+1)","v":2023},2023,2023,2023,{"$f":"+IF(N1>M1,M9,M9+1)","v":2023},2023,2023,2023,2023,2023,2024,2024,2024,2024,2024,2024,{"$f":"+IF(Z1>Y1,Y9,Y9+1)","v":2024},2024,2024,2024,{"$f":"+IF(AD1>AC1,AC9,AC9+1)","v":2024},2024]
[79951201,{"$f":"+IFERROR(_xlfn.XLOOKUP(A10,MatrizSegmentación!$E$5:$E$100,MatrizSegmentación!$F$5:$F$100),\"\")","v":"PEDRO PEREZ"},{"$f":"IFERROR(_xlfn.XLOOKUP(A10,MatrizSegmentación!$E$5:$E$100,MatrizSegmentación!$B$5:$B$100),\"\")","v":"Cliente"},{"$f":"IFERROR(_xlfn.XLOOKUP(A10,MatrizSegmentación!$E$5:$E$100,MatrizSegmentación!$X$5:$X$100),0)","v":200000000},8000000,{"$f":"IFERROR(IF(E10>D10/12*(1+$B$3),\"Si\",\"No\"),\"\")","v":"No"},{"$f":"IFERROR(IF(E10>PERCENTILE(H10:AE10,$B$4),\"Si\",\"No\"),\"\")","v":"Si"},10000000,4210381.8045093901,3722299.8583623101,5997020.8016934805,1786077.3541214601]
["900.111.222-2",{"$f":"+IFERROR(_xlfn.XLOOKUP(A11,MatrizSegmentación!$E$5:$E$100,MatrizSegmentación!$F$5:$F$100),\"\")","v":"FABRICA XYZ"},{"$f":"IFERROR(_xlfn.XLOOKUP(A11,MatrizSegmentación!$E$5:$E$100,MatrizSegmentación!$B$5:$B$100),\"\")","v":"Proveedor"},{"$f":"IFERROR(_xlfn.XLOOKUP(A11,MatrizSegmentación!$E$5:$E$100,MatrizSegmentación!$X$5:$X$100),0)","v":100000000},20000000,{"$f":"IFERROR(IF(E11>D11/12*(1+$B$3),\"Si\",\"No\"),\"\")","v":"Si"},{"$f":"IFERROR(IF(E11>PERCENTILE(H11:AE11,$B$4),\"Si\",\"No\"),\"\")","v":"Si"},6632984.3700718302,4416706.2636081902,6905063.19665753,5300736.4590563802,2789585.9564497699]
["860.333.111-3",{"$f":"+IFERROR(_xlfn.XLOOKUP(A12,MatrizSegmentación!$E$5:$E$100,MatrizSegmentación!$F$5:$F$100),\"\")","v":"XLM CONSULTORES"},{"$f":"IFERROR(_xlfn.XLOOKUP(A12,MatrizSegmentación!$E$5:$E$100,MatrizSegmentación!$B$5:$B$100),\"\")","v":"Aliado de negocio"},{"$f":"IFERROR(_xlfn.XLOOKUP(A12,MatrizSegmentación!$E$5:$E$100,MatrizSegmentación!$X$5:$X$100),0)","v":50000000},10000000,"Si","Si",1200000,2300000,3500000,2181490.0429067402,1133978.2384757099]
[1010110112,{"$f":"+IFERROR(_xlfn.XLOOKUP(A13,MatrizSegmentación!$E$5:$E$100,MatrizSegmentación!$F$5:$F$100),\"\")","v":"MIGUEL HERNANDEZ"},{"$f":"IFERROR(_xlfn.XLOOKUP(A13,MatrizSegmentación!$E$5:$E$100,MatrizSegmentación!$B$5:$B$100),\"\")","v":"Empleado"},{"$f":"IFERROR(_xlfn.XLOOKUP(A13,MatrizSegmentación!$E$5:$E$100,MatrizSegmentación!$X$5:$X$100),0)","v":60000000},20000000,"Si","Si",10000000,3000000,5000000,2000000,1000000]
[10101010,{"$f":"+IFERROR(_xlfn.XLOOKUP(A14,MatrizSegmentación!$E$5:$E$100,MatrizSegmentación!$F$5:$F$100),\"\")","v":"LINA GOMEZ"},{"$f":"IFERROR(_xlfn.XLOOKUP(A14,MatrizSegmentación!$E$5:$E$100,MatrizSegmentación!$B$5:$B$100),\"\")","v":"Usuario Final"},{"$f":"IFERROR(_xlfn.XLOOKUP(A14,MatrizSegmentación!$E$5:$E$100,MatrizSegmentación!$X$5:$X$100),0)","v":2000000000},50000000,"No","No",30000000,100000000,35000000,45000000,55000000]
[null,{"$f":"+IFERROR(_xlfn.XLOOKUP(A15,MatrizSegmentación!$E$5:$E$100,MatrizSegmentación!$F$5:$F$100),\"\")","v":0},{"$f":"IFERROR(_xlfn.XLOOKUP(A15,MatrizSegmentación!$E$5:$E$100,MatrizSegmentación!$B$5:$B$100),\"\")","v":0},{"$f":"IFERROR(_xlfn.XLOOKUP(A15,MatrizSegmentación!$E$5:$E$100,MatrizSegmentación!$X$5:$X$100),0)","v":0},null,"No",""]
[null,{"$f":"+IFERROR(_xlfn.XLOOKUP(A16,MatrizSegmentación!$E$5:$E$100,MatrizSegmentación!$F$5:$F$100),\"\")","v":0},{"$f":"IFERROR(_xlfn.XLOOKUP(A16,MatrizSegmentación!$E$5:$E$100,MatrizSegmentación!$B$5:$B$100),\"\")","v":0},{"$f":"IFERROR(_xlfn.XLOOKUP(A16,MatrizSegmentación!$E$5:$E$100,MatrizSegmentación!$X$5:$X$100),0)","v":0},null,"No",""]
[null,{"$f":"+IFERROR(_xlfn.XLOOKUP(A17,MatrizSegmentación!$E$5:$E$100,MatrizSegmentación!$F$5:$F$100),\"\")","v":0},{"$f":"IFERROR(_xlfn.XLOOKUP(A17,MatrizSegmentación!$E$5:$E$100,MatrizSegmentación!$B$5:$B$100),\"\")","v":0},{"$f":"IFERROR(_xlfn.XLOOKUP(A17,MatrizSegmentación!$E$5:$E$100,MatrizSegmentación!$X$5:$X$100),0)","v":0},null,"No",""]
[null,{"$f":"+IFERROR(_xlfn.XLOOKUP(A18,MatrizSegmentación!$E$5:$E$100,MatrizSegmentación!$F$5:$F$100),\"\")","v":0},{"$f":"IFERROR(_xlfn.XLOOKUP(A18,MatrizSegmentación!$E$5:$E$100,MatrizSegmentación!$B$5:$B$100),\"\")","v":0},{"$f":"IFERROR(_xlfn.XLOOKUP(A18,MatrizSegmentación!$E$5:$E$100,MatrizSegmentación!$X$5:$X$100),0)","v":0},null,"No",""]
[null,{"$f":"+IFERROR(_xlfn.XLOOKUP(A19,MatrizSegmentación!$E$5:$E$100,MatrizSegmentación!$F$5:$F$100),\"\")","v":0},{"$f":"IFERROR(_xlfn.XLOOKUP(A19,MatrizSegmentación!$E$5:$E$100,MatrizSegmentación!$B$5:$B$100),\"\")","v":0},{"$f":"IFERROR(_xlfn.XLOOKUP(A19,MatrizSegmentación!$E$5:$E$100,MatrizSegmentación!$X$5:$X$100),0)","v":0},null,"No",""]
[null,{"$f":"+IFERROR(_xlfn.XLOOKUP(A20,MatrizSegmentación!$E$5:$E$100,MatrizSegmentación!$F$5:$F$100),\"\")","v":0},{"$f":"IFERROR(_xlfn.XLOOKUP(A20,MatrizSegmentación!$E$5:$E$100,MatrizSegmentación!$B$5:$B$100),\"\")","v":0},{"$f":"IFERROR(_xlfn.XLOOKUP(A20,MatrizSegmentación!$E$5:$E$100,MatrizSegmentación!$X$5:$X$100),0)","v":0},null,"No",""]
[null,{"$f":"+IFERROR(_xlfn.XLOOKUP(A21,MatrizSegmentación!$E$5:$E$100,MatrizSegmentación!$F$5:$F$100),\"\")","v":0},{"$f":"IFERROR(_xlfn.XLOOKUP(A21,MatrizSegmentación!$E$5:$E$100,MatrizSegmentación!$B$5:$B$100),\"\")","v":0},{"$f":"IFERROR(_xlfn.XLOOKUP(A21,MatrizSegmentación!$E$5:$E$100,MatrizSegmentación!$X$5:$X$100),0)","v":0},null,"No",""]
[null,{"$f":"+IFERROR(_xlfn.XLOOKUP(A22,MatrizSegmentación!$E$5:$E$100,MatrizSegmentación!$F$5:$F$100),\"\")","v":0},{"$f":"IFERROR(_xlfn.XLOOKUP(A22,MatrizSegmentación!$E$5:$E$100,MatrizSegmentación!$B$5:$B$100),\"\")","v":0},{"$f":"IFERROR(_xlfn.XLOOKUP(A22,MatrizSegmentación!$E$5:$E$100,MatrizSegmentación!$X$5:$X$100),0)","v":0},null,"No",""]
[null,{"$f":"+IFERROR(_xlfn.XLOOKUP(A23,MatrizSegmentación!$E$5:$E$100,MatrizSegmentación!$F$5:$F$100),\"\")","v":0},{"$f":"IFERROR(_xlfn.XLOOKUP(A23,MatrizSegmentación!$E$5:$E$100,MatrizSegmentación!$B$5:$B$100),\"\")","v":0},{"$f":"IFERROR(_xlfn.XLOOKUP(A23,MatrizSegmentación!$E$5:$E$100,MatrizSegmentación!$X$5:$X$100),0)","v":0},null,"No",""]
[null,{"$f":"+IFERROR(_xlfn.XLOOKUP(A24,MatrizSegmentación!$E$5:$E$100,MatrizSegmentación!$F$5:$F$100),\"\")","v":0},{"$f":"IFERROR(_xlfn.XLOOKUP(A24,MatrizSegmentación!$E$5:$E$100,MatrizSegmentación!$B$5:$B$100),\"\")","v":0},{"$f":"IFERROR(_xlfn.XLOOKUP(A24,MatrizSegmentación!$E$5:$E$100,MatrizSegmentación!$X$5:$X$100),0)","v":0},null,"No",""]
[null,{"$f":"+IFERROR(_xlfn.XLOOKUP(A25,MatrizSegmentación!$E$5:$E$100,MatrizSegmentación!$F$5:$F$100),\"\")","v":0},{"$f":"IFERROR(_xlfn.XLOOKUP(A25,MatrizSegmentación!$E$5:$E$100,MatrizSegmentación!$B$5:$B$100),\"\")","v":0},{"$f":"IFERROR(_xlfn.XLOOKUP(A25,MatrizSegmentación!$E$5:$E$100,MatrizSegmentación!$X$5:$X$100),0)","v":0},null,"No",""]
[null,{"$f":"+IFERROR(_xlfn.XLOOKUP(A26,MatrizSegmentación!$E$5:$E$100,MatrizSegmentación!$F$5:$F$100),\"\")","v":0},{"$f":"IFERROR(_xlfn.XLOOKUP(A26,MatrizSegmentación!$E$5:$E$100,MatrizSegmentación!$B$5:$B$100),\"\")","v":0},{"$f":"IFERROR(_xlfn.XLOOKUP(A26,MatrizSegmentación!$E$5:$E$100,MatrizSegmentación!$X$5:$X$100),0)","v":0},null,"No",""]
[null,{"$f":"+IFERROR(_xlfn.XLOOKUP(A27,MatrizSegmentación!$E$5:$E$100,MatrizSegmentación!$F$5:$F$100),\"\")","v":0},{"$f":"IFERROR(_xlfn.XLOOKUP(A27,MatrizSegmentación!$E$5:$E$100,MatrizSegmentación!$B$5:$B$100),\"\")","v":0},{"$f":"IFERROR(_xlfn.XLOOKUP(A27,MatrizSegmentación!$E$5:$E$100,MatrizSegmentación!$X$5:$X$100),0)","v":0},null,"No",""]
[null,{"$f":"+IFERROR(_xlfn.XLOOKUP(A28,MatrizSegmentación!$E$5:$E$100,MatrizSegmentación!$F$5:$F$100),\"\")","v":0},{"$f":"IFERROR(_xlfn.XLOOKUP(A28,MatrizSegmentación!$E$5:$E$100,MatrizSegmentación!$B$5:$B$100),\"\")","v":0},{"$f":"IFERROR(_xlfn.XLOOKUP(A28,MatrizSegmentación!$E$5:$E$100,MatrizSegmentación!$X$5:$X$100),0)","v":0},null,"No",""]
[null,{"$f":"+IFERROR(_xlfn.XLOOKUP(A29,MatrizSegmentación!$E$5:$E$100,MatrizSegmentación!$F$5:$F$100),\"\")","v":0},{"$f":"IFERROR(_xlfn.XLOOKUP(A29,MatrizSegmentación!$E$5:$E$100,MatrizSegmentación!$B$5:$B$100),\"\")","v":0},{"$f":"IFERROR(_xlfn.XLOOKUP(A29,MatrizSegmentación!$E$5:$E$100,MatrizSegmentación!$X$5:$X$100),0)","v":0},null,"No",""]
[null,{"$f":"+IFERROR(_xlfn.XLOOKUP(A30,MatrizSegmentación!$E$5:$E$100,MatrizSegmentación!$F$5:$F$100),\"\")","v":0},{"$f":"IFERROR(_xlfn.XLOOKUP(A30,MatrizSegmentación!$E$5:$E$100,MatrizSegmentación!$B$5:$B$100),\"\")","v":0},{"$f":"IFERROR(_xlfn.XLOOKUP(A30,MatrizSegmentación!$E$5:$E$100,MatrizSegmentación!$X$5:$X$100),0)","v":0},null,"No",""]
[null,{"$f":"+IFERROR(_xlfn.XLOOKUP(A31,MatrizSegmentación!$E$5:$E$100,MatrizSegmentación!$F$5:$F$100),\"\")","v":0},{"$f":"IFERROR(_xlfn.XLOOKUP(A31,MatrizSegmentación!$E$5:$E$100,MatrizSegmentación!$B$5:$B$100),\"\")","v":0},{"$f":"IFERROR(_xlfn.XLOOKUP(A31,MatrizSegmentación!$E$5:$E$100,MatrizSegmentación!$X$5:$X$100),0)","v":0},null,"No",""]
[null,{"$f":"+IFERROR(_xlfn.XLOOKUP(A32,MatrizSegmentación!$E$5:$E$100,MatrizSegmentación!$F$5:$F$100),\"\")","v":0},{"$f":"IFERROR(_xlfn.XLOOKUP(A32,MatrizSegmentación!$E$5:$E$100,MatrizSegmentación!$B$5:$B$100),\"\")","v":0},{"$f":"IFERROR(_xlfn.XLOOKUP(A32,MatrizSegmentación!$E$5:$E$100,MatrizSegmentación!$X$5:$X$100),0)","v":0},null,"No",""]
[null,{"$f":"+IFERROR(_xlfn.XLOOKUP(A33,MatrizSegmentación!$E$5:$E$100,MatrizSegmentación!$F$5:$F$100),\"\")","v":0},{"$f":"IFERROR(_xlfn.XLOOKUP(A33,MatrizSegmentación!$E$5:$E$100,MatrizSegmentación!$B$5:$B$100),\"\")","v":0},{"$f":"IFERROR(_xlfn.XLOOKUP(A33,MatrizSegmentación!$E$5:$E$100,MatrizSegmentación!$X$5:$X$100),0)","v":0},null,"No",""]
[null,{"$f":"+IFERROR(_xlfn.XLOOKUP(A34,MatrizSegmentación!$E$5:$E$100,MatrizSegmentación!$F$5:$F$100),\"\")","v":0},{"$f":"IFERROR(_xlfn.XLOOKUP(A34,MatrizSegmentación!$E$5:$E$100,MatrizSegmentación!$B$5:$B$100),\"\")","v":0},{"$f":"IFERROR(_xlfn.XLOOKUP(A34,MatrizSegmentación!$E$5:$E$100,MatrizSegmentación!$X$5:$X$100),0)","v":0},null,"No",""]
[null,{"$f":"+IFERROR(_xlfn.XLOOKUP(A35,MatrizSegmentación!$E$5:$E$100,MatrizSegmentación!$F$5:$F$100),\"\")","v":0},{"$f":"IFERROR(_xlfn.XLOOKUP(A35,MatrizSegmentación!$E$5:$E$100,MatrizSegmentación!$B$5:$B$100),\"\")","v":0},{"$f":"IFERROR(_xlfn.XLOOKUP(A35,MatrizSegmentación!$E$5:$E$100,MatrizSegmentación!$X$5:$X$100),0)","v":0},null,"No",""]
[null,{"$f":"+IFERROR(_xlfn.XLOOKUP(A36,MatrizSegmentación!$E$5:$E$100,MatrizSegmentación!$F$5:$F$100),\"\")","v":0},{"$f":"IFERROR(_xlfn.XLOOKUP(A36,MatrizSegmentación!$E$5:$E$100,MatrizSegmentación!$B$5:$B$100),\"\")","v":0},{"$f":"IFERROR(_xlfn.XLOOKUP(A36,MatrizSegmentación!$E$5:$E$100,MatrizSegmentación!$X$5:$X$100),0)","v":0},null,"No",""]
[null,{"$f":"+IFERROR(_xlfn.XLOOKUP(A37,MatrizSegmentación!$E$5:$E$100,MatrizSegmentación!$F$5:$F$100),\"\")","v":0},{"$f":"IFERROR(_xlfn.XLOOKUP(A37,MatrizSegmentación!$E$5:$E$100,MatrizSegmentación!$B$5:$B$100),\"\")","v":0},{"$f":"IFERROR(_xlfn.XLOOKUP(A37,MatrizSegmentación!$E$5:$E$100,MatrizSegmentación!$X$5:$X$100),0)","v":0},null,"No",""]
[null,{"$f":"+IFERROR(_xlfn.XLOOKUP(A38,MatrizSegmentación!$E$5:$E$100,MatrizSegmentación!$F$5:$F$100),\"\")","v":0},{"$f":"IFERROR(_xlfn.XLOOKUP(A38,MatrizSegmentación!$E$5:$E$100,MatrizSegmentación!$B$5:$B$100),\"\")","v":0},{"$f":"IFERROR(_xlfn.XLOOKUP(A38,MatrizSegmentación!$E$5:$E$100,MatrizSegmentación!$X$5:$X$100),0)","v":0},null,"No",""]
[null,{"$f":"+IFERROR(_xlfn.XLOOKUP(A39,MatrizSegmentación!$E$5:$E$100,MatrizSegmentación!$F$5:$F$100),\"\")","v":0},{"$f":"IFERROR(_xlfn.XLOOKUP(A39,MatrizSegmentación!$E$5:$E$100,MatrizSegmentación!$B$5:$B$100),\"\")","v":0},{"$f":"IFERROR(_xlfn.XLOOKUP(A39,MatrizSegmentación!$E$5:$E$100,MatrizSegmentación!$X$5:$X$100),0)","v":0},null,"No",""]
[null,{"$f":"+IFERROR(_xlfn.XLOOKUP(A40,MatrizSegmentación!$E$5:$E$100,MatrizSegmentación!$F$5:$F$100),\"\")","v":0},{"$f":"IFERROR(_xlfn.XLOOKUP(A40,MatrizSegmentación!$E$5:$E$100,MatrizSegmentación!$B$5:$B$100),\"\")","v":0},{"$f":"IFERROR(_xlfn.XLOOKUP(A40,MatrizSegmentación!$E$5:$E$100,MatrizSegmentación!$X$5:$X$100),0)","v":0},null,"No",""]
[null,{"$f":"+IFERROR(_xlfn.XLOOKUP(A41,MatrizSegmentación!$E$5:$E$100,MatrizSegmentación!$F$5:$F$100),\"\")","v":0},{"$f":"IFERROR(_xlfn.XLOOKUP(A41,MatrizSegmentación!$E$5:$E$100,MatrizSegmentación!$B$5:$B$100),\"\")","v":0},{"$f":"IFERROR(_xlfn.XLOOKUP(A41,MatrizSegmentación!$E$5:$E$100,MatrizSegmentación!$X$5:$X$100),0)","v":0},null,"No",""]
[null,{"$f":"+IFERROR(_xlfn.XLOOKUP(A42,MatrizSegmentación!$E$5:$E$100,MatrizSegmentación!$F$5:$F$100),\"\")","v":0},{"$f":"IFERROR(_xlfn.XLOOKUP(A42,MatrizSegmentación!$E$5:$E$100,MatrizSegmentación!$B$5:$B$100),\"\")","v":0},{"$f":"IFERROR(_xlfn.XLOOKUP(A42,MatrizSegmentación!$E$5:$E$100,MatrizSegmentación!$X$5:$X$100),0)","v":0},null,"No",""]
[null,{"$f":"+IFERROR(_xlfn.XLOOKUP(A43,MatrizSegmentación!$E$5:$E$100,MatrizSegmentación!$F$5:$F$100),\"\")","v":0},{"$f":"IFERROR(_xlfn.XLOOKUP(A43,MatrizSegmentación!$E$5:$E$100,MatrizSegmentación!$B$5:$B$100),\"\")","v":0},{"$f":"IFERROR(_xlfn.XLOOKUP(A43,MatrizSegmentación!$E$5:$E$100,MatrizSegmentación!$X$5:$X$100),0)","v":0},null,"No",""]
[null,{"$f":"+IFERROR(_xlfn.XLOOKUP(A44,MatrizSegmentación!$E$5:$E$100,MatrizSegmentación!$F$5:$F$100),\"\")","v":0},{"$f":"IFERROR(_xlfn.XLOOKUP(A44,MatrizSegmentación!$E$5:$E$100,MatrizSegmentación!$B$5:$B$100),\"\")","v":0},{"$f":"IFERROR(_xlfn.XLOOKUP(A44,MatrizSegmentación!$E$5:$E$100,MatrizSegmentación!$X$5:$X$100),0)","v":0},null,"No",""]
[null,{"$f":"+IFERROR(_xlfn.XLOOKUP(A45,MatrizSegmentación!$E$5:$E$100,MatrizSegmentación!$F$5:$F$100),\"\")","v":0},{"$f":"IFERROR(_xlfn.XLOOKUP(A45,MatrizSegmentación!$E$5:$E$100,MatrizSegmentación!$B$5:$B$100),\"\")","v":0},{"$f":"IFERROR(_xlfn.XLOOKUP(A45,MatrizSegmentación!$E$5:$E$100,MatrizSegmentación!$X$5:$X$100),0)","v":0},null,"No",""]
[null,{"$f":"+IFERROR(_xlfn.XLOOKUP(A46,MatrizSegmentación!$E$5:$E$100,MatrizSegmentación!$F$5:$F$100),\"\")","v":0},{"$f":"IFERROR(_xlfn.XLOOKUP(A46,MatrizSegmentación!$E$5:$E$100,MatrizSegmentación!$B$5:$B$100),\"\")","v":0},{"$f":"IFERROR(_xlfn.XLOOKUP(A46,MatrizSegmentación!$E$5:$E$100,MatrizSegmentación!$X$5:$X$100),0)","v":0},null,"No",""]
[null,{"$f":"+IFERROR(_xlfn.XLOOKUP(A47,MatrizSegmentación!$E$5:$E$100,MatrizSegmentación!$F$5:$F$100),\"\")","v":0},{"$f":"IFERROR(_xlfn.XLOOKUP(A47,MatrizSegmentación!$E$5:$E$100,MatrizSegmentación!$B$5:$B$100),\"\")","v":0},{"$f":"IFERROR(_xlfn.XLOOKUP(A47,MatrizSegmentación!$E$5:$E$100,MatrizSegmentación!$X$5:$X$100),0)","v":0},null,"No",""]
[null,{"$f":"+IFERROR(_xlfn.XLOOKUP(A48,MatrizSegmentación!$E$5:$E$100,MatrizSegmentación!$F$5:$F$100),\"\")","v":0},{"$f":"IFERROR(_xlfn.XLOOKUP(A48,MatrizSegmentación!$E$5:$E$100,MatrizSegmentación!$B$5:$B$100),\"\")","v":0},{"$f":"IFERROR(_xlfn.XLOOKUP(A48,MatrizSegmentación!$E$5:$E$100,MatrizSegmentación!$X$5:$X$100),0)","v":0},null,"No",""]
[null,{"$f":"+IFERROR(_xlfn.XLOOKUP(A49,MatrizSegmentación!$E$5:$E$100,MatrizSegmentación!$F$5:$F$100),\"\")","v":0},{"$f":"IFERROR(_xlfn.XLOOKUP(A49,MatrizSegmentación!$E$5:$E$100,MatrizSegmentación!$B$5:$B$100),\"\")","v":0},{"$f":"IFERROR(_xlfn.XLOOKUP(A49,MatrizSegmentación!$E$5:$E$100,MatrizSegmentación!$X$5:$X$100),0)","v":0},null,"No",""]
[null,{"$f":"+IFERROR(_xlfn.XLOOKUP(A50,MatrizSegmentación!$E$5:$E$100,MatrizSegmentación!$F$5:$F$100),\"\")","v":0},{"$f":"IFERROR(_xlfn.XLOOKUP(A50,MatrizSegmentación!$E$5:$E$100,MatrizSegmentación!$B$5:$B$100),\"\")","v":0},{"$f":"IFERROR(_xlfn.XLOOKUP(A50,MatrizSegmentación!$E$5:$E$100,MatrizSegmentación!$X$5:$X$100),0)","v":0},null,"No",""]
[null,{"$f":"+IFERROR(_xlfn.XLOOKUP(A51,MatrizSegmentación!$E$5:$E$100,MatrizSegmentación!$F$5:$F$100),\"\")","v":0},{"$f":"IFERROR(_xlfn.XLOOKUP(A51,MatrizSegmentación!$E$5:$E$100,MatrizSegmentación!$B$5:$B$100),\"\")","v":0},{"$f":"IFERROR(_xlfn.XLOOKUP(A51,MatrizSegmentación!$E$5:$E$100,MatrizSegmentación!$X$5:$X$100),0)","v":0},null,"No",""]
[null,{"$f":"+IFERROR(_xlfn.XLOOKUP(A52,MatrizSegmentación!$E$5:$E$100,MatrizSegmentación!$F$5:$F$100),\"\")","v":0},{"$f":"IFERROR(_xlfn.XLOOKUP(A52,MatrizSegmentación!$E$5:$E$100,MatrizSegmentación!$B$5:$B$100),\"\")","v":0},{"$f":"IFERROR(_xlfn.XLOOKUP(A52,MatrizSegmentación!$E$5:$E$100,MatrizSegmentación!$X$5:$X$100),0)","v":0},null,"No",""]
[null,{"$f":"+IFERROR(_xlfn.XLOOKUP(A53,MatrizSegmentación!$E$5:$E$100,MatrizSegmentación!$F$5:$F$100),\"\")","v":0},{"$f":"IFERROR(_xlfn.XLOOKUP(A53,MatrizSegmentación!$E$5:$E$100,MatrizSegmentación!$B$5:$B$100),\"\")","v":0},{"$f":"IFERROR(_xlfn.XLOOKUP(A53,MatrizSegmentación!$E$5:$E$100,MatrizSegmentación!$X$5:$X$100),0)","v":0},null,"No",""]
[null,{"$f":"+IFERROR(_xlfn.XLOOKUP(A54,MatrizSegmentación!$E$5:$E$100,MatrizSegmentación!$F$5:$F$100),\"\")","v":0},{"$f":"IFERROR(_xlfn.XLOOKUP(A54,MatrizSegmentación!$E$5:$E$100,MatrizSegmentación!$B$5:$B$100),\"\")","v":0},{"$f":"IFERROR(_xlfn.XLOOKUP(A54,MatrizSegmentación!$E$5:$E$100,MatrizSegmentación!$X$5:$X$100),0)","v":0},null,"No",""]
[null,{"$f":"+IFERROR(_xlfn.XLOOKUP(A55,MatrizSegmentación!$E$5:$E$100,MatrizSegmentación!$F$5:$F$100),\"\")","v":0},{"$f":"IFERROR(_xlfn.XLOOKUP(A55,MatrizSegmentación!$E$5:$E$100,MatrizSegmentación!$B$5:$B$100),\"\")","v":0},{"$f":"IFERROR(_xlfn.XLOOKUP(A55,MatrizSegmentación!$E$5:$E$100,MatrizSegmentación!$X$5:$X$100),0)","v":0},null,"No",""]
[null,{"$f":"+IFERROR(_xlfn.XLOOKUP(A56,MatrizSegmentación!$E$5:$E$100,MatrizSegmentación!$F$5:$F$100),\"\")","v":0},{"$f":"IFERROR(_xlfn.XLOOKUP(A56,MatrizSegmentación!$E$5:$E$100,MatrizSegmentación!$B$5:$B$100),\"\")","v":0},{"$f":"IFERROR(_xlfn.XLOOKUP(A56,MatrizSegmentación!$E$5:$E$100,MatrizSegmentación!$X$5:$X$100),0)","v":0},null,"No",""]
[null,{"$f":"+IFERROR(_xlfn.XLOOKUP(A57,MatrizSegmentación!$E$5:$E$100,MatrizSegmentación!$F$5:$F$100),\"\")","v":0},{"$f":"IFERROR(_xlfn.XLOOKUP(A57,MatrizSegmentación!$E$5:$E$100,MatrizSegmentación!$B$5:$B$100),\"\")","v":0},{"$f":"IFERROR(_xlfn.XLOOKUP(A57,MatrizSegmentación!$E$5:$E$100,MatrizSegmentación!$X$5:$X$100),0)","v":0},null,"No",""]
[null,{"$f":"+IFERROR(_xlfn.XLOOKUP(A58,MatrizSegmentación!$E$5:$E$100,MatrizSegmentación!$F$5:$F$100),\"\")","v":0},{"$f":"IFERROR(_xlfn.XLOOKUP(A58,MatrizSegmentación!$E$5:$E$100,MatrizSegmentación!$B$5:$B$100),\"\")","v":0},{"$f":"IFERROR(_xlfn.XLOOKUP(A58,MatrizSegmentación!$E$5:$E$100,MatrizSegmentación!$X$5:$X$100),0)","v":0},null,"No",""]
[null,{"$f":"+IFERROR(_xlfn.XLOOKUP(A59,MatrizSegmentación!$E$5:$E$100,MatrizSegmentación!$F$5:$F$100),\"\")","v":0},{"$f":"IFERROR(_xlfn.XLOOKUP(A59,MatrizSegmentación!$E$5:$E$100,MatrizSegmentación!$B$5:$B$100),\"\")","v":0},{"$f":"IFERROR(_xlfn.XLOOKUP(A59,MatrizSegmentación!$E$5:$E$100,MatrizSegmentación!$X$5:$X$100),0)","v":0},null,"No",""]
[null,{"$f":"+IFERROR(_xlfn.XLOOKUP(A60,MatrizSegmentación!$E$5:$E$100,MatrizSegmentación!$F$5:$F$100),\"\")","v":0},{"$f":"IFERROR(_xlfn.XLOOKUP(A60,MatrizSegmentación!$E$5:$E$100,MatrizSegmentación!$B$5:$B$100),\"\")","v":0},{"$f":"IFERROR(_xlfn.XLOOKUP(A60,MatrizSegmentación!$E$5:$E$100,MatrizSegmentación!$X$5:$X$100),0)","v":0},null,"No",""]
[null,{"$f":"+IFERROR(_xlfn.XLOOKUP(A61,MatrizSegmentación!$E$5:$E$100,MatrizSegmentación!$F$5:$F$100),\"\")","v":0},{"$f":"IFERROR(_xlfn.XLOOKUP(A61,MatrizSegmentación!$E$5:$E$100,MatrizSegmentación!$B$5:$B$100),\"\")","v":0},{"$f":"IFERROR(_xlfn.XLOOKUP(A61,MatrizSegmentación!$E$5:$E$100,MatrizSegmentación!$X$5:$X$100),0)","v":0},null,"No",""]
[null,{"$f":"+IFERROR(_xlfn.XLOOKUP(A62,MatrizSegmentación!$E$5:$E$100,MatrizSegmentación!$F$5:$F$100),\"\")","v":0},{"$f":"IFERROR(_xlfn.XLOOKUP(A62,MatrizSegmentación!$E$5:$E$100,MatrizSegmentación!$B$5:$B$100),\"\")","v":0},{"$f":"IFERROR(_xlfn.XLOOKUP(A62,MatrizSegmentación!$E$5:$E$100,MatrizSegmentación!$X$5:$X$100),0)","v":0},null,"No",""]
[null,{"$f":"+IFERROR(_xlfn.XLOOKUP(A63,MatrizSegmentación!$E$5:$E$100,MatrizSegmentación!$F$5:$F$100),\"\")","v":0},{"$f":"IFERROR(_xlfn.XLOOKUP(A63,MatrizSegmentación!$E$5:$E$100,MatrizSegmentación!$B$5:$B$100),\"\")","v":0},{"$f":"IFERROR(_xlfn.XLOOKUP(A63,MatrizSegmentación!$E$5:$E$100,MatrizSegmentación!$X$5:$X$100),0)","v":0},null,"No",""]
[null,{"$f":"+IFERROR(_xlfn.XLOOKUP(A64,MatrizSegmentación!$E$5:$E$100,MatrizSegmentación!$F$5:$F$100),\"\")","v":0},{"$f":"IFERROR(_xlfn.XLOOKUP(A64,MatrizSegmentación!$E$5:$E$100,MatrizSegmentación!$B$5:$B$100),\"\")","v":0},{"$f":"IFERROR(_xlfn.XLOOKUP(A64,MatrizSegmentación!$E$5:$E$100,MatrizSegmentación!$X$5:$X$100),0)","v":0},null,"No",""]
[null,{"$f":"+IFERROR(_xlfn.XLOOKUP(A65,MatrizSegmentación!$E$5:$E$100,MatrizSegmentación!$F$5:$F$100),\"\")","v":0},{"$f":"IFERROR(_xlfn.XLOOKUP(A65,MatrizSegmentación!$E$5:$E$100,MatrizSegmentación!$B$5:$B$100),\"\")","v":0},{"$f":"IFERROR(_xlfn.XLOOKUP(A65,MatrizSegmentación!$E$5:$E$100,MatrizSegmentación!$X$5:$X$100),0)","v":0},null,"No",""]
[null,{"$f":"+IFERROR(_xlfn.XLOOKUP(A66,MatrizSegmentación!$E$5:$E$100,MatrizSegmentación!$F$5:$F$100),\"\")","v":0},{"$f":"IFERROR(_xlfn.XLOOKUP(A66,MatrizSegmentación!$E$5:$E$100,MatrizSegmentación!$B$5:$B$100),\"\")","v":0},{"$f":"IFERROR(_xlfn.XLOOKUP(A66,MatrizSegmentación!$E$5:$E$100,MatrizSegmentación!$X$5:$X$100),0)","v":0},null,"No",""]
[null,{"$f":"+IFERROR(_xlfn.XLOOKUP(A67,MatrizSegmentación!$E$5:$E$100,MatrizSegmentación!$F$5:$F$100),\"\")","v":0},{"$f":"IFERROR(_xlfn.XLOOKUP(A67,MatrizSegmentación!$E$5:$E$100,MatrizSegmentación!$B$5:$B$100),\"\")","v":0},{"$f":"IFERROR(_xlfn.XLOOKUP(A67,MatrizSegmentación!$E$5:$E$100,MatrizSegmentación!$X$5:$X$100),0)","v":0},null,"No",""]
[null,{"$f":"+IFERROR(_xlfn.XLOOKUP(A68,MatrizSegmentación!$E$5:$E$100,MatrizSegmentación!$F$5:$F$100),\"\")","v":0},{"$f":"IFERROR(_xlfn.XLOOKUP(A68,MatrizSegmentación!$E$5:$E$100,MatrizSegmentación!$B$5:$B$100),\"\")","v":0},{"$f":"IFERROR(_xlfn.XLOOKUP(A68,MatrizSegmentación!$E$5:$E$100,MatrizSegmentación!$X$5:$X$100),0)","v":0},null,"No",""]
[null,{"$f":"+IFERROR(_xlfn.XLOOKUP(A69,MatrizSegmentación!$E$5:$E$100,MatrizSegmentación!$F$5:$F$100),\"\")","v":0},{"$f":"IFERROR(_xlfn.XLOOKUP(A69,MatrizSegmentación!$E$5:$E$100,MatrizSegmentación!$B$5:$B$100),\"\")","v":0},{"$f":"IFERROR(_xlfn.XLOOKUP(A69,MatrizSegmentación!$E$5:$E$100,MatrizSegmentación!$X$5:$X$100),0)","v":0},null,"No",""]
[null,{"$f":"+IFERROR(_xlfn.XLOOKUP(A70,MatrizSegmentación!$E$5:$E$100,MatrizSegmentación!$F$5:$F$100),\"\")","v":0},{"$f":"IFERROR(_xlfn.XLOOKUP(A70,MatrizSegmentación!$E$5:$E$100,MatrizSegmentación!$B$5:$B$100),\"\")","v":0},{"$f":"IFERROR(_xlfn.XLOOKUP(A70,MatrizSegmentación!$E$5:$E$100,MatrizSegmentación!$X$5:$X$100),0)","v":0},null,"No",""]
[null,{"$f":"+IFERROR(_xlfn.XLOOKUP(A71,MatrizSegmentación!$E$5:$E$100,MatrizSegmentación!$F$5:$F$100),\"\")","v":0},{"$f":"IFERROR(_xlfn.XLOOKUP(A71,MatrizSegmentación!$E$5:$E$100,MatrizSegmentación!$B$5:$B$100),\"\")","v":0},{"$f":"IFERROR(_xlfn.XLOOKUP(A71,MatrizSegmentación!$E$5:$E$100,MatrizSegmentación!$X$5:$X$100),0)","v":0},null,"No",""]
[null,{"$f":"+IFERROR(_xlfn.XLOOKUP(A72,MatrizSegmentación!$E$5:$E$100,MatrizSegmentación!$F$5:$F$100),\"\")","v":0},{"$f":"IFERROR(_xlfn.XLOOKUP(A72,MatrizSegmentación!$E$5:$E$100,MatrizSegmentación!$B$5:$B$100),\"\")","v":0},{"$f":"IFERROR(_xlfn.XLOOKUP(A72,MatrizSegmentación!$E$5:$E$100,MatrizSegmentación!$X$5:$X$100),0)","v":0},null,"No",""]
[null,{"$f":"+IFERROR(_xlfn.XLOOKUP(A73,MatrizSegmentación!$E$5:$E$100,MatrizSegmentación!$F$5:$F$100),\"\")","v":0},{"$f":"IFERROR(_xlfn.XLOOKUP(A73,MatrizSegmentación!$E$5:$E$100,MatrizSegmentación!$B$5:$B$100),\"\")","v":0},{"$f":"IFERROR(_xlfn.XLOOKUP(A73,MatrizSegmentación!$E$5:$E$100,MatrizSegmentación!$X$5:$X$100),0)","v":0},null,"No",""]
[null,{"$f":"+IFERROR(_xlfn.XLOOKUP(A74,MatrizSegmentación!$E$5:$E$100,MatrizSegmentación!$F$5:$F$100),\"\")","v":0},{"$f":"IFERROR(_xlfn.XLOOKUP(A74,MatrizSegmentación!$E$5:$E$100,MatrizSegmentación!$B$5:$B$100),\"\")","v":0},{"$f":"IFERROR(_xlfn.XLOOKUP(A74,MatrizSegmentación!$E$5:$E$100,MatrizSegmentación!$X$5:$X$100),0)","v":0},null,"No",""]
[null,{"$f":"+IFERROR(_xlfn.XLOOKUP(A75,MatrizSegmentación!$E$5:$E$100,MatrizSegmentación!$F$5:$F$100),\"\")","v":0},{"$f":"IFERROR(_xlfn.XLOOKUP(A75,MatrizSegmentación!$E$5:$E$100,MatrizSegmentación!$B$5:$B$100),\"\")","v":0},{"$f":"IFERROR(_xlfn.XLOOKUP(A75,MatrizSegmentación!$E$5:$E$100,MatrizSegmentación!$X$5:$X$100),0)","v":0},null,{"$f":"IFERROR(IF(E75>D75/12*(1+$B$3),\"Si\",\"No\"),\"\")","v":"No"},{"$f":"IFERROR(IF(E75>PERCENTILE(H75:AE75,$B$4),\"Si\",\"No\"),\"\")","v":""}]
[null,{"$f":"+IFERROR(_xlfn.XLOOKUP(A76,MatrizSegmentación!$E$5:$E$100,MatrizSegmentación!$F$5:$F$100),\"\")","v":0},{"$f":"IFERROR(_xlfn.XLOOKUP(A76,MatrizSegmentación!$E$5:$E$100,MatrizSegmentación!$B$5:$B$100),\"\")","v":0},{"$f":"IFERROR(_xlfn.XLOOKUP(A76,MatrizSegmentación!$E$5:$E$100,MatrizSegmentación!$X$5:$X$100),0)","v":0},null,"No",""]
[null,{"$f":"+IFERROR(_xlfn.XLOOKUP(A77,MatrizSegmentación!$E$5:$E$100,MatrizSegmentación!$F$5:$F$100),\"\")","v":0},{"$f":"IFERROR(_xlfn.XLOOKUP(A77,MatrizSegmentación!$E$5:$E$100,MatrizSegmentación!$B$5:$B$100),\"\")","v":0},{"$f":"IFERROR(_xlfn.XLOOKUP(A77,MatrizSegmentación!$E$5:$E$100,MatrizSegmentación!$X$5:$X$100),0)","v":0},null,"No",""]
[null,{"$f":"+IFERROR(_xlfn.XLOOKUP(A78,MatrizSegmentación!$E$5:$E$100,MatrizSegmentación!$F$5:$F$100),\"\")","v":0},{"$f":"IFERROR(_xlfn.XLOOKUP(A78,MatrizSegmentación!$E$5:$E$100,MatrizSegmentación!$B$5:$B$100),\"\")","v":0},{"$f":"IFERROR(_xlfn.XLOOKUP(A78,MatrizSegmentación!$E$5:$E$100,MatrizSegmentación!$X$5:$X$100),0)","v":0},null,"No",""]
[null,{"$f":"+IFERROR(_xlfn.XLOOKUP(A79,MatrizSegmentación!$E$5:$E$100,MatrizSegmentación!$F$5:$F$100),\"\")","v":0},{"$f":"IFERROR(_xlfn.XLOOKUP(A79,MatrizSegmentación!$E$5:$E$100,MatrizSegmentación!$B$5:$B$100),\"\")","v":0},{"$f":"IFERROR(_xlfn.XLOOKUP(A79,MatrizSegmentación!$E$5:$E$100,MatrizSegmentación!$X$5:$X$100),0)","v":0},null,"No",""]
[null,{"$f":"+IFERROR(_xlfn.XLOOKUP(A80,MatrizSegmentación!$E$5:$E$100,MatrizSegmentación!$F$5:$F$100),\"\")","v":0},{"$f":"IFERROR(_xlfn.XLOOKUP(A80,MatrizSegmentación!$E$5:$E$100,MatrizSegmentación!$B$5:$B$100),\"\")","v":0},{"$f":"IFERROR(_xlfn.XLOOKUP(A80,MatrizSegmentación!$E$5:$E$100,MatrizSegmentación!$X$5:$X$100),0)","v":0},null,"No",""]
[null,{"$f":"+IFERROR(_xlfn.XLOOKUP(A81,MatrizSegmentación!$E$5:$E$100,MatrizSegmentación!$F$5:$F$100),\"\")","v":0},{"$f":"IFERROR(_xlfn.XLOOKUP(A81,MatrizSegmentación!$E$5:$E$100,MatrizSegmentación!$B$5:$B$100),\"\")","v":0},{"$f":"IFERROR(_xlfn.XLOOKUP(A81,MatrizSegmentación!$E$5:$E$100,MatrizSegmentación!$X$5:$X$100),0)","v":0},null,"No",""]
[null,{"$f":"+IFERROR(_xlfn.XLOOKUP(A82,MatrizSegmentación!$E$5:$E$100,MatrizSegmentación!$F$5:$F$100),\"\")","v":0},{"$f":"IFERROR(_xlfn.XLOOKUP(A82,MatrizSegmentación!$E$5:$E$100,MatrizSegmentación!$B$5:$B$100),\"\")","v":0},{"$f":"IFERROR(_xlfn.XLOOKUP(A82,MatrizSegmentación!$E$5:$E$100,MatrizSegmentación!$X$5:$X$100),0)","v":0},null,"No",""]
[null,{"$f":"+IFERROR(_xlfn.XLOOKUP(A83,MatrizSegmentación!$E$5:$E$100,MatrizSegmentación!$F$5:$F$100),\"\")","v":0},{"$f":"IFERROR(_xlfn.XLOOKUP(A83,MatrizSegmentación!$E$5:$E$100,MatrizSegmentación!$B$5:$B$100),\"\")","v":0},{"$f":"IFERROR(_xlfn.XLOOKUP(A83,MatrizSegmentación!$E$5:$E$100,MatrizSegmentación!$X$5:$X$100),0)","v":0},null,"No",""]
[null,{"$f":"+IFERROR(_xlfn.XLOOKUP(A84,MatrizSegmentación!$E$5:$E$100,MatrizSegmentación!$F$5:$F$100),\"\")","v":0},{"$f":"IFERROR(_xlfn.XLOOKUP(A84,MatrizSegmentación!$E$5:$E$100,MatrizSegmentación!$B$5:$B$100),\"\")","v":0},{"$f":"IFERROR(_xlfn.XLOOKUP(A84,MatrizSegmentación!$E$5:$E$100,MatrizSegmentación!$X$5:$X$100),0)","v":0},null,"No",""]
[null,{"$f":"+IFERROR(_xlfn.XLOOKUP(A85,MatrizSegmentación!$E$5:$E$100,MatrizSegmentación!$F$5:$F$100),\"\")","v":0},{"$f":"IFERROR(_xlfn.XLOOKUP(A85,MatrizSegmentación!$E$5:$E$100,MatrizSegmentación!$B$5:$B$100),\"\")","v":0},{"$f":"IFERROR(_xlfn.XLOOKUP(A85,MatrizSegmentación!$E$5:$E$100,MatrizSegmentación!$X$5:$X$100),0)","v":0},null,"No",""]
[null,{"$f":"+IFERROR(_xlfn.XLOOKUP(A86,MatrizSegmentación!$E$5:$E$100,MatrizSegmentación!$F$5:$F$100),\"\")","v":0},{"$f":"IFERROR(_xlfn.XLOOKUP(A86,MatrizSegmentación!$E$5:$E$100,MatrizSegmentación!$B$5:$B$100),\"\")","v":0},{"$f":"IFERROR(_xlfn.XLOOKUP(A86,MatrizSegmentación!$E$5:$E$100,MatrizSegmentación!$X$5:$X$100),0)","v":0},null,"No",""]
[null,{"$f":"+IFERROR(_xlfn.XLOOKUP(A87,MatrizSegmentación!$E$5:$E$100,MatrizSegmentación!$F$5:$F$100),\"\")","v":0},{"$f":"IFERROR(_xlfn.XLOOKUP(A87,MatrizSegmentación!$E$5:$E$100,MatrizSegmentación!$B$5:$B$100),\"\")","v":0},{"$f":"IFERROR(_xlfn.XLOOKUP(A87,MatrizSegmentación!$E$5:$E$100,MatrizSegmentación!$X$5:$X$100),0)","v":0},null,"No",""]
[null,{"$f":"+IFERROR(_xlfn.XLOOKUP(A88,MatrizSegmentación!$E$5:$E$100,MatrizSegmentación!$F$5:$F$100),\"\")","v":0},{"$f":"IFERROR(_xlfn.XLOOKUP(A88,MatrizSegmentación!$E$5:$E$100,MatrizSegmentación!$B$5:$B$100),\"\")","v":0},{"$f":"IFERROR(_xlfn.XLOOKUP(A88,MatrizSegmentación!$E$5:$E$100,MatrizSegmentación!$X$5:$X$100),0)","v":0},null,"No",""]
[null,{"$f":"+IFERROR(_xlfn.XLOOKUP(A89,MatrizSegmentación!$E$5:$E$100,MatrizSegmentación!$F$5:$F$100),\"\")","v":0},{"$f":"IFERROR(_xlfn.XLOOKUP(A89,MatrizSegmentación!$E$5:$E$100,MatrizSegmentación!$B$5:$B$100),\"\")","v":0},{"$f":"IFERROR(_xlfn.XLOOKUP(A89,MatrizSegmentación!$E$5:$E$100,MatrizSegmentación!$X$5:$X$100),0)","v":0},null,"No",""]
[null,{"$f":"+IFERROR(_xlfn.XLOOKUP(A90,MatrizSegmentación!$E$5:$E$100,MatrizSegmentación!$F$5:$F$100),\"\")","v":0},{"$f":"IFERROR(_xlfn.XLOOKUP(A90,MatrizSegmentación!$E$5:$E$100,MatrizSegmentación!$B$5:$B$100),\"\")","v":0},{"$f":"IFERROR(_xlfn.XLOOKUP(A90,MatrizSegmentación!$E$5:$E$100,MatrizSegmentación!$X$5:$X$100),0)","v":0},null,"No",""]
[null,{"$f":"+IFERROR(_xlfn.XLOOKUP(A91,MatrizSegmentación!$E$5:$E$100,MatrizSegmentación!$F$5:$F$100),\"\")","v":0},{"$f":"IFERROR(_xlfn.XLOOKUP(A91,MatrizSegmentación!$E$5:$E$100,MatrizSegmentación!$B$5:$B$100),\"\")","v":0},{"$f":"IFERROR(_xlfn.XLOOKUP(A91,MatrizSegmentación!$E$5:$E$100,MatrizSegmentación!$X$5:$X$100),0)","v":0},null,"No",""]
[null,{"$f":"+IFERROR(_xlfn.XLOOKUP(A92,MatrizSegmentación!$E$5:$E$100,MatrizSegmentación!$F$5:$F$100),\"\")","v":0},{"$f":"IFERROR(_xlfn.XLOOKUP(A92,MatrizSegmentación!$E$5:$E$100,MatrizSegmentación!$B$5:$B$100),\"\")","v":0},{"$f":"IFERROR(_xlfn.XLOOKUP(A92,MatrizSegmentación!$E$5:$E$100,MatrizSegmentación!$X$5:$X$100),0)","v":0},null,"No",""]
[null,{"$f":"+IFERROR(_xlfn.XLOOKUP(A93,MatrizSegmentación!$E$5:$E$100,MatrizSegmentación!$F$5:$F$100),\"\")","v":0},{"$f":"IFERROR(_xlfn.XLOOKUP(A93,MatrizSegmentación!$E$5:$E$100,MatrizSegmentación!$B$5:$B$100),\"\")","v":0},{"$f":"IFERROR(_xlfn.XLOOKUP(A93,MatrizSegmentación!$E$5:$E$100,MatrizSegmentación!$X$5:$X$100),0)","v":0},null,"No",""]
[null,{"$f":"+IFERROR(_xlfn.XLOOKUP(A94,MatrizSegmentación!$E$5:$E$100,MatrizSegmentación!$F$5:$F$100),\"\")","v":0},{"$f":"IFERROR(_xlfn.XLOOKUP(A94,MatrizSegmentación!$E$5:$E$100,MatrizSegmentación!$B$5:$B$100),\"\")","v":0},{"$f":"IFERROR(_xlfn.XLOOKUP(A94,MatrizSegmentación!$E$5:$E$100,MatrizSegmentación!$X$5:$X$100),0)","v":0},null,"No",""]
[null,{"$f":"+IFERROR(_xlfn.XLOOKUP(A95,MatrizSegmentación!$E$5:$E$100,MatrizSegmentación!$F$5:$F$100),\"\")","v":0},{"$f":"IFERROR(_xlfn.XLOOKUP(A95,MatrizSegmentación!$E$5:$E$100,MatrizSegmentación!$B$5:$B$100),\"\")","v":0},{"$f":"IFERROR(_xlfn.XLOOKUP(A95,MatrizSegmentación!$E$5:$E$100,MatrizSegmentación!$X$5:$X$100),0)","v":0},null,"No",""]
[null,{"$f":"+IFERROR(_xlfn.XLOOKUP(A96,MatrizSegmentación!$E$5:$E$100,MatrizSegmentación!$F$5:$F$100),\"\")","v":0},{"$f":"IFERROR(_xlfn.XLOOKUP(A96,MatrizSegmentación!$E$5:$E$100,MatrizSegmentación!$B$5:$B$100),\"\")","v":0},{"$f":"IFERROR(_xlfn.XLOOKUP(A96,MatrizSegmentación!$E$5:$E$100,MatrizSegmentación!$X$5:$X$100),0)","v":0},null,"No",""]
[null,{"$f":"+IFERROR(_xlfn.XLOOKUP(A97,MatrizSegmentación!$E$5:$E$100,MatrizSegmentación!$F$5:$F$100),\"\")","v":0},{"$f":"IFERROR(_xlfn.XLOOKUP(A97,MatrizSegmentación!$E$5:$E$100,MatrizSegmentación!$B$5:$B$100),\"\")","v":0},{"$f":"IFERROR(_xlfn.XLOOKUP(A97,MatrizSegmentación!$E$5:$E$100,MatrizSegmentación!$X$5:$X$100),0)","v":0},null,"No",""]
[null,{"$f":"+IFERROR(_xlfn.XLOOKUP(A98,MatrizSegmentación!$E$5:$E$100,MatrizSegmentación!$F$5:$F$100),\"\")","v":0},{"$f":"IFERROR(_xlfn.XLOOKUP(A98,MatrizSegmentación!$E$5:$E$100,MatrizSegmentación!$B$5:$B$100),\"\")","v":0},{"$f":"IFERROR(_xlfn.XLOOKUP(A98,MatrizSegmentación!$E$5:$E$100,MatrizSegmentación!$X$5:$X$100),0)","v":0},null,"No",""]
[null,{"$f":"+IFERROR(_xlfn.XLOOKUP(A99,MatrizSegmentación!$E$5:$E$100,MatrizSegmentación!$F$5:$F$100),\"\")","v":0},{"$f":"IFERROR(_xlfn.XLOOKUP(A99,MatrizSegmentación!$E$5:$E$100,MatrizSegmentación!$B$5:$B$100),\"\")","v":0},{"$f":"IFERROR(_xlfn.XLOOKUP(A99,MatrizSegmentación!$E$5:$E$100,MatrizSegmentación!$X$5:$X$100),0)","v":0},null,"No",""]
[null,{"$f":"+IFERROR(_xlfn.XLOOKUP(A100,MatrizSegmentación!$E$5:$E$100,MatrizSegmentación!$F$5:$F$100),\"\")","v":0},{"$f":"IFERROR(_xlfn.XLOOKUP(A100,MatrizSegmentación!$E$5:$E$100,MatrizSegmentación!$B$5:$B$100),\"\")","v":0},{"$f":"IFERROR(_xlfn.XLOOKUP(A100,MatrizSegmentación!$E$5:$E$100,MatrizSegmentación!$X$5:$X$100),0)","v":0},null,"No",""]
[null,{"$f":"+IFERROR(_xlfn.XLOOKUP(A101,MatrizSegmentación!$E$5:$E$100,MatrizSegmentación!$F$5:$F$100),\"\")","v":0},{"$f":"IFERROR(_xlfn.XLOOKUP(A101,MatrizSegmentación!$E$5:$E$100,MatrizSegmentación!$B$5:$B$100),\"\")","v":0},{"$f":"IFERROR(_xlfn.XLOOKUP(A101,MatrizSegmentación!$E$5:$E$100,MatrizSegmentación!$X$5:$X$100),0)","v":0},null,"No",""]
[null,{"$f":"+IFERROR(_xlfn.XLOOKUP(A102,MatrizSegmentación!$E$5:$E$100,MatrizSegmentación!$F$5:$F$100),\"\")","v":0},{"$f":"IFERROR(_xlfn.XLOOKUP(A102,MatrizSegmentación!$E$5:$E$100,MatrizSegmentación!$B$5:$B$100),\"\")","v":0},{"$f":"IFERROR(_xlfn.XLOOKUP(A102,MatrizSegmentación!$E$5:$E$100,MatrizSegmentación!$X$5:$X$100),0)","v":0},null,"No",""]
[null,{"$f":"+IFERROR(_xlfn.XLOOKUP(A103,MatrizSegmentación!$E$5:$E$100,MatrizSegmentación!$F$5:$F$100),\"\")","v":0},{"$f":"IFERROR(_xlfn.XLOOKUP(A103,MatrizSegmentación!$E$5:$E$100,MatrizSegmentación!$B$5:$B$100),\"\")","v":0},{"$f":"IFERROR(_xlfn.XLOOKUP(A103,MatrizSegmentación!$E$5:$E$100,MatrizSegmentación!$X$5:$X$100),0)","v":0},null,"No",""]
[null,{"$f":"+IFERROR(_xlfn.XLOOKUP(A104,MatrizSegmentación!$E$5:$E$100,MatrizSegmentación!$F$5:$F$100),\"\")","v":0},{"$f":"IFERROR(_xlfn.XLOOKUP(A104,MatrizSegmentación!$E$5:$E$100,MatrizSegmentación!$B$5:$B$100),\"\")","v":0},{"$f":"IFERROR(_xlfn.XLOOKUP(A104,MatrizSegmentación!$E$5:$E$100,MatrizSegmentación!$X$5:$X$100),0)","v":0},null,"No",""]
[null,{"$f":"+IFERROR(_xlfn.XLOOKUP(A105,MatrizSegmentación!$E$5:$E$100,MatrizSegmentación!$F$5:$F$100),\"\")","v":0},{"$f":"IFERROR(_xlfn.XLOOKUP(A105,MatrizSegmentación!$E$5:$E$100,MatrizSegmentación!$B$5:$B$100),\"\")","v":0},{"$f":"IFERROR(_xlfn.XLOOKUP(A105,MatrizSegmentación!$E$5:$E$100,MatrizSegmentación!$X$5:$X$100),0)","v":0},null,"No",""]
[null,{"$f":"+IFERROR(_xlfn.XLOOKUP(A106,MatrizSegmentación!$E$5:$E$100,MatrizSegmentación!$F$5:$F$100),\"\")","v":0},{"$f":"IFERROR(_xlfn.XLOOKUP(A106,MatrizSegmentación!$E$5:$E$100,MatrizSegmentación!$B$5:$B$100),\"\")","v":0},{"$f":"IFERROR(_xlfn.XLOOKUP(A106,MatrizSegmentación!$E$5:$E$100,MatrizSegmentación!$X$5:$X$100),0)","v":0},null,"No",""]
[null,{"$f":"+IFERROR(_xlfn.XLOOKUP(A107,MatrizSegmentación!$E$5:$E$100,MatrizSegmentación!$F$5:$F$100),\"\")","v":0},{"$f":"IFERROR(_xlfn.XLOOKUP(A107,MatrizSegmentación!$E$5:$E$100,MatrizSegmentación!$B$5:$B$100),\"\")","v":0},{"$f":"IFERROR(_xlfn.XLOOKUP(A107,MatrizSegmentación!$E$5:$E$100,MatrizSegmentación!$X$5:$X$100),0)","v":0},null,"No",""]

{"sheet":"S.AlertaCuantitativas","index":7,"n_rows":11,"n_cols":5,"rows_kept":11,"cut":false,"hidden":false,"merged":[]}
["NOTA: Cuando Actualice datos, haga clic en alguna de las tablas dinamicas, luego en la parte superior haga clic en analizar tabla dinamica, despues en actualizar y finalmente en actualizar todo"]
[]
["Tipo de Contraparte","(Todas)",null,"Tipo de Contraparte","(Todas)"]
["Señal de Alerta sobre ingresos","Si",null,"Señal de alerta sobre movimientos financieros","Si"]
[]
["Nombre de la contraparte","Suma de Movimientos del Mes (Miles)",null,"Nombre de la contraparte","Suma de Movimientos del Mes (Miles)"]
["FABRICA XYZ",20000000,null,"FABRICA XYZ",20000000]
["XLM CONSULTORES",10000000,null,"XLM CONSULTORES",10000000]
["MIGUEL HERNANDEZ",20000000,null,"PEDRO PEREZ",8000000]
["Total general",50000000,null,"MIGUEL HERNANDEZ",20000000]
[null,null,null,"Total general",58000000]